Workbook

Sheet CAMP PILOTO EVOL
A1: PARA DESTACAR UM PILOTO MARQUE/DESMARQUE COM UM "X" AO LADO DO NOME E CLIQUE NO BOTÃO. => | D1: OK | F1: OK | H1: OK | J1: OK | L1: OK | N1: OK | P1: OK | R1: OK | T1: OK | V1: OK | X1: DIF. LIDER | Y1: DIF. 5º | Z1: DIF. PRÓXIMO | AA1: OK | AC1: DIF. LIDER | AD1: DIF. 5º | AE1: DIF. PRÓXIMO | AF1: OK | AH1: DIF. LIDER | AI1: DIF. 5º
D2: 1ª etapa | F2: 2ª etapa | H2: 3ª etapa | J2: 4ª etapa | L2: 5ª etapa | N2: 6ª etapa | P2: 7ª etapa | R2: 8ª etapa | T2: 9ª etapa | V2: 10ª etapa | AA2: 11ª etapa | AF2: 12ª etapa
B4: Nome do (a) Piloto (a) | D4: PILOTO | E4: PONTOS | F4: PILOTO | G4: PONTOS | H4: PILOTO | I4: PONTOS | J4: PILOTO | K4: PONTOS | L4: PILOTO | M4: PONTOS | N4: PILOTO | O4: PONTOS | P4: PILOTO | Q4: PONTOS | R4: PILOTO | S4: PONTOS | T4: PILOTO | U4: PONTOS | V4: PILOTO | W4: PONTOS | AA4: PILOTO | AB4: PONTOS | AF4: PILOTO | AG4: PONTOS
B5: Adriano Morato | C5: 1 | D5: Marcelo Pereira | E5: 60 | F5: Léo Oliveira | G5: 115 | H5: Léo Oliveira | I5: 117 | J5: Cláudio Dumont | K5: 120 | L5: Léo Oliveira | M5: 169 | N5: Léo Oliveira | O5: 217 | P5: Léo Oliveira | Q5: 253 | R5: Marcelo Campos | S5: 291 | T5: Marcelo Campos | U5: 331 | V5: Marcelo Campos | W5: 367 | X5: - | Y5: - | Z5: - | AA5: Marcelo Campos | AB5: 422 | AC5: - | AD5: - | AE5: - | AF5: Léo Oliveira | AG5: 483 | AH5: - | AI5: - | AJ5: -
B6: Alan Silva | C6: 2 | D6: Léo Oliveira | E6: 55 | F6: Marcelo Pereira | G6: 110 | H6: Cláudio Dumont | I6: 108 | J6: Léo Oliveira | K6: 117 | L6: Cláudio Dumont | M6: 168 | N6: Gabriel Veloso | O6: 192 | P6: Marcelo Campos | Q6: 251 | R6: Gabriel Veloso | S6: 262 | T6: Gabriel Veloso | U6: 310 | V6: Léo Oliveira | W6: 361 | X6: =W5-W6 -> 6 | Y6: - | Z6: =W5-W6 -> 6 | AA6: Léo Oliveira | AB6: 421 | AC6: =AB5-AB6 -> 1 | AD6: - | AE6: =AB5-AB6 -> 1 | AF6: Marcelo Campos | AG6: 477 | AH6: =AG5-AG6 -> 6 | AI6: - | AJ6: =AG5-AG6 -> 6
B7: Alexandre Melillo | C7: 3 | D7: Alan Silva | E7: 52 | F7: Wesley Bambirra | G7: 92 | H7: Marcelo Pereira | I7: 100 | J7: Marcelo Campos | K7: 99 | L7: Gabriel Veloso | M7: 142 | N7: Marcelo Campos | O7: 189 | P7: Gabriel Veloso | Q7: 230 | R7: Léo Oliveira | S7: 253 | T7: Léo Oliveira | U7: 299 | V7: Gabriel Veloso | W7: 336 | X7: =W5-W7 -> 31 | Y7: - | Z7: =W6-W7 -> 25 | AA7: Daniel Nahum | AB7: 383 | AC7: =AB5-AB7 -> 39 | AD7: - | AE7: =AB6-AB7 -> 38 | AF7: Daniel Nahum | AG7: 415 | AH7: =AG5-AG7 -> 68 | AI7: - | AJ7: =AG6-AG7 -> 62
B8: Cláudio Dumont | C8: 4 | D8: Cláudio Dumont | E8: 48 | F8: Marcelo Sant'anna | G8: 84 | H8: Daniel Nahum | I8: 96 | J8: Daniel Nahum | K8: 98 | L8: Marcelo Campos | M8: 141 | N8: Cláudio Dumont | O8: 187 | P8: Cláudio Dumont | Q8: 225 | R8: Rafael Miranda | S8: 242 | T8: Daniel Nahum | U8: 291 | V8: Daniel Nahum | W8: 331 | X8: =W5-W8 -> 36 | Y8: - | Z8: =W7-W8 -> 5 | AA8: Marcelo Sant'anna | AB8: 358 | AC8: =AB5-AB8 -> 64 | AD8: - | AE8: =AB7-AB8 -> 25 | AF8: Guilherme Alves | AG8: 398 | AH8: =AG5-AG8 -> 85 | AI8: - | AJ8: =AG7-AG8 -> 17
A9: X | B9: Daniel Nahum | C9: 5 | D9: Eduardo Dias | E9: 46 | F9: Fernando Medeiros | G9: 79 | H9: Marcelo Campos | I9: 95 | J9: Wesley Bambirra | K9: 94 | L9: Daniel Nahum | M9: 138 | N9: Marcelo Surerus | O9: 165 | P9: Marcelo Surerus | Q9: 199 | R9: Marcelo Surerus | S9: 241 | T9: Rafael Miranda | U9: 284 | V9: Marcelo Sant'anna | W9: 318 | X9: =W5-W9 -> 49 | Y9: - | Z9: =W8-W9 -> 13 | AA9: Guilherme Alves | AB9: 348 | AC9: =AB5-AB9 -> 74 | AD9: - | AE9: =AB8-AB9 -> 10 | AF9: Gabriel Veloso | AG9: 393 | AH9: =AG5-AG9 -> 90 | AI9: - | AJ9: =AG8-AG9 -> 5
B10: Daniel Paranhos | C10: 6 | D10: Wesley Bambirra | E10: 44 | F10: Rafael Cantoni | G10: 74 | H10: Wesley Bambirra | I10: 94 | J10: Roberto Torres | K10: 93 | L10: Wesley Bambirra | M10: 138 | N10: Daniel Nahum | O10: 164 | P10: Daniel Nahum | Q10: 196 | R10: Daniel Nahum | S10: 236 | T10: Marcelo Sant'anna | U10: 280 | V10: Marcelo Surerus | W10: 313 | X10: =W5-W10 -> 54 | Y10: =W9-W10 -> 5 | Z10: =W9-W10 -> 5 | AA10: Gabriel Veloso | AB10: 347 | AC10: =AB5-AB10 -> 75 | AD10: =AB9-AB10 -> 1 | AE10: =AB9-AB10 -> 1 | AF10: Marcelo Sant'anna | AG10: 392 | AH10: =AG5-AG10 -> 91 | AI10: =AG9-AG10 -> 1 | AJ10: =AG9-AG10 -> 1
B11: Diego Silva | C11: 7 | D11: Marcelo Sant'anna | E11: 42 | F11: Leonardo Bastos | G11: 70 | H11: Leonardo Bosco | I11: 82 | J11: Diego Silva | K11: 92 | L11: Leonardo Bastos | M11: 122 | N11: Rafael Miranda | O11: 162 | P11: Rafael Miranda | Q11: 194 | R11: Leonardo Bastos | S11: 234 | T11: Marcelo Surerus | U11: 277 | V11: Guilherme Alves | W11: 312 | X11: =W5-W11 -> 55 | Y11: =W9-W11 -> 6 | Z11: =W10-W11 -> 1 | AA11: Leonardo Bastos | AB11: 338 | AC11: =AB5-AB11 -> 84 | AD11: =AB9-AB11 -> 10 | AE11: =AB10-AB11 -> 9 | AF11: Diego Silva | AG11: 370 | AH11: =AG5-AG11 -> 113 | AI11: =AG9-AG11 -> 23 | AJ11: =AG10-AG11 -> 22
B12: Eduardo Dias | C12: 8 | D12: Marcelo Campos | E12: 40 | F12: Eduardo Dias | G12: 69 | H12: Fernando Medeiros | I12: 81 | J12: Gabriel Veloso | K12: 82 | L12: Diego Silva | M12: 122 | N12: Leonardo Bastos | O12: 152 | P12: Marcelo Sant'anna | Q12: 190 | R12: Cláudio Dumont | S12: 232 | T12: Leonardo Bastos | U12: 272 | V12: Leonardo Bastos | W12: 296 | X12: =W5-W12 -> 71 | Y12: =W9-W12 -> 22 | Z12: =W11-W12 -> 16 | AA12: Diego Silva | AB12: 336 | AC12: =AB5-AB12 -> 86 | AD12: =AB9-AB12 -> 12 | AE12: =AB11-AB12 -> 2 | AF12: Alexandre Melillo | AG12: 358 | AH12: =AG5-AG12 -> 125 | AI12: =AG9-AG12 -> 35 | AJ12: =AG11-AG12 -> 12
B13: Eduardo Henrique | C13: 9 | D13: Victor Silva | E13: 40 | F13: Daniel Nahum | G13: 67 | H13: Rafael Cantoni | I13: 80 | J13: Leonardo Bosco | K13: 82 | L13: Marcelo Surerus | M13: 121 | N13: Diego Silva | O13: 148 | P13: Guilherme Alves | Q13: 186 | R13: Diego Silva | S13: 232 | T13: Guilherme Alves | U13: 266 | V13: Rafael Miranda | W13: 293 | X13: =W5-W13 -> 74 | Y13: =W9-W13 -> 25 | Z13: =W12-W13 -> 3 | AA13: Marcelo Surerus | AB13: 331 | AC13: =AB5-AB13 -> 91 | AD13: =AB9-AB13 -> 17 | AE13: =AB12-AB13 -> 5 | AF13: Leonardo Bastos | AG13: 328 | AH13: =AG5-AG13 -> 155 | AI13: =AG9-AG13 -> 65 | AJ13: =AG12-AG13 -> 30
B14: Fernando Medeiros | C14: 10 | D14: Rafael Cantoni | E14: 38 | F14: Diego Silva | G14: 66 | H14: Alexandre Melillo | I14: 70 | J14: Marcelo Pereira | K14: 80 | L14: Marcelo Pereira | M14: 120 | N14: Leonardo Bosco | O14: 142 | P14: Leonardo Bastos | Q14: 182 | R14: Marcelo Sant'anna | S14: 228 | T14: Cláudio Dumont | U14: 264 | V14: Diego Silva | W14: 288 | X14: =W5-W14 -> 79 | Y14: =W9-W14 -> 30 | Z14: =W13-W14 -> 5 | AA14: Alexandre Melillo | AB14: 320 | AC14: =AB5-AB14 -> 102 | AD14: =AB9-AB14 -> 28 | AE14: =AB13-AB14 -> 11 | AF14: Rafael Miranda | AG14: 325 | AH14: =AG5-AG14 -> 158 | AI14: =AG9-AG14 -> 68 | AJ14: =AG13-AG14 -> 3
A15: X | B15: Gabriel Veloso | C15: 11 | D15: Leonardo Bastos | E15: 36 | F15: Cláudio Dumont | G15: 65 | H15: Daniel Paranhos | I15: 70 | J15: Rafael Cantoni | K15: 80 | L15: Leonardo Bosco | M15: 116 | N15: Wesley Bambirra | O15: 142 | P15: Alexandre Melillo | Q15: 180 | R15: Guilherme Alves | S15: 216 | T15: Rodrigo Mercadante | U15: 257 | V15: Alexandre Melillo | W15: 268 | X15: =W5-W15 -> 99 | Y15: =W9-W15 -> 50 | Z15: =W14-W15 -> 20 | AA15: Rafael Miranda | AB15: 283 | AC15: =AB5-AB15 -> 139 | AD15: =AB9-AB15 -> 65 | AE15: =AB14-AB15 -> 37 | AF15: Marcelo Clemente | AG15: 324 | AH15: =AG5-AG15 -> 159 | AI15: =AG9-AG15 -> 69 | AJ15: =AG14-AG15 -> 1
A16: X | B16: Guilherme Alves | C16: 12 | D16: Rafael Miranda | E16: 34 | F16: Rafael Alves | G16: 60 | H16: Leonardo Bastos | I16: 70 | J16: Jarbas Reis | K16: 74 | L16: Guilherme Alves | M16: 108 | N16: Alexandre Melillo | O16: 142 | P16: Rafael Cantoni | Q16: 178 | R16: Rodrigo Mercadante | S16: 211 | T16: Diego Silva | U16: 244 | V16: Alan Silva | W16: 260 | X16: =W5-W16 -> 107 | Y16: =W9-W16 -> 58 | Z16: =W15-W16 -> 8 | AA16: Rodrigo Mercadante | AB16: 283 | AC16: =AB5-AB16 -> 139 | AD16: =AB9-AB16 -> 65 | AE16: =AB15-AB16 -> 0 | AF16: Marcelo Surerus | AG16: 321 | AH16: =AG5-AG16 -> 162 | AI16: =AG9-AG16 -> 72 | AJ16: =AG15-AG16 -> 3
B17: Heimar Mata | C17: 13 | D17: Guilherme Alves | E17: 32 | F17: Alexandre Melillo | G17: 60 | H17: Diego Silva | I17: 68 | J17: Marcelo Surerus | K17: 71 | L17: Rafael Miranda | M17: 102 | N17: Guilherme Alves | O17: 140 | P17: Diego Silva | Q17: 172 | R17: Leonardo Bosco | S17: 206 | T17: Alexandre Melillo | U17: 238 | V17: Rodrigo Mercadante | W17: 257 | X17: =W5-W17 -> 110 | Y17: =W9-W17 -> 61 | Z17: =W16-W17 -> 3 | AA17: Alan Silva | AB17: 282 | AC17: =AB5-AB17 -> 140 | AD17: =AB9-AB17 -> 66 | AE17: =AB16-AB17 -> 1 | AF17: Rodrigo Mercadante | AG17: 319 | AH17: =AG5-AG17 -> 164 | AI17: =AG9-AG17 -> 74 | AJ17: =AG16-AG17 -> 2
B18: Jarbas Reis | C18: 14 | D18: Alexandre Melillo | E18: 30 | F18: Leonardo Bosco | G18: 58 | H18: Jean Paul | I18: 65 | J18: Alexandre Melillo | K18: 70 | L18: Jarbas Reis | M18: 100 | N18: Marcelo Sant'anna | O18: 138 | P18: Victor Silva | Q18: 170 | R18: Alexandre Melillo | S18: 204 | T18: Alan Silva | U18: 218 | V18: Cláudio Dumont | W18: 254 | X18: =W5-W18 -> 113 | Y18: =W9-W18 -> 64 | Z18: =W17-W18 -> 3 | AA18: Rafael Alves | AB18: 280 | AC18: =AB5-AB18 -> 142 | AD18: =AB9-AB18 -> 68 | AE18: =AB17-AB18 -> 2 | AF18: Jarbas Reis | AG18: 311 | AH18: =AG5-AG18 -> 172 | AI18: =AG9-AG18 -> 82 | AJ18: =AG17-AG18 -> 8
B19: Jean Paul | C19: 15 | D19: Jarbas Reis | E19: 28 | F19: Guilherme Alves | G19: 58 | H19: Gabriel Veloso | I19: 65 | J19: Daniel Paranhos | K19: 70 | L19: Rafael Cantoni | M19: 100 | N19: Jarbas Reis | O19: 136 | P19: Rodrigo Mercadante | Q19: 161 | R19: Alan Silva | S19: 201 | T19: Leonardo Bosco | U19: 216 | V19: Daniel Paranhos | W19: 247 | X19: =W5-W19 -> 120 | Y19: =W9-W19 -> 71 | Z19: =W18-W19 -> 7 | AA19: Marcelo Clemente | AB19: 276 | AC19: =AB5-AB19 -> 146 | AD19: =AB9-AB19 -> 72 | AE19: =AB18-AB19 -> 4 | AF19: Daniel Paranhos | AG19: 288 | AH19: =AG5-AG19 -> 195 | AI19: =AG9-AG19 -> 105 | AJ19: =AG18-AG19 -> 23
B20: Leandro Malias | C20: 16 | D20: Leonardo Bosco | E20: 26 | F20: Gabriel Veloso | G20: 54 | H20: Eduardo Dias | I20: 59 | J20: Leonardo Bastos | K20: 70 | L20: Alexandre Melillo | M20: 100 | N20: Rafael Cantoni | O20: 136 | P20: Leonardo Bosco | Q20: 160 | R20: Daniel Paranhos | S20: 183 | T20: Daniel Paranhos | U20: 213 | V20: Rafael Alves | W20: 242 | X20: =W5-W20 -> 125 | Y20: =W9-W20 -> 76 | Z20: =W19-W20 -> 5 | AA20: Daniel Paranhos | AB20: 275 | AC20: =AB5-AB20 -> 147 | AD20: =AB9-AB20 -> 73 | AE20: =AB19-AB20 -> 1 | AF20: Eduardo Henrique | AG20: 278 | AH20: =AG5-AG20 -> 205 | AI20: =AG9-AG20 -> 115 | AJ20: =AG19-AG20 -> 10
B21: Leonardo Bastos | C21: 17 | D21: Diego Silva | E21: 26 | F21: Marcelo Campos | G21: 51 | H21: Rafael Miranda | I21: 58 | J21: Eduardo Henrique | K21: 68 | L21: Daniel Paranhos | M21: 98 | N21: Marcelo Pereira | O21: 125 | P21: Jarbas Reis | Q21: 160 | R21: Jarbas Reis | S21: 182 | T21: Jarbas Reis | U21: 210 | V21: Jarbas Reis | W21: 238 | X21: =W5-W21 -> 129 | Y21: =W9-W21 -> 80 | Z21: =W20-W21 -> 4 | AA21: Jarbas Reis | AB21: 259 | AC21: =AB5-AB21 -> 163 | AD21: =AB9-AB21 -> 89 | AE21: =AB20-AB21 -> 16 | AF21: Alan Silva | AG21: 272 | AH21: =AG5-AG21 -> 211 | AI21: =AG9-AG21 -> 121 | AJ21: =AG20-AG21 -> 6
B22: Leonardo Bastos | C22: 18 | D22: Pedro Mello | E22: 23 | F22: Daniel Paranhos | G22: 51 | H22: Guilherme Alves | I22: 58 | J22: Wesley Canuto | K22: 68 | L22: Roberto Torres | M22: 93 | N22: Rafael Alves | O22: 121 | P22: Rafael Alves | Q22: 147 | R22: Wesley Bambirra | S22: 180 | T22: Rafael Alves | U22: 190 | V22: Marcelo Clemente | W22: 230 | X22: =W5-W22 -> 137 | Y22: =W9-W22 -> 88 | Z22: =W21-W22 -> 8 | AA22: Eduardo Henrique | AB22: 252 | AC22: =AB5-AB22 -> 170 | AD22: =AB9-AB22 -> 96 | AE22: =AB21-AB22 -> 7 | AF22: Rafael Alves | AG22: 270 | AH22: =AG5-AG22 -> 213 | AI22: =AG9-AG22 -> 123 | AJ22: =AG21-AG22 -> 2
A23: X | B23: Léo Oliveira | C23: 19 | D23: Fernando Medeiros | E23: 22 | F23: Jarbas Reis | G23: 49 | H23: Rafael Alves | I23: 57 | J23: Jean Paul | K23: 65 | L23: Marcelo Sant'anna | M23: 92 | N23: Daniel Paranhos | O23: 121 | P23: Alan Silva | Q23: 146 | R23: Rafael Cantoni | S23: 178 | T23: Jean Paul | U23: 181 | V23: Leonardo Bosco | W23: 228 | X23: =W5-W23 -> 139 | Y23: =W9-W23 -> 90 | Z23: =W22-W23 -> 2 | AA23: Cláudio Dumont | AB23: 244 | AC23: =AB5-AB23 -> 178 | AD23: =AB9-AB23 -> 104 | AE23: =AB22-AB23 -> 8 | AF23: Cláudio Dumont | AG23: 234 | AH23: =AG5-AG23 -> 249 | AI23: =AG9-AG23 -> 159 | AJ23: =AG22-AG23 -> 36
B24: Luis Almeida | C24: 20 | D24: Marcelo Clemente | E24: 21 | F24: Eduardo Henrique | G24: 47 | H24: Marcelo Sant'anna | I24: 50 | J24: Alan Silva | K24: 60 | L24: Rafael Alves | M24: 89 | N24: Marcelo Clemente | O24: 116 | P24: Felipe Franca | Q24: 142 | R24: Victor Silva | S24: 169 | T24: Marcelo Clemente | U24: 180 | V24: Eduardo Henrique | W24: 208 | X24: =W5-W24 -> 159 | Y24: =W9-W24 -> 110 | Z24: =W23-W24 -> 20 | AA24: Leonardo Bosco | AB24: 218 | AC24: =AB5-AB24 -> 204 | AD24: =AB9-AB24 -> 130 | AE24: =AB23-AB24 -> 26 | AF24: Jean Paul | AG24: 231 | AH24: =AG5-AG24 -> 252 | AI24: =AG9-AG24 -> 162 | AJ24: =AG23-AG24 -> 3
B25: Marcelo Sant'anna | C25: 21 | D25: Pedro Fialho | E25: 20 | F25: Pedro Mello | G25: 43 | H25: Jarbas Reis | I25: 50 | J25: Guilherme Alves | K25: 60 | L25: Eduardo Henrique | M25: 87 | N25: Victor Silva | O25: 115 | P25: Wesley Bambirra | Q25: 142 | R25: Rafael Alves | S25: 167 | T25: Wesley Bambirra | U25: 180 | V25: Victor Silva | W25: 207 | X25: =W5-W25 -> 160 | Y25: =W9-W25 -> 111 | Z25: =W24-W25 -> 1 | AA25: Jean Paul | AB25: 218 | AC25: =AB5-AB25 -> 204 | AD25: =AB9-AB25 -> 130 | AE25: =AB24-AB25 -> 0 | AF25: Rafael Cantoni | AG25: 222 | AH25: =AG5-AG25 -> 261 | AI25: =AG9-AG25 -> 171 | AJ25: =AG24-AG25 -> 9
A26: X | B26: Marcelo Campos | C26: 22 | D26: Eduardo Henrique | E26: 19 | F26: Alan Silva | G26: 42 | H26: Eduardo Henrique | I26: 47 | J26: Eduardo Dias | K26: 59 | L26: Jean Paul | M26: 84 | N26: Felipe Franca | O26: 114 | P26: Wesley Canuto | Q26: 142 | R26: Felipe Franca | S26: 164 | T26: Rafael Cantoni | U26: 168 | V26: Jean Paul | W26: 202 | X26: =W5-W26 -> 165 | Y26: =W9-W26 -> 116 | Z26: =W25-W26 -> 5 | AA26: Felipe Franca | AB26: 216 | AC26: =AB5-AB26 -> 206 | AD26: =AB9-AB26 -> 132 | AE26: =AB25-AB26 -> 2 | AF26: Wesley Bambirra | AG26: 210 | AH26: =AG5-AG26 -> 273 | AI26: =AG9-AG26 -> 183 | AJ26: =AG25-AG26 -> 12
B27: Marcelo Clemente | C27: 23 | D27: Marcelo Surerus | E27: 18 | F27: Raphael Reis | G27: 34 | H27: Roberto Torres | I27: 38 | J27: Rafael Miranda | K27: 58 | L27: Marcelo Clemente | M27: 78 | N27: Rodrigo Mercadante | O27: 111 | P27: Daniel Paranhos | Q27: 139 | R27: Jean Paul | S27: 155 | T27: Victor Silva | U27: 159 | V27: Wesley Bambirra | W27: 198 | X27: =W5-W27 -> 169 | Y27: =W9-W27 -> 120 | Z27: =W26-W27 -> 4 | AA27: Wesley Bambirra | AB27: 210 | AC27: =AB5-AB27 -> 212 | AD27: =AB9-AB27 -> 138 | AE27: =AB26-AB27 -> 6 | AF27: Leonardo Bosco | AG27: 208 | AH27: =AG5-AG27 -> 275 | AI27: =AG9-AG27 -> 185 | AJ27: =AG26-AG27 -> 2
B28: Marcelo Pereira | C28: 24 | D28: Jean Paul | E28: 17 | F28: Jean Paul | G28: 33 | H28: Raphael Reis | I28: 38 | J28: Rafael Alves | K28: 57 | L28: Eduardo Dias | M28: 74 | N28: Jean Paul | O28: 106 | P28: Marcelo Pereira | Q28: 129 | R28: Marcelo Pereira | S28: 152 | T28: Felipe Franca | U28: 154 | V28: Felipe Franca | W28: 184 | X28: =W5-W28 -> 183 | Y28: =W9-W28 -> 134 | Z28: =W27-W28 -> 14 | AA28: Victor Silva | AB28: 197 | AC28: =AB5-AB28 -> 225 | AD28: =AB9-AB28 -> 151 | AE28: =AB27-AB28 -> 13 | AF28: Felipe Franca | AG28: 206 | AH28: =AG5-AG28 -> 277 | AI28: =AG9-AG28 -> 187 | AJ28: =AG27-AG28 -> 2
B29: Marcelo Surerus | C29: 25 | D29: Hugo Bambirra | E29: 16 | F29: Victor Silva | G29: 30 | H29: Marcelo Surerus | I29: 37 | J29: Marcelo Sant'anna | K29: 50 | L29: Alan Silva | M29: 72 | N29: Alan Silva | O29: 102 | P29: Jean Paul | Q29: 129 | R29: Wesley Canuto | S29: 142 | T29: Eduardo Henrique | U29: 153 | V29: Rafael Cantoni | W29: 178 | X29: =W5-W29 -> 189 | Y29: =W9-W29 -> 140 | Z29: =W28-W29 -> 6 | AA29: Rafael Cantoni | AB29: 178 | AC29: =AB5-AB29 -> 244 | AD29: =AB9-AB29 -> 170 | AE29: =AB28-AB29 -> 19 | AF29: Wesley Canuto | AG29: 196 | AH29: =AG5-AG29 -> 287 | AI29: =AG9-AG29 -> 197 | AJ29: =AG28-AG29 -> 10
B30: Marcos Rodrigo | C30: 26 | D30: Daniel Nahum | E30: 15 | F30: Hugo Bambirra | G30: 29 | H30: Saulo Chagas | I30: 36 | J30: Victor Silva | K30: 47 | L30: Rodrigo Mercadante | M30: 71 | N30: Wesley Canuto | O30: 102 | P30: Eduardo Henrique | Q30: 111 | R30: Eduardo Henrique | S30: 129 | T30: Marcelo Pereira | U30: 142 | V30: Marcelo Pereira | W30: 132 | X30: =W5-W30 -> 235 | Y30: =W9-W30 -> 186 | Z30: =W29-W30 -> 46 | AA30: Wesley Canuto | AB30: 166 | AC30: =AB5-AB30 -> 256 | AD30: =AB9-AB30 -> 182 | AE30: =AB29-AB30 -> 12 | AF30: Victor Silva | AG30: 187 | AH30: =AG5-AG30 -> 296 | AI30: =AG9-AG30 -> 206 | AJ30: =AG29-AG30 -> 9
B31: Neylon Silva | C31: 27 | D31: Rafael Alves | E31: 14 | F31: Saulo Chagas | G31: 26 | H31: Pedro Mello | I31: 33 | J31: Marcelo Clemente | K31: 42 | L31: Wesley Canuto | M31: 68 | N31: Roberto Torres | O31: 93 | P31: Marcelo Clemente | Q31: 106 | R31: Marcelo Clemente | S31: 120 | T31: Wesley Canuto | U31: 142 | V31: Wesley Canuto | W31: 132 | X31: =W5-W31 -> 235 | Y31: =W9-W31 -> 186 | Z31: =W30-W31 -> 0 | AA31: Raphael Reis | AB31: 133 | AC31: =AB5-AB31 -> 289 | AD31: =AB9-AB31 -> 215 | AE31: =AB30-AB31 -> 33 | AF31: Raphael Reis | AG31: 133 | AH31: =AG5-AG31 -> 350 | AI31: =AG9-AG31 -> 260 | AJ31: =AG30-AG31 -> 54
B32: Pedro Fialho | C32: 28 | D32: Daniel Paranhos | E32: 13 | F32: Neylon Silva | G32: 26 | H32: Alan Silva | I32: 32 | J32: Raphael Reis | K32: 38 | L32: Victor Silva | M32: 60 | N32: Eduardo Henrique | O32: 93 | P32: Neylon Silva | Q32: 95 | R32: Neylon Silva | S32: 95 | T32: Saulo Chagas | U32: 117 | V32: Saulo Chagas | W32: 117 | X32: =W5-W32 -> 250 | Y32: =W9-W32 -> 201 | Z32: =W31-W32 -> 15 | AA32: Pedro Mello | AB32: 125 | AC32: =AB5-AB32 -> 297 | AD32: =AB9-AB32 -> 223 | AE32: =AB31-AB32 -> 8 | AF32: Pedro Mello | AG32: 125 | AH32: =AG5-AG32 -> 358 | AI32: =AG9-AG32 -> 268 | AJ32: =AG31-AG32 -> 8
B33: Pedro Mello | C33: 29 | D33: Raphael Reis | E33: 12 | F33: Rafael Miranda | G33: 24 | H33: Luis Almeida | I33: 32 | J33: Felipe Franca | K33: 36 | L33: Felipe Franca | M33: 60 | N33: Eduardo Dias | O33: 79 | P33: Roberto Torres | Q33: 93 | R33: Saulo Chagas | S33: 95 | T33: Roberto Torres | U33: 93 | V33: Raphael Reis | W33: 103 | X33: =W5-W33 -> 264 | Y33: =W9-W33 -> 215 | Z33: =W32-W33 -> 14 | AA33: Marcelo Pereira | AB33: 122 | AC33: =AB5-AB33 -> 300 | AD33: =AB9-AB33 -> 226 | AE33: =AB32-AB33 -> 3 | AF33: Marcelo Pereira | AG33: 112 | AH33: =AG5-AG33 -> 371 | AI33: =AG9-AG33 -> 281 | AJ33: =AG32-AG33 -> 13
B34: Rafael Cantoni | C34: 30 | D34: Neylon Silva | E34: 11 | F34: Heimar Mata | G34: 24 | H34: Hugo Bambirra | I34: 31 | J34: Pedro Mello | K34: 33 | L34: Raphael Reis | M34: 50 | N34: Neylon Silva | O34: 75 | P34: Saulo Chagas | Q34: 87 | R34: Roberto Torres | S34: 93 | T34: Neylon Silva | U34: 85 | V34: Pedro Mello | W34: 102 | X34: =W5-W34 -> 265 | Y34: =W9-W34 -> 216 | Z34: =W33-W34 -> 1 | AA34: Saulo Chagas | AB34: 107 | AC34: =AB5-AB34 -> 315 | AD34: =AB9-AB34 -> 241 | AE34: =AB33-AB34 -> 15 | AF34: Saulo Chagas | AG34: 97 | AH34: =AG5-AG34 -> 386 | AI34: =AG9-AG34 -> 296 | AJ34: =AG33-AG34 -> 15
B35: Rafael Miranda | C35: 31 | D35: Gabriel Veloso | E35: 10 | F35: Wesley Camargos | G35: 23 | H35: Wesley Canuto | I35: 26 | J35: Luis Almeida | K35: 32 | L35: Hugo Bambirra | M35: 49 | N35: Raphael Reis | O35: 70 | P35: Eduardo Dias | Q35: 69 | R35: Pedro Mello | S35: 89 | T35: Raphael Reis | U35: 81 | V35: Roberto Torres | W35: 93 | X35: =W5-W35 -> 274 | Y35: =W9-W35 -> 225 | Z35: =W34-W35 -> 9 | AA35: Roberto Torres | AB35: 93 | AC35: =AB5-AB35 -> 329 | AD35: =AB9-AB35 -> 255 | AE35: =AB34-AB35 -> 14 | AF35: Roberto Torres | AG35: 93 | AH35: =AG5-AG35 -> 390 | AI35: =AG9-AG35 -> 300 | AJ35: =AG34-AG35 -> 4
B36: Rafael Alves | C36: 32 | D36: Wesley Camargos | E36: 9 | F36: Marcelo Clemente | G36: 21 | H36: Neylon Silva | I36: 26 | J36: Hugo Bambirra | K36: 31 | L36: Saulo Chagas | M36: 48 | N36: Saulo Chagas | O36: 66 | P36: Pedro Mello | Q36: 69 | R36: Raphael Reis | S36: 81 | T36: Pedro Mello | U36: 79 | V36: Neylon Silva | W36: 75 | X36: =W5-W36 -> 292 | Y36: =W9-W36 -> 243 | Z36: =W35-W36 -> 18 | AA36: Neylon Silva | AB36: 65 | AC36: =AB5-AB36 -> 357 | AD36: =AB9-AB36 -> 283 | AE36: =AB35-AB36 -> 28 | AF36: Renato Cardoso | AG36: 58 | AH36: =AG5-AG36 -> 425 | AI36: =AG9-AG36 -> 335 | AJ36: =AG35-AG36 -> 35
B37: Raphael Reis | C37: 33 | D37: Saulo Chagas | E37: 8 | F37: Pedro Fialho | G37: 20 | H37: Wesley Camargos | I37: 23 | J37: Neylon Silva | K37: 26 | L37: Pedro Mello | M37: 47 | N37: Luis Almeida | O37: 58 | P37: Raphael Reis | Q37: 60 | R37: Eduardo Dias | S37: 59 | T37: Hugo Bambirra | U37: 52 | V37: Renato Cardoso | W37: 58 | X37: =W5-W37 -> 309 | Y37: =W9-W37 -> 260 | Z37: =W36-W37 -> 17 | AA37: Renato Cardoso | AB37: 58 | AC37: =AB5-AB37 -> 364 | AD37: =AB9-AB37 -> 290 | AE37: =AB36-AB37 -> 7 | AF37: Neylon Silva | AG37: 55 | AH37: =AG5-AG37 -> 428 | AI37: =AG9-AG37 -> 338 | AJ37: =AG36-AG37 -> 3
B38: Renato Cardoso | C38: 34 | D38: Roberto Torres | E38: 0 | F38: Marcelo Surerus | G38: 18 | H38: Marcelo Clemente | I38: 21 | J38: Saulo Chagas | K38: 25 | L38: Neylon Silva | M38: 47 | N38: Hugo Bambirra | O38: 52 | P38: Hugo Bambirra | Q38: 52 | R38: Hugo Bambirra | S38: 52 | T38: Eduardo Dias | U38: 49 | V38: Hugo Bambirra | W38: 52 | X38: =W5-W38 -> 315 | Y38: =W9-W38 -> 266 | Z38: =W37-W38 -> 6 | AA38: Wesley Camargos | AB38: 53 | AC38: =AB5-AB38 -> 369 | AD38: =AB9-AB38 -> 295 | AE38: =AB37-AB38 -> 5 | AF38: Hugo Bambirra | AG38: 52 | AH38: =AG5-AG38 -> 431 | AI38: =AG9-AG38 -> 341 | AJ38: =AG37-AG38 -> 3
B39: Robert Freitas | C39: 35 | D39: Wesley Canuto | E39: 0 | F39: Renato Cardoso | G39: 12 | H39: Heimar Mata | I39: 14 | J39: Renato Cardoso | K39: 23 | L39: Luis Almeida | M39: 41 | N39: Pedro Mello | O39: 47 | P39: Luis Almeida | Q39: 48 | R39: Wesley Camargos | S39: 49 | T39: Wesley Camargos | U39: 39 | V39: Eduardo Dias | W39: 39 | X39: =W5-W39 -> 328 | Y39: =W9-W39 -> 279 | Z39: =W38-W39 -> 13 | AA39: Hugo Bambirra | AB39: 52 | AC39: =AB5-AB39 -> 370 | AD39: =AB9-AB39 -> 296 | AE39: =AB38-AB39 -> 1 | AF39: Wesley Camargos | AG39: 43 | AH39: =AG5-AG39 -> 440 | AI39: =AG9-AG39 -> 350 | AJ39: =AG38-AG39 -> 9
B40: Rodrigo Mercadante | C40: 36 | D40: Heimar Mata | E40: 0 | F40: Luis Almeida | G40: 9 | H40: Renato Cardoso | I40: 12 | J40: Wesley Camargos | K40: 23 | L40: Wesley Camargos | M40: 40 | N40: Wesley Camargos | O40: 40 | P40: Renato Cardoso | Q40: 34 | R40: Luis Almeida | S40: 38 | T40: Renato Cardoso | U40: 34 | V40: Wesley Camargos | W40: 29 | X40: =W5-W40 -> 338 | Y40: =W9-W40 -> 289 | Z40: =W39-W40 -> 10 | AA40: Eduardo Dias | AB40: 29 | AC40: =AB5-AB40 -> 393 | AD40: =AB9-AB40 -> 319 | AE40: =AB39-AB40 -> 23 | AF40: João Fiuza | AG40: 20 | AH40: =AG5-AG40 -> 463 | AI40: =AG9-AG40 -> 373 | AJ40: =AG39-AG40 -> 23
B41: Saulo Chagas | C41: 37 | D41: Luis Almeida | E41: 0 | F41: Roberto Torres | G41: 0 | H41: Felipe Franca | I41: 12 | J41: João Fiuza | K41: 22 | L41: Renato Cardoso | M41: 34 | N41: Renato Cardoso | O41: 34 | P41: Wesley Camargos | Q41: 30 | R41: Renato Cardoso | S41: 34 | T41: Luis Almeida | U41: 28 | V41: Luis Almeida | W41: 18 | X41: =W5-W41 -> 349 | Y41: =W9-W41 -> 300 | Z41: =W40-W41 -> 11 | AA41: Luis Almeida | AB41: 8 | AC41: =AB5-AB41 -> 414 | AD41: =AB9-AB41 -> 340 | AE41: =AB40-AB41 -> 21 | AF41: Eduardo Dias | AG41: 19 | AH41: =AG5-AG41 -> 464 | AI41: =AG9-AG41 -> 374 | AJ41: =AG40-AG41 -> 1
B42: Victor Silva | C42: 38 | D42: João Fiuza | E42: 0 | F42: Wesley Canuto | G42: 0 | H42: Pedro Fialho | I42: 10 | J42: Rodrigo Mercadante | K42: 16 | L42: João Fiuza | M42: 12 | N42: João Fiuza | O42: 2 | P42: João Fiuza | Q42: 2 | R42: João Fiuza | S42: 30 | T42: João Fiuza | U42: 20 | V42: João Fiuza | W42: 10 | X42: =W5-W42 -> 357 | Y42: =W9-W42 -> 308 | Z42: =W41-W42 -> 8 | AA42: João Fiuza | AB42: 0 | AC42: =AB5-AB42 -> 422 | AD42: =AB9-AB42 -> 348 | AE42: =AB41-AB42 -> 8 | AF42: Heimar Mata | AG42: 0 | AH42: =AG5-AG42 -> 483 | AI42: =AG9-AG42 -> 393 | AJ42: =AG41-AG42 -> 19
B43: Wesley Bambirra | C43: 39 | D43: Renato Cardoso | E43: 0 | F43: João Fiuza | G43: 0 | H43: Victor Silva | I43: 0 | J43: Heimar Mata | K43: 14 | L43: Pedro Fialho | M43: 10 | N43: Heimar Mata | O43: 0 | P43: Heimar Mata | Q43: 0 | R43: Heimar Mata | S43: 0 | T43: Heimar Mata | U43: 0 | V43: Heimar Mata | W43: 0 | X43: =W5-W43 -> 367 | Y43: =W9-W43 -> 318 | Z43: =W42-W43 -> 10 | AA43: Heimar Mata | AB43: 0 | AC43: =AB5-AB43 -> 422 | AD43: =AB9-AB43 -> 348 | AE43: =AB42-AB43 -> 0 | AF43: Luis Almeida | AG43: 0 | AH43: =AG5-AG43 -> 483 | AI43: =AG9-AG43 -> 393 | AJ43: =AG42-AG43 -> 0
B44: Wesley Camargos | C44: 40 | D44: Felipe Franca | E44: 0 | F44: Felipe Franca | G44: 0 | H44: João Fiuza | I44: 0 | J44: Pedro Fialho | K44: 10 | L44: Heimar Mata | M44: 4 | N44: Pedro Fialho | O44: 0 | P44: Pedro Fialho | Q44: 0 | R44: Pedro Fialho | S44: 0 | T44: Pedro Fialho | U44: 0 | V44: Pedro Fialho | W44: 0 | X44: =W5-W44 -> 367 | Y44: =W9-W44 -> 318 | Z44: =W43-W44 -> 0 | AA44: Pedro Fialho | AB44: 0 | AC44: =AB5-AB44 -> 422 | AD44: =AB9-AB44 -> 348 | AE44: =AB43-AB44 -> 0 | AF44: Pedro Fialho | AG44: 0 | AH44: =AG5-AG44 -> 483 | AI44: =AG9-AG44 -> 393 | AJ44: =AG43-AG44 -> 0
B45: Wesley Canuto | C45: 41 | D45: Adriano Morato | E45: 0 | F45: Adriano Morato | G45: 0 | H45: Adriano Morato | I45: 0 | J45: Adriano Morato | K45: 0 | L45: Adriano Morato | M45: 0 | N45: Adriano Morato | O45: 0 | P45: Adriano Morato | Q45: 0 | R45: Adriano Morato | S45: 0 | T45: Adriano Morato | U45: 0 | V45: Adriano Morato | W45: 0 | X45: =W5-W45 -> 367 | Y45: =W9-W45 -> 318 | Z45: =W44-W45 -> 0 | AA45: Adriano Morato | AB45: 0 | AC45: =AB5-AB45 -> 422 | AD45: =AB9-AB45 -> 348 | AE45: =AB44-AB45 -> 0 | AF45: Adriano Morato | AG45: 0 | AH45: =AG5-AG45 -> 483 | AI45: =AG9-AG45 -> 393 | AJ45: =AG44-AG45 -> 0
C46: 42 | D46: Leandro Malias | E46: 0 | F46: Leandro Malias | G46: 0 | H46: Leandro Malias | I46: 0 | J46: Leandro Malias | K46: 0 | L46: Leandro Malias | M46: 0 | N46: Leandro Malias | O46: 0 | P46: Leandro Malias | Q46: 0 | R46: Leandro Malias | S46: 0 | T46: Leandro Malias | U46: 0 | V46: Leandro Malias | W46: 0 | X46: =W5-W46 -> 367 | Y46: =W9-W46 -> 318 | Z46: =W45-W46 -> 0 | AA46: Leandro Malias | AB46: 0 | AC46: =AB5-AB46 -> 422 | AD46: =AB9-AB46 -> 348 | AE46: =AB45-AB46 -> 0 | AF46: Leandro Malias | AG46: 0 | AH46: =AG5-AG46 -> 483 | AI46: =AG9-AG46 -> 393 | AJ46: =AG45-AG46 -> 0
C47: 43 | D47: Marcos Rodrigo | E47: 0 | F47: Marcos Rodrigo | G47: 0 | H47: Marcos Rodrigo | I47: 0 | J47: Marcos Rodrigo | K47: 0 | L47: Marcos Rodrigo | M47: 0 | N47: Marcos Rodrigo | O47: 0 | P47: Marcos Rodrigo | Q47: 0 | R47: Marcos Rodrigo | S47: 0 | T47: Marcos Rodrigo | U47: 0 | V47: Marcos Rodrigo | W47: 0 | X47: =W5-W47 -> 367 | Y47: =W9-W47 -> 318 | Z47: =W46-W47 -> 0 | AA47: Marcos Rodrigo | AB47: 0 | AC47: =AB5-AB47 -> 422 | AD47: =AB9-AB47 -> 348 | AE47: =AB46-AB47 -> 0 | AF47: Marcos Rodrigo | AG47: 0 | AH47: =AG5-AG47 -> 483 | AI47: =AG9-AG47 -> 393 | AJ47: =AG46-AG47 -> 0
C48: 44 | D48: Robert Freitas | E48: 0 | F48: Robert Freitas | G48: 0 | H48: Robert Freitas | I48: 0 | J48: Robert Freitas | K48: 0 | L48: Robert Freitas | M48: 0 | N48: Robert Freitas | O48: 0 | P48: Robert Freitas | Q48: 0 | R48: Robert Freitas | S48: 0 | T48: Robert Freitas | U48: 0 | V48: Robert Freitas | W48: 0 | X48: =W5-W48 -> 367 | Y48: =W9-W48 -> 318 | Z48: =W47-W48 -> 0 | AA48: Robert Freitas | AB48: 0 | AC48: =AB5-AB48 -> 422 | AD48: =AB9-AB48 -> 348 | AE48: =AB47-AB48 -> 0 | AF48: Robert Freitas | AG48: 0 | AH48: =AG5-AG48 -> 483 | AI48: =AG9-AG48 -> 393 | AJ48: =AG47-AG48 -> 0
C49: 45 | D49: Rodrigo Mercadante | E49: 0 | F49: Rodrigo Mercadante | G49: 0 | H49: Rodrigo Mercadante | I49: 0 | K49: 0 | N49: XXXXXXX | O49: 0 | R49: XXXXXXX | S49: 0 | T49: XXXXXXX | U49: 0 | V49: XXXXXXX | W49: 0 | X49: - | Y49: - | Z49: - | AC49: - | AD49: - | AE49: - | AF49: - | AG49: - | AH49: - | AI49: - | AJ49: -

Sheet CAMP EQUIPE EVOL
A1: 2021 | B1: OK | D1: OK | F1: OK | H1: OK | J1: OK | L1: OK | N1: OK | P1: OK | R1: OK | T1: OK | V1: OK | X1: DIF. LIDER | Y1: DIF. 3º | Z1: DIF. PRÓXIMO | AA1: OK | AC1: DIF. LIDER | AD1: DIF. 3º | AE1: DIF. PRÓXIMO
B2: 1ª etapa | D2: 2ª etapa | F2: 3ª etapa | H2: 4ª etapa | J2: 5ª etapa | L2: 6ª etapa | N2: 7ª etapa | P2: 8ª etapa | R2: 9ª etapa | T2: 10ª etapa | V2: 11ª etapa | AA2: 12ª etapa
D3: 0 | F3: 00:00:00 | H3: 00:00:00 | J3: 00:00:00 | L3: 00:00:00 | N3: 00:00:00 | P3: 00:00:00 | R3: 00:00:00 | T3: 00:00:00 | V3: 00:00:00 | AA3: 00:00:00
A4: EQUIPES | B4: EQUIPES | C4: Pontuação Geral | D4: EQUIPES | E4: Pontuação Geral | F4: EQUIPES | G4: Pontuação Geral | H4: EQUIPES | I4: Pontuação Geral | J4: EQUIPES | K4: Pontuação Geral | L4: EQUIPES | M4: Pontuação Geral | N4: Posição | O4: Pontos | P4: Posição | Q4: Pontos | R4: Posição | S4: Pontos | T4: Posição | U4: Pontos | V4: Posição | W4: Pontos | AA4: Posição | AB4: Pontos
A5: 1º | B5: VIAKART | C5: 114 | D5: VIAKART | E5: 253 | F5: VIAKART | G5: 253 | H5: VIAKART | I5: 245 | J5: SANTIAGO | K5: 356 | L5: VIAKART | M5: 458 | N5: SANTIAGO | O5: 575 | P5: SANTIAGO | Q5: 675 | R5: SANTIAGO | S5: 761 | T5: SANTIAGO | U5: 893 | V5: SANTIAGO | W5: 993 | X5: - | Y5: - | Z5: - | AA5: SANTIAGO | AB5: 1103 | AC5: - | AD5: - | AE5: -
B6: Fernando Medeiros | C6: 0 | D6: Fernando Medeiros | E6: 57 | F6: Fernando Medeiros | G6: 57 | H6: Roberto Torres | I6: 55 | J6: Daniel Nahum | K6: 98 | L6: Roberto Torres | M6: 93 | N6: Daniel Nahum | O6: 170 | P6: Daniel Nahum | Q6: 210 | R6: Daniel Nahum | S6: 236 | T6: Daniel Nahum | U6: 276 | V6: Daniel Nahum | W6: 328 | X6: - | Y6: - | Z6: - | AA6: Daniel Nahum | AB6: 360 | AC6: - | AD6: - | AE6: -
B7: Jarbas Reis | C7: 28 | D7: Jarbas Reis | E7: 28 | F7: Jarbas Reis | G7: 28 | H7: Jarbas Reis | I7: 74 | J7: Diego Silva | K7: 92 | L7: Jarbas Reis | M7: 117 | N7: Diego Silva | O7: 122 | P7: Diego Silva | Q7: 182 | R7: Diego Silva | S7: 232 | T7: Diego Silva | U7: 276 | V7: Diego Silva | W7: 324 | X7: - | Y7: - | Z7: - | AA7: Diego Silva | AB7: 358 | AC7: - | AD7: - | AE7: -
B8: Marcelo Pereira | C8: 60 | D8: Marcelo Pereira | E8: 110 | F8: Marcelo Pereira | G8: 110 | H8: Marcelo Pereira | I8: 90 | J8: Victor Silva | K8: 50 | L8: Marcelo Pereira | M8: 140 | N8: Victor Silva | O8: 105 | P8: Victor Silva | Q8: 105 | R8: Victor Silva | S8: 105 | T8: Victor Silva | U8: 153 | V8: Victor Silva | W8: 153 | X8: - | Y8: - | Z8: - | AA8: Victor Silva | AB8: 153 | AC8: - | AD8: - | AE8: -
B9: Leonardo Bosco | C9: 26 | D9: Leonardo Bosco | E9: 58 | F9: Leonardo Bosco | G9: 58 | H9: Leonardo Bosco | I9: 26 | J9: Rafael Cantoni | K9: 116 | L9: Leonardo Bosco | M9: 108 | N9: Rafael Cantoni | O9: 178 | P9: Rafael Cantoni | Q9: 178 | R9: Rafael Cantoni | S9: 188 | T9: Rafael Cantoni | U9: 188 | V9: Rafael Cantoni | W9: 188 | X9: - | Y9: - | Z9: - | AA9: Rafael Cantoni | AB9: 232 | AC9: - | AD9: - | AE9: -
B10: XXXXXX | C10: 0 | D10: XXXXXX | E10: 0 | F10: XXXXXX | G10: 0 | H10: XXXXXX | I10: 0 | J10: XXXXXX | K10: 0 | L10: XXXXXX | M10: 0 | N10: XXXXXX | O10: 0 | P10: XXXXXX | Q10: 0 | R10: XXXXXX | S10: 0 | T10: XXXXXX | U10: 0 | V10: XXXXXX | W10: 0 | X10: - | Y10: - | Z10: - | AA10: XXXXXX | AB10: 0 | AC10: - | AD10: - | AE10: -
A11: 2º | B11: SANTIAGO | C11: 114 | D11: SANTIAGO | E11: 242 | F11: SANTIAGO | G11: 242 | H11: SANTIAGO | I11: 244 | J11: VIAKART | K11: 355 | L11: VIAKART1 | M11: 453 | N11: VIAKART1 | O11: 563 | P11: VIAKART1 | Q11: 659 | R11: VIAKART1 | S11: 743 | T11: VIAKART1 | U11: 825 | V11: GUI FIGUEIREDO | W11: 931 | X11: =W5-W11 -> 62 | Y11: - | Z11: =W5-W11 -> 62 | AA11: GUI FIGUEIREDO | AB11: 1019 | AC11: =AB5-AB11 -> 84 | AD11: - | AE11: =AB5-AB11 -> 84
B12: Daniel Nahum | C12: 0 | D12: Daniel Nahum | E12: 52 | F12: Daniel Nahum | G12: 52 | H12: Daniel Nahum | I12: 54 | J12: Roberto Torres | K12: 93 | L12: Marcelo Surerus | M12: 146 | N12: Marcelo Surerus | O12: 180 | P12: Marcelo Surerus | Q12: 222 | R12: Marcelo Surerus | S12: 258 | T12: Marcelo Surerus | U12: 294 | V12: Guilherme Alves | W12: 340 | X12: - | Y12: - | Z12: - | AA12: Guilherme Alves | AB12: 390 | AC12: - | AD12: - | AE12: -
B13: Diego Silva | C13: 26 | D13: Diego Silva | E13: 66 | F13: Diego Silva | G13: 66 | H13: Diego Silva | I13: 66 | J13: Jarbas Reis | K13: 96 | L13: Gabriel Veloso | M13: 192 | N13: Gabriel Veloso | O13: 240 | P13: Gabriel Veloso | Q13: 272 | R13: Gabriel Veloso | S13: 320 | T13: Gabriel Veloso | U13: 346 | V13: Alexandre Melillo | W13: 311 | X13: - | Y13: - | Z13: - | AA13: Alexandre Melillo | AB13: 349 | AC13: - | AD13: - | AE13: -
B14: Victor Silva | C14: 50 | D14: Victor Silva | E14: 50 | F14: Victor Silva | G14: 50 | H14: Victor Silva | I14: 50 | J14: Marcelo Pereira | K14: 90 | L14: Hugo Bambirra | M14: 13 | N14: Hugo Bambirra | O14: 13 | P14: Hugo Bambirra | Q14: 13 | R14: Hugo Bambirra | S14: 13 | T14: Hugo Bambirra | U14: 13 | V14: Adriano Morato | W14: 0 | X14: - | Y14: - | Z14: - | AA14: Adriano Morato | AB14: 0 | AC14: - | AD14: - | AE14: -
B15: Rafael Cantoni | C15: 38 | D15: Rafael Cantoni | E15: 74 | F15: Rafael Cantoni | G15: 74 | H15: Rafael Cantoni | I15: 74 | J15: Leonardo Bosco | K15: 76 | L15: Felipe Franca | M15: 102 | N15: Felipe Franca | O15: 130 | P15: Felipe Franca | Q15: 152 | R15: Felipe Franca | S15: 152 | T15: Felipe Franca | U15: 172 | V15: Rafael Alves | W15: 280 | X15: - | Y15: - | Z15: - | AA15: Rafael Alves | AB15: 280 | AC15: - | AD15: - | AE15: -
B16: XXXXXX | C16: 0 | D16: XXXXXX | E16: 0 | F16: XXXXXX | G16: 0 | H16: XXXXXX | I16: 0 | J16: XXXXXX | K16: 0 | L16: XXXXXX | M16: 0 | N16: XXXXXX | O16: 0 | P16: XXXXXX | Q16: 0 | R16: XXXXXX | S16: 0 | T16: XXXXXX | U16: 0 | V16: XXXXXX | W16: 0 | X16: - | Y16: - | Z16: - | AA16: XXXXXX | AB16: 0 | AC16: - | AD16: - | AE16: -
A17: 3º | B17: TIRA GRILOS | C17: 113 | D17: LQN | E17: 204 | F17: CLEMENTE CAR | G17: 208 | H17: CLEMENTE CAR | I17: 208 | J17: CLEMENTE CAR | K17: 305 | L17: SANTIAGO | M17: 446 | N17: VIAKART | O17: 518 | P17: VIAKART | Q17: 587 | R17: GUI FIGUEIREDO | S17: 677 | T17: GUI FIGUEIREDO | U17: 805 | V17: VIAKART1 | W17: 880 | X17: =W5-W17 -> 113 | Y17: - | Z17: =W11-W17 -> 51 | AA17: ALPHA ENGENHARIA | AB17: 953 | AC17: =AB5-AB17 -> 150 | AD17: - | AE17: =AB11-AB17 -> 66
B18: Wesley Bambirra | C18: 44 | D18: Marcelo Sant'anna | E18: 84 | F18: Léo Oliveira | G18: 114 | H18: Léo Oliveira | I18: 114 | J18: Léo Oliveira | K18: 169 | L18: Daniel Nahum | M18: 138 | N18: Roberto Torres | O18: 93 | P18: Roberto Torres | Q18: 93 | R18: Guilherme Alves | S18: 258 | T18: Guilherme Alves | U18: 304 | V18: Marcelo Surerus | W18: 313 | X18: - | Y18: - | Z18: - | AA18: Marcelo Campos | AB18: 449 | AC18: - | AD18: - | AE18: -
B19: Jean Paul | C19: 17 | D19: Eduardo Dias | E19: 69 | F19: Heimar Mata | G19: 24 | H19: Heimar Mata | I19: 24 | J19: Heimar Mata | K19: 24 | L19: Diego Silva | M19: 122 | N19: Jarbas Reis | O19: 143 | P19: Jarbas Reis | Q19: 143 | R19: Alexandre Melillo | S19: 229 | T19: Alexandre Melillo | U19: 259 | V19: Gabriel Veloso | W19: 367 | X19: - | Y19: - | Z19: - | AA19: Raphael Reis | AB19: 121 | AC19: - | AD19: - | AE19: -
B20: Wesley Camargos | C20: 0 | D20: Marcos Rodrigo | E20: 0 | F20: Saulo Chagas | G20: 36 | H20: Saulo Chagas | I20: 36 | J20: Saulo Chagas | K20: 44 | L20: Victor Silva | M20: 50 | N20: Marcelo Pereira | O20: 140 | P20: Marcelo Pereira | Q20: 163 | R20: Adriano Morato | S20: 0 | T20: Adriano Morato | U20: 0 | V20: Hugo Bambirra | W20: 28 | X20: - | Y20: - | Z20: - | AA20: Marcelo Clemente | AB20: 334 | AC20: - | AD20: - | AE20: -
B21: Alan Silva | C21: 52 | D21: Daniel Paranhos | E21: 51 | F21: Rafael Miranda | G21: 34 | H21: Rafael Miranda | I21: 34 | J21: Rafael Miranda | K21: 68 | L21: Rafael Cantoni | M21: 136 | N21: Leonardo Bosco | O21: 142 | P21: Leonardo Bosco | Q21: 188 | R21: Rafael Alves | S21: 190 | T21: Rafael Alves | U21: 242 | V21: Felipe Franca | W21: 172 | X21: - | Y21: - | Z21: - | AA21: Luis Almeida | AB21: 49 | AC21: - | AD21: - | AE21: -
B22: XXXXXX | C22: 0 | D22: XXXXXX | E22: 0 | F22: XXXXXX | G22: 0 | H22: XXXXXX | I22: 0 | J22: XXXXXX | K22: 0 | L22: XXXXXX | M22: 0 | N22: XXXXXX | O22: 0 | P22: XXXXXX | Q22: 0 | R22: XXXXXX | S22: 0 | T22: XXXXXX | U22: 0 | V22: XXXXXX | W22: 0 | X22: - | Y22: - | Z22: - | AA22: XXXXXX | AB22: 0 | AC22: - | AD22: - | AE22: -
A23: 4º | B23: LQN | C23: 101 | D23: CLEMENTE CAR | E23: 199 | F23: TIRA GRILOS | G23: 207 | H23: TIRA GRILOS | I23: 207 | J23: VIAKART1 | K23: 305 | L23: CLEMENTE CAR | M23: 392 | N23: GUI FIGUEIREDO | O23: 493 | P23: GUI FIGUEIREDO | Q23: 570 | R23: VIAKART | S23: 646 | T23: ALPHA ENGENHARIA | U23: 719 | V23: ALPHA ENGENHARIA | W23: 850 | X23: =W5-W23 -> 143 | Y23: =W$17-W23 -> 30 | Z23: =W17-W23 -> 30 | AA23: VIAKART1 | AB23: 926 | AC23: =AB5-AB23 -> 177 | AD23: =AB$17-AB23 -> 27 | AE23: =AB17-AB23 -> 27
B24: Marcelo Sant'anna | C24: 42 | D24: Léo Oliveira | E24: 115 | F24: Wesley Bambirra | G24: 90 | H24: Wesley Bambirra | I24: 90 | J24: Marcelo Surerus | K24: 102 | L24: Léo Oliveira | M24: 217 | N24: Guilherme Alves | O24: 174 | P24: Guilherme Alves | Q24: 208 | R24: Roberto Torres | S24: 93 | T24: Marcelo Campos | U24: 339 | V24: Marcelo Campos | W24: 394 | X24: - | Y24: - | Z24: - | AA24: Marcelo Surerus | AB24: 313 | AC24: - | AD24: - | AE24: -
B25: Eduardo Dias | C25: 46 | D25: Heimar Mata | E25: 24 | F25: Jean Paul | G25: 65 | H25: Jean Paul | I25: 65 | J25: Gabriel Veloso | K25: 142 | L25: Heimar Mata | M25: 24 | N25: Alexandre Melillo | O25: 172 | P25: Alexandre Melillo | Q25: 195 | R25: Jarbas Reis | S25: 179 | T25: Raphael Reis | U25: 91 | V25: Raphael Reis | W25: 121 | X25: - | Y25: - | Z25: - | AA25: Gabriel Veloso | AB25: 413 | AC25: - | AD25: - | AE25: -
B26: Marcos Rodrigo | C26: 0 | D26: Saulo Chagas | E26: 26 | F26: Wesley Camargos | G26: 0 | H26: Wesley Camargos | I26: 0 | J26: Hugo Bambirra | K26: 13 | L26: Saulo Chagas | M26: 51 | N26: Adriano Morato | O26: 0 | P26: Adriano Morato | Q26: 0 | R26: Marcelo Pereira | S26: 168 | T26: Marcelo Clemente | U26: 240 | V26: Marcelo Clemente | W26: 286 | X26: - | Y26: - | Z26: - | AA26: Hugo Bambirra | AB26: 28 | AC26: - | AD26: - | AE26: -
B27: Daniel Paranhos | C27: 13 | D27: Rafael Miranda | E27: 34 | F27: Alan Silva | G27: 52 | H27: Alan Silva | I27: 52 | J27: Felipe Franca | K27: 48 | L27: Rafael Miranda | M27: 100 | N27: Rafael Alves | O27: 147 | P27: Rafael Alves | Q27: 167 | R27: Leonardo Bosco | S27: 206 | T27: Luis Almeida | U27: 49 | V27: Luis Almeida | W27: 49 | X27: - | Y27: - | Z27: - | AA27: Felipe Franca | AB27: 172 | AC27: - | AD27: - | AE27: -
B28: XXXXXX | C28: 0 | D28: XXXXXX | E28: 0 | F28: XXXXXX | G28: 0 | H28: XXXXXX | I28: 0 | J28: XXXXXX | K28: 0 | L28: XXXXXX | M28: 0 | N28: XXXXXX | O28: 0 | P28: XXXXXX | Q28: 0 | R28: XXXXXX | S28: 0 | T28: XXXXXX | U28: 0 | V28: XXXXXX | W28: 0 | X28: - | Y28: - | Z28: - | AA28: XXXXXX | AB28: 0 | AC28: - | AD28: - | AE28: -
A29: 5º | B29: CLEMENTE CAR | C29: 97 | D29: TIRA GRILOS | E29: 191 | F29: LQN | G29: 204 | H29: RBC | I29: 204 | J29: RBC | K29: 289 | L29: GUI FIGUEIREDO | M29: 383 | N29: CLEMENTE CAR | O29: 468 | P29: CLEMENTE CAR | Q29: 535 | R29: CLEMENTE CAR | S29: 645 | T29: CLEMENTE CAR | U29: 707 | V29: CLEMENTE CAR | W29: 767 | X29: =W5-W29 -> 226 | Y29: =W$17-W29 -> 113 | Z29: =W23-W29 -> 83 | AA29: CLEMENTE CAR | AB29: 871 | AC29: =AB5-AB29 -> 232 | AD29: =AB$17-AB29 -> 82 | AE29: =AB23-AB29 -> 55
B30: Léo Oliveira | C30: 55 | D30: Wesley Bambirra | E30: 92 | F30: Marcelo Sant'anna | G30: 84 | H30: Eduardo Henrique | I30: 59 | J30: Eduardo Henrique | K30: 75 | L30: Guilherme Alves | M30: 128 | N30: Léo Oliveira | O30: 253 | P30: Léo Oliveira | Q30: 253 | R30: Léo Oliveira | S30: 299 | T30: Léo Oliveira | U30: 301 | V30: Léo Oliveira | W30: 361 | X30: - | Y30: - | Z30: - | AA30: Léo Oliveira | AB30: 423 | AC30: - | AD30: - | AE30: -
B31: Heimar Mata | C31: 0 | D31: Jean Paul | E31: 33 | F31: Eduardo Dias | G31: 69 | H31: Cláudio Dumont | I31: 108 | J31: Cláudio Dumont | K31: 156 | L31: Alexandre Melillo | M31: 134 | N31: Heimar Mata | O31: 24 | P31: Heimar Mata | Q31: 24 | R31: Heimar Mata | S31: 24 | T31: Heimar Mata | U31: 24 | V31: Heimar Mata | W31: 24 | X31: - | Y31: - | Z31: - | AA31: Heimar Mata | AB31: 24 | AC31: - | AD31: - | AE31: -
B32: Saulo Chagas | C32: 8 | D32: Wesley Camargos | E32: 14 | F32: Marcos Rodrigo | G32: 0 | H32: Pedro Mello | I32: 37 | J32: Pedro Mello | K32: 37 | L32: Adriano Morato | M32: 0 | N32: Saulo Chagas | O32: 72 | P32: Saulo Chagas | Q32: 95 | R32: Saulo Chagas | S32: 117 | T32: Saulo Chagas | U32: 117 | V32: Saulo Chagas | W32: 117 | X32: - | Y32: - | Z32: - | AA32: Saulo Chagas | AB32: 117 | AC32: - | AD32: - | AE32: -
B33: Rafael Miranda | C33: 34 | D33: Alan Silva | E33: 52 | F33: Daniel Paranhos | G33: 51 | H33: Neylon Silva | I33: 0 | J33: Neylon Silva | K33: 21 | L33: Rafael Alves | M33: 121 | N33: Rafael Miranda | O33: 119 | P33: Rafael Miranda | Q33: 163 | R33: Rafael Miranda | S33: 205 | T33: Rafael Miranda | U33: 265 | V33: Rafael Miranda | W33: 265 | X33: - | Y33: - | Z33: - | AA33: Rafael Miranda | AB33: 307 | AC33: - | AD33: - | AE33: -
B34: XXXXXX | C34: 0 | D34: XXXXXX | E34: 0 | F34: XXXXXX | G34: 0 | H34: XXXXXX | I34: 0 | J34: XXXXXX | K34: 0 | L34: XXXXXX | M34: 0 | N34: XXXXXX | O34: 0 | P34: XXXXXX | Q34: 0 | R34: XXXXXX | S34: 0 | T34: XXXXXX | U34: 0 | V34: XXXXXX | W34: 0 | X34: - | Y34: - | Z34: - | AA34: XXXXXX | AB34: 0 | AC34: - | AD34: - | AE34: -
A35: 6º | B35: RBC | C35: 90 | D35: GUI FIGUEIREDO | E35: 178 | F35: GUI FIGUEIREDO | G35: 181 | H35: LQN | I35: 204 | J35: TIRA GRILOS | K35: 285 | L35: ALPHA ENGENHARIA | M35: 369 | N35: ALPHA ENGENHARIA | O35: 444 | P35: TIRA GRILOS | Q35: 523 | R35: ALPHA ENGENHARIA | S35: 615 | T35: VIAKART | U35: 684 | V35: VIAKART | W35: 712 | X35: =W5-W35 -> 281 | Y35: =W$17-W35 -> 168 | Z35: =W29-W35 -> 55 | AA35: VIAKART | AB35: 764 | AC35: =AB5-AB35 -> 339 | AD35: =AB$17-AB35 -> 189 | AE35: =AB29-AB35 -> 107
B36: Eduardo Henrique | C36: 19 | D36: Guilherme Alves | E36: 58 | F36: Guilherme Alves | G36: 54 | H36: Marcelo Sant'anna | I36: 84 | J36: Wesley Bambirra | K36: 138 | L36: Marcelo Campos | M36: 189 | N36: Marcelo Campos | O36: 231 | P36: Wesley Bambirra | Q36: 176 | R36: Marcelo Campos | S36: 307 | T36: Roberto Torres | U36: 93 | V36: Roberto Torres | W36: 93 | X36: - | Y36: - | Z36: - | AA36: Roberto Torres | AB36: 93 | AC36: - | AD36: - | AE36: -
B37: Cláudio Dumont | C37: 48 | D37: Alexandre Melillo | E37: 60 | F37: Alexandre Melillo | G37: 70 | H37: Eduardo Dias | I37: 69 | J37: Jean Paul | K37: 81 | L37: Raphael Reis | M37: 36 | N37: Raphael Reis | O37: 48 | P37: Jean Paul | Q37: 152 | R37: Raphael Reis | S37: 69 | T37: Jarbas Reis | U37: 207 | V37: Jarbas Reis | W37: 235 | X37: - | Y37: - | Z37: - | AA37: Jarbas Reis | AB37: 287 | AC37: - | AD37: - | AE37: -
B38: Pedro Mello | C38: 23 | D38: Adriano Morato | E38: 0 | F38: Adriano Morato | G38: 0 | H38: Marcos Rodrigo | I38: 0 | J38: Wesley Camargos | K38: 14 | L38: Marcelo Clemente | M38: 95 | N38: Marcelo Clemente | O38: 116 | P38: Wesley Camargos | Q38: 14 | R38: Marcelo Clemente | S38: 190 | T38: Marcelo Pereira | U38: 168 | V38: Marcelo Pereira | W38: 168 | X38: - | Y38: - | Z38: - | AA38: Marcelo Pereira | AB38: 168 | AC38: - | AD38: - | AE38: -
B39: Neylon Silva | C39: 0 | D39: Rafael Alves | E39: 60 | F39: Rafael Alves | G39: 57 | H39: Daniel Paranhos | I39: 51 | J39: Alan Silva | K39: 52 | L39: Luis Almeida | M39: 49 | N39: Luis Almeida | O39: 49 | P39: Alan Silva | Q39: 181 | R39: Luis Almeida | S39: 49 | T39: Leonardo Bosco | U39: 216 | V39: Leonardo Bosco | W39: 216 | X39: - | Y39: - | Z39: - | AA39: Leonardo Bosco | AB39: 216 | AC39: - | AD39: - | AE39: -
B40: XXXXXX | C40: 0 | D40: XXXXXX | E40: 0 | F40: XXXXXX | G40: 0 | H40: XXXXXX | I40: 0 | J40: XXXXXX | K40: 0 | L40: XXXXXX | M40: 0 | N40: XXXXXX | O40: 0 | P40: XXXXXX | Q40: 0 | R40: XXXXXX | S40: 0 | T40: XXXXXX | U40: 0 | V40: XXXXXX | W40: 0 | X40: - | Y40: - | Z40: - | AA40: XXXXXX | AB40: 0 | AC40: - | AD40: - | AE40: -
A41: 7º | B41: GUI FIGUEIREDO | C41: 76 | D41: RBC | E41: 155 | F41: ALPHA ENGENHARIA | G41: 167 | H41: GUI FIGUEIREDO | I41: 181 | J41: LQN | K41: 285 | L41: RBC | M41: 354 | N41: RBC | O41: 414 | P41: ALPHA ENGENHARIA | Q41: 515 | R41: DELCAR | S41: 589 | T41: TIRA GRILOS | U41: 654 | V41: TIRA GRILOS | W41: 712 | X41: =W5-W41 -> 281 | Y41: =W$17-W41 -> 168 | Z41: =W35-W41 -> 0 | AA41: DELCAR | AB41: 759 | AC41: =AB5-AB41 -> 344 | AD41: =AB$17-AB41 -> 194 | AE41: =AB35-AB41 -> 5
B42: Guilherme Alves | C42: 32 | D42: Eduardo Henrique | E42: 47 | F42: Marcelo Campos | G42: 95 | H42: Guilherme Alves | I42: 54 | J42: Marcelo Sant'anna | K42: 122 | L42: Eduardo Henrique | M42: 103 | N42: Eduardo Henrique | O42: 103 | P42: Marcelo Campos | Q42: 267 | R42: Leonardo Bastos | S42: 242 | T42: Wesley Bambirra | U42: 208 | V42: Wesley Bambirra | W42: 220 | X42: - | Y42: - | Z42: - | AA42: Leonardo Bastos | AB42: 320 | AC42: - | AD42: - | AE42: -
B43: Alexandre Melillo | C43: 30 | D43: Cláudio Dumont | E43: 65 | F43: Raphael Reis | G43: 28 | H43: Alexandre Melillo | I43: 70 | J43: Eduardo Dias | K43: 84 | L43: Cláudio Dumont | M43: 173 | N43: Cláudio Dumont | O43: 233 | P43: Raphael Reis | Q43: 69 | R43: Rodrigo Mercadante | S43: 277 | T43: Jean Paul | U43: 192 | V43: Jean Paul | W43: 192 | X43: - | Y43: - | Z43: - | AA43: Rodrigo Mercadante | AB43: 339 | AC43: - | AD43: - | AE43: -
B44: Adriano Morato | C44: 0 | D44: Pedro Mello | E44: 43 | F44: Marcelo Clemente | G44: 21 | H44: Adriano Morato | I44: 0 | J44: Marcos Rodrigo | K44: 0 | L44: Pedro Mello | M44: 57 | N44: Pedro Mello | O44: 57 | P44: Marcelo Clemente | Q44: 130 | R44: Leandro Malias | S44: 0 | T44: Wesley Camargos | U44: 31 | V44: Wesley Camargos | W44: 55 | X44: - | Y44: - | Z44: - | AA44: Leandro Malias | AB44: 0 | AC44: - | AD44: - | AE44: -
B45: Rafael Alves | C45: 14 | D45: Neylon Silva | E45: 0 | F45: Luis Almeida | G45: 23 | H45: Rafael Alves | I45: 57 | J45: Daniel Paranhos | K45: 79 | L45: Neylon Silva | M45: 21 | N45: Neylon Silva | O45: 21 | P45: Luis Almeida | Q45: 49 | R45: João Fiuza | S45: 70 | T45: Alan Silva | U45: 223 | V45: Alan Silva | W45: 245 | X45: - | Y45: - | Z45: - | AA45: João Fiuza | AB45: 100 | AC45: - | AD45: - | AE45: -
B46: XXXXXX | C46: 0 | D46: XXXXXX | E46: 0 | F46: XXXXXX | G46: 0 | H46: XXXXXX | I46: 0 | J46: XXXXXX | K46: 0 | L46: XXXXXX | M46: 0 | N46: XXXXXX | O46: 0 | P46: XXXXXX | Q46: 0 | R46: XXXXXX | S46: 0 | T46: XXXXXX | U46: 0 | V46: XXXXXX | W46: 0 | X46: - | Y46: - | Z46: - | AA46: XXXXXX | AB46: 0 | AC46: - | AD46: - | AE46: -
A47: 8º | B47: ALPHA ENGENHARIA | C47: 73 | D47: ALPHA ENGENHARIA | E47: 125 | F47: RBC | G47: 155 | H47: ALPHA ENGENHARIA | I47: 176 | J47: GUI FIGUEIREDO | K47: 283 | L47: LQN | M47: 354 | N47: LQN | O47: 406 | P47: DELCAR | Q47: 505 | R47: TIRA GRILOS | S47: 573 | T47: LQN | U47: 638 | V47: LQN | W47: 706 | X47: =W5-W47 -> 287 | Y47: =W$17-W47 -> 174 | Z47: =W41-W47 -> 6 | AA47: LQN | AB47: 758 | AC47: =AB5-AB47 -> 345 | AD47: =AB$17-AB47 -> 195 | AE47: =AB41-AB47 -> 1
B48: Marcelo Campos | C48: 40 | D48: Marcelo Campos | E48: 51 | F48: Eduardo Henrique | G48: 47 | H48: Marcelo Campos | I48: 99 | J48: Guilherme Alves | K48: 102 | L48: Marcelo Sant'anna | M48: 168 | N48: Marcelo Sant'anna | O48: 187 | P48: Leonardo Bastos | Q48: 204 | R48: Wesley Bambirra | S48: 190 | T48: Marcelo Sant'anna | U48: 311 | V48: Marcelo Sant'anna | W48: 351 | X48: - | Y48: - | Z48: - | AA48: Marcelo Sant'anna | AB48: 403 | AC48: - | AD48: - | AE48: -
B49: Raphael Reis | C49: 12 | D49: Raphael Reis | E49: 34 | F49: Cláudio Dumont | G49: 65 | H49: Raphael Reis | I49: 16 | J49: Alexandre Melillo | K49: 92 | L49: Eduardo Dias | M49: 84 | N49: Eduardo Dias | O49: 99 | P49: Rodrigo Mercadante | Q49: 231 | R49: Jean Paul | S49: 171 | T49: Eduardo Dias | U49: 99 | V49: Eduardo Dias | W49: 99 | X49: - | Y49: - | Z49: - | AA49: Eduardo Dias | AB49: 99 | AC49: - | AD49: - | AE49: -
B50: Marcelo Clemente | C50: 21 | D50: Marcelo Clemente | E50: 21 | F50: Pedro Mello | G50: 43 | H50: Marcelo Clemente | I50: 21 | J50: Adriano Morato | K50: 0 | L50: Marcos Rodrigo | M50: 0 | N50: Marcos Rodrigo | O50: 0 | P50: Leandro Malias | Q50: 0 | R50: Wesley Camargos | S50: 31 | T50: Marcos Rodrigo | U50: 0 | V50: Marcos Rodrigo | W50: 0 | X50: - | Y50: - | Z50: - | AA50: Marcos Rodrigo | AB50: 0 | AC50: - | AD50: - | AE50: -
B51: Luis Almeida | C51: 0 | D51: Luis Almeida | E51: 19 | F51: Neylon Silva | G51: 0 | H51: Luis Almeida | I51: 40 | J51: Rafael Alves | K51: 89 | L51: Daniel Paranhos | M51: 102 | N51: Daniel Paranhos | O51: 120 | P51: João Fiuza | Q51: 70 | R51: Alan Silva | S51: 181 | T51: Daniel Paranhos | U51: 228 | V51: Daniel Paranhos | W51: 256 | X51: - | Y51: - | Z51: - | AA51: Daniel Paranhos | AB51: 256 | AC51: - | AD51: - | AE51: -
B52: XXXXXX | C52: 0 | D52: XXXXXX | E52: 0 | F52: XXXXXX | G52: 0 | H52: XXXXXX | I52: 0 | J52: XXXXXX | K52: 0 | L52: XXXXXX | M52: 0 | N52: XXXXXX | O52: 0 | P52: XXXXXX | Q52: 0 | R52: XXXXXX | S52: 0 | T52: XXXXXX | U52: 0 | V52: XXXXXX | W52: 0 | X52: - | Y52: - | Z52: - | AA52: XXXXXX | AB52: 0 | AC52: - | AD52: - | AE52: -
A53: 9º | B53: VIAKART1 | C53: 44 | D53: VIAKART1 | E53: 101 | F53: DELCAR | G53: 124 | H53: VIAKART1 | I53: 171 | J53: ALPHA ENGENHARIA | K53: 263 | L53: TIRA GRILOS | M53: 337 | N53: TIRA GRILOS | O53: 404 | P53: LQN | Q53: 484 | R53: LQN | S53: 566 | T53: DELCAR | U53: 625 | V53: DELCAR | W53: 693 | X53: =W5-W53 -> 300 | Y53: =W$17-W53 -> 187 | Z53: =W47-W53 -> 13 | AA53: TIRA GRILOS | AB53: 755 | AC53: =AB5-AB53 -> 348 | AD53: =AB$17-AB53 -> 198 | AE53: =AB47-AB53 -> 3
B54: Marcelo Surerus | C54: 18 | D54: Marcelo Surerus | E54: 18 | F54: Leonardo Bastos | G54: 66 | H54: Marcelo Surerus | I54: 52 | J54: Marcelo Campos | K54: 141 | L54: Wesley Bambirra | M54: 138 | N54: Wesley Bambirra | O54: 138 | P54: Marcelo Sant'anna | Q54: 221 | R54: Marcelo Sant'anna | S54: 273 | T54: Leonardo Bastos | U54: 278 | V54: Leonardo Bastos | W54: 320 | X54: - | Y54: - | Z54: - | AA54: Wesley Bambirra | AB54: 220 | AC54: - | AD54: - | AE54: -
B55: Gabriel Veloso | C55: 10 | D55: Gabriel Veloso | E55: 54 | F55: Rodrigo Mercadante | G55: 0 | H55: Gabriel Veloso | I55: 82 | J55: Raphael Reis | K55: 16 | L55: Jean Paul | M55: 103 | N55: Jean Paul | O55: 126 | P55: Eduardo Dias | Q55: 99 | R55: Eduardo Dias | S55: 99 | T55: Rodrigo Mercadante | U55: 277 | V55: Rodrigo Mercadante | W55: 303 | X55: - | Y55: - | Z55: - | AA55: Jean Paul | AB55: 218 | AC55: - | AD55: - | AE55: -
B56: Hugo Bambirra | C56: 16 | D56: Hugo Bambirra | E56: 29 | F56: Leandro Malias | G56: 0 | H56: Hugo Bambirra | I56: 13 | J56: Marcelo Clemente | K56: 57 | L56: Wesley Camargos | M56: 14 | N56: Wesley Camargos | O56: 14 | P56: Marcos Rodrigo | Q56: 0 | R56: Marcos Rodrigo | S56: 0 | T56: Leandro Malias | U56: 0 | V56: Leandro Malias | W56: 0 | X56: - | Y56: - | Z56: - | AA56: Wesley Camargos | AB56: 55 | AC56: - | AD56: - | AE56: -
B57: Felipe Franca | C57: 0 | D57: Felipe Franca | E57: 0 | F57: João Fiuza | G57: 20 | H57: Felipe Franca | I57: 24 | J57: Luis Almeida | K57: 49 | L57: Alan Silva | M57: 82 | N57: Alan Silva | O57: 126 | P57: Daniel Paranhos | Q57: 164 | R57: Daniel Paranhos | S57: 194 | T57: João Fiuza | U57: 70 | V57: João Fiuza | W57: 70 | X57: - | Y57: - | Z57: - | AA57: Alan Silva | AB57: 262 | AC57: - | AD57: - | AE57: -
B58: XXXXXX | C58: 0 | D58: XXXXXX | E58: 0 | F58: Roberto Torres | G58: 38 | H58: XXXXXX | I58: 0 | J58: XXXXXX | K58: 0 | L58: XXXXXX | M58: 0 | N58: XXXXXX | O58: 0 | P58: XXXXXX | Q58: 0 | R58: XXXXXX | S58: 0 | T58: XXXXXX | U58: 0 | V58: XXXXXX | W58: 0 | X58: - | Y58: - | Z58: - | AA58: XXXXXX | AB58: 0 | AC58: - | AD58: - | AE58: -
A59: 10º | B59: DELCAR | C59: 36 | D59: DELCAR | E59: 70 | F59: VIAKART1 | G59: 112 | H59: DELCAR | I59: 124 | J59: DELCAR | K59: 231 | L59: DELCAR | M59: 295 | N59: DELCAR | O59: 375 | P59: RBC | Q59: 474 | R59: RBC | S59: 530 | T59: RBC | U59: 608 | V59: RBC | W59: 675 | X59: =W5-W59 -> 318 | Y59: =W$17-W59 -> 205 | Z59: =W53-W59 -> 18 | AA59: RBC | AB59: 722 | AC59: =AB5-AB59 -> 381 | AD59: =AB$17-AB59 -> 231 | AE59: =AB53-AB59 -> 33
B60: Leonardo Bastos | C60: 36 | D60: Leonardo Bastos | E60: 70 | F60: Marcelo Surerus | G60: 19 | H60: Leonardo Bastos | I60: 46 | J60: Leonardo Bastos | K60: 98 | L60: Leonardo Bastos | M60: 122 | N60: Leonardo Bastos | O60: 152 | P60: Eduardo Henrique | Q60: 121 | R60: Eduardo Henrique | S60: 145 | T60: Eduardo Henrique | U60: 200 | V60: Eduardo Henrique | W60: 244 | X60: - | Y60: - | Z60: - | AA60: Eduardo Henrique | AB60: 244 | AC60: - | AD60: - | AE60: -
B61: Rodrigo Mercadante | C61: 0 | D61: Rodrigo Mercadante | E61: 0 | F61: Gabriel Veloso | G61: 65 | H61: Rodrigo Mercadante | I61: 36 | J61: Rodrigo Mercadante | K61: 91 | L61: Rodrigo Mercadante | M61: 131 | N61: Rodrigo Mercadante | O61: 181 | P61: Cláudio Dumont | Q61: 233 | R61: Cláudio Dumont | S61: 265 | T61: Cláudio Dumont | U61: 265 | V61: Cláudio Dumont | W61: 265 | X61: - | Y61: - | Z61: - | AA61: Cláudio Dumont | AB61: 284 | AC61: - | AD61: - | AE61: -
B62: Leandro Malias | C62: 0 | D62: Leandro Malias | E62: 0 | F62: Hugo Bambirra | G62: 28 | H62: Leandro Malias | I62: 0 | J62: Leandro Malias | K62: 0 | L62: Leandro Malias | M62: 0 | N62: Leandro Malias | O62: 0 | P62: Pedro Mello | Q62: 79 | R62: Pedro Mello | S62: 79 | T62: Pedro Mello | U62: 102 | V62: Pedro Mello | W62: 125 | X62: - | Y62: - | Z62: - | AA62: Pedro Mello | AB62: 125 | AC62: - | AD62: - | AE62: -
B63: João Fiuza | C63: 0 | D63: João Fiuza | E63: 0 | F63: Felipe Franca | G63: 0 | H63: João Fiuza | I63: 42 | J63: João Fiuza | K63: 42 | L63: João Fiuza | M63: 42 | N63: João Fiuza | O63: 42 | P63: Neylon Silva | Q63: 41 | R63: Neylon Silva | S63: 41 | T63: Neylon Silva | U63: 41 | V63: Neylon Silva | W63: 41 | X63: - | Y63: - | Z63: - | AA63: Neylon Silva | AB63: 69 | AC63: - | AD63: - | AE63: -
B64: Roberto Torres | C64: 0 | D64: Roberto Torres | E64: 0 | F64: XXXXXX | G64: 0 | H64: XXXXXX | I64: 0 | J64: XXXXXX | K64: 0 | L64: XXXXXX | M64: 0 | N64: XXXXXX | O64: 0 | P64: XXXXXX | Q64: 0 | R64: XXXXXX | S64: 0 | T64: XXXXXX | U64: 0 | V64: XXXXXX | W64: 0 | X64: - | Y64: - | Z64: - | AA64: XXXXXX | AB64: 0 | AC64: - | AD64: - | AE64: -
A65: 11º | B65: AST ESTRUTURAS | C65: 20 | D65: AST ESTRUTURAS | E65: 32 | F65: AST ESTRUTURAS | G65: 56 | H65: AST ESTRUTURAS | I65: 89 | J65: AST ESTRUTURAS | K65: 109 | L65: AST ESTRUTURAS | M65: 143 | N65: AST ESTRUTURAS | O65: 183 | P65: AST ESTRUTURAS | Q65: 195 | R65: AST ESTRUTURAS | S65: 206 | T65: AST ESTRUTURAS | U65: 230 | V65: AST ESTRUTURAS | W65: 264 | AA65: AST ESTRUTURAS | AB65: 304
B66: Pedro Fialho | C66: 20 | D66: Pedro Fialho | E66: 20 | F66: Pedro Fialho | G66: 20 | H66: Pedro Fialho | I66: 0 | J66: Pedro Fialho | K66: 20 | L66: Pedro Fialho | M66: 20 | N66: Pedro Fialho | O66: 20 | P66: Pedro Fialho | Q66: 20 | R66: Pedro Fialho | S66: 20 | T66: Pedro Fialho | U66: 20 | V66: Pedro Fialho | W66: 20 | AA66: Pedro Fialho | AB66: 20
B67: Wesley Canuto | C67: 0 | D67: Wesley Canuto | E67: 0 | F67: Wesley Canuto | G67: 36 | H67: Wesley Canuto | I67: 78 | J67: Wesley Canuto | K67: 78 | L67: Wesley Canuto | M67: 112 | N67: Wesley Canuto | O67: 152 | P67: Wesley Canuto | Q67: 152 | R67: Wesley Canuto | S67: 152 | T67: Wesley Canuto | U67: 152 | V67: Wesley Canuto | W67: 186 | AA67: Wesley Canuto | AB67: 226
B68: Renato Cardoso | C68: 0 | D68: Renato Cardoso | E68: 12 | F68: Renato Cardoso | G68: 0 | H68: Renato Cardoso | I68: 11 | J68: Renato Cardoso | K68: 11 | L68: Renato Cardoso | M68: 11 | N68: Renato Cardoso | O68: 11 | P68: Renato Cardoso | Q68: 23 | R68: Renato Cardoso | S68: 34 | T68: Renato Cardoso | U68: 58 | V68: Renato Cardoso | W68: 58 | AA68: Renato Cardoso | AB68: 58
B69: Robert Freitas | C69: 0 | D69: Robert Freitas | E69: 0 | F69: Robert Freitas | G69: 0 | H69: Robert Freitas | I69: 0 | J69: Robert Freitas | K69: 0 | L69: Robert Freitas | M69: 0 | N69: Robert Freitas | O69: 0 | P69: Robert Freitas | Q69: 0 | R69: Robert Freitas | S69: 0 | T69: Robert Freitas | U69: 0 | V69: Robert Freitas | W69: 0 | AA69: Robert Freitas | AB69: 0
B70: XXXXXX | C70: 0 | D70: XXXXXX | E70: 0 | F70: XXXXXX | G70: 0 | H70: XXXXXX | I70: 0 | J70: XXXXXX | K70: 0 | L70: XXXXXX | M70: 0 | N70: XXXXXX | O70: 0 | P70: XXXXXX | Q70: 0 | R70: XXXXXX | S70: 0 | T70: XXXXXX | U70: 0 | V70: XXXXXX | W70: 0 | AA70: XXXXXX | AB70: 0

Sheet TABELA
A1: 2021 | E1: OK | I1: OK | M1: OK | Q1: OK | U1: OK | Y1: OK | AC1: OK | AG1: OK | AK1: OK | AO1: OK | AS1: OK | AW1: OK
D2: 1ª etapa | H2: 2ª etapa | L2: 3ª etapa | P2: 4ª etapa | T2: 5ª etapa | X2: Etapa 6 11/07/2021 - 10:00 | AB2: Etapa 7 18/07/2021 - 10:00 | AF2: Etapa 8 15/08/2021 - 10:00 | AJ2: Etapa 9 12/09/2021 - 10:00 - Domingo | AN2: Etapa 10 17/10/2021 - 10:00 - Domingo | AR2: 11ª etapa | AV2: 12ª etapa
B4: Nome do (a) Piloto (a) | C4: Pontuação Geral | D4: Posição | E4: Pontos | F4: Bônus | G4: Penalidade | H4: Posição | I4: Pontos | J4: Bônus | K4: Penalidade | L4: Posição | M4: Pontos | N4: Bônus | O4: Penalidade | P4: Posição | Q4: Pontos | R4: Bônus | S4: Penalidade | T4: Posição | U4: Pontos | V4: Bônus | W4: Penalidade | X4: Posição | Y4: Pontos | Z4: Bônus | AA4: Penalidade | AB4: Posição | AC4: Pontos | AD4: Bônus | AE4: Penalidade | AF4: Posição | AG4: Pontos | AH4: Bônus | AI4: Penalidade | AJ4: Posição | AK4: Pontos | AL4: Bônus | AM4: Penalidade | AN4: Posição | AO4: Pontos | AP4: Bônus | AQ4: Penalidade | AR4: Posição | AS4: Pontos | AT4: Bônus | AU4: Penalidade | AV4: Posição | AW4: Pontos | AX4: Bônus | AY4: Penalidade | AZ4: 1º LUGAR | BA4: 2º LUGAR | BB4: 3º LUGAR | BC4: 4º LUGAR | BD4: 5º LUGAR | BE4: 6º LUGAR | BF4: 7º LUGAR | BG4: 8º LUGAR | BH4: 9º LUGAR | BI4: 10º LUGAR | BJ4: 11º LUGAR | BK4: 12º LUGAR | BL4: 13º LUGAR | BM4: 14º LUGAR | BN4: 15º LUGAR | BO4: 16º LUGAR | BP4: 17º LUGAR | BQ4: 18º LUGAR | BR4: 19º LUGAR | BS4: 20º LUGAR | BT4: 21º LUGAR | BU4: 22º LUGAR | BV4: 23º LUGAR | BW4: 24º LUGAR | BX4: 25º LUGAR | BY4: 26º LUGAR | BZ4: 27º LUGAR | CA4: 28º LUGAR | CB4: 29º LUGAR | CC4: 30º LUGAR | CD4: 31º LUGAR | CE4: 32º LUGAR | CF4: 33º LUGAR | CG4: 34º LUGAR | CH4: 35º LUGAR | CI4: 36º LUGAR | CJ4: 37º LUGAR | CK4: 38º LUGAR | CL4: 39º LUGAR | CM4: 40º LUGAR | CN4: 41º LUGAR
A5: 1 | B5: Adriano Morato | C5: 0 | E5: 0 | G5: -10 | I5: 0 | K5: -10 | M5: 0 | O5: -10 | Q5: 0 | U5: 0 | Y5: 0 | AC5: 0 | AE5: -10 | AG5: 0 | AI5: -10 | AK5: 0 | AM5: -10 | AO5: 0 | AQ5: -10 | AS5: 0 | AU5: -10 | AW5: 0 | AY5: -10 | AZ5: 0 | BA5: 0 | BB5: 0 | BC5: 0 | BD5: 0 | BE5: 0 | BF5: 0 | BG5: 0 | BH5: 0 | BI5: 0 | BJ5: 0 | BK5: 0 | BL5: 0 | BM5: 0 | BN5: 0 | BO5: 0 | BP5: 0 | BQ5: 0 | BR5: 0 | BS5: 0 | BT5: 0 | BU5: 0 | BV5: 0 | BW5: 0 | BX5: 0 | BY5: 0 | BZ5: 0 | CA5: 0 | CB5: 0 | CC5: 0 | CD5: 0 | CE5: 0 | CF5: 0 | CG5: 0 | CH5: 0 | CI5: 0 | CJ5: 0 | CK5: 0 | CL5: 0 | CM5: 0 | CN5: 0
A6: 2 | B6: Alan Silva | C6: 272 | D6: 3 | E6: 52 | I6: 0 | K6: -10 | M6: 0 | O6: -10 | P6: 15 | Q6: 28 | T6: 29 | U6: 12 | X6: 14 | Y6: 30 | AB6: 7 | AC6: 44 | AF6: 2 | AG6: 55 | AJ6: 24 | AK6: 17 | AM6: SIM | AN6: 8 | AO6: 42 | AR6: 19 | AS6: 22 | AW6: 0 | AY6: -10 | AZ6: 0 | BA6: 1 | BB6: 1 | BC6: 0 | BD6: 0 | BE6: 0 | BF6: 1 | BG6: 1 | BH6: 0 | BI6: 0 | BJ6: 0 | BK6: 0 | BL6: 0 | BM6: 1 | BN6: 1 | BO6: 0 | BP6: 0 | BQ6: 0 | BR6: 1 | BS6: 0 | BT6: 0 | BU6: 0 | BV6: 0 | BW6: 1 | BX6: 0 | BY6: 0 | BZ6: 0 | CA6: 0 | CB6: 1 | CC6: 0 | CD6: 0 | CE6: 0 | CF6: 0 | CG6: 0 | CH6: 0 | CI6: 0 | CJ6: 0 | CK6: 0 | CL6: 0 | CM6: 0 | CN6: 0
A7: 3 | B7: Alexandre Melillo | C7: 403 | D7: 14 | E7: 30 | H7: 14 | I7: 30 | L7: 9 | M7: 40 | P7: 18 | Q7: 23 | T7: 19 | U7: 22 | X7: 8 | Y7: 42 | AB7: 10 | AC7: 38 | AF7: 17 | AG7: 24 | AJ7: 12 | AK7: 34 | AN7: 14 | AO7: 30 | AR7: 3 | AS7: 52 | AV7: 10 | AW7: 38 | AZ7: 0 | BA7: 0 | BB7: 1 | BC7: 0 | BD7: 0 | BE7: 0 | BF7: 0 | BG7: 1 | BH7: 1 | BI7: 2 | BJ7: 0 | BK7: 1 | BL7: 0 | BM7: 3 | BN7: 0 | BO7: 0 | BP7: 1 | BQ7: 1 | BR7: 1 | BS7: 0 | BT7: 0 | BU7: 0 | BV7: 0 | BW7: 0 | BX7: 0 | BY7: 0 | BZ7: 0 | CA7: 0 | CB7: 0 | CC7: 0 | CD7: 0 | CE7: 0 | CF7: 0 | CG7: 0 | CH7: 0 | CI7: 0 | CJ7: 0 | CK7: 0 | CL7: 0 | CM7: 0 | CN7: 0
A8: 4 | B8: Cláudio Dumont | C8: 234 | D8: 5 | E8: 48 | H8: 24 | I8: 17 | L8: 1 | M8: 60 | P8: 1 | Q8: 60 | T8: 5 | U8: 48 | X8: 22 | Y8: 19 | AA8: SIM | AC8: 0 | AE8: -10 | AG8: 0 | AI8: -10 | AJ8: 13 | AK8: 32 | AO8: 0 | AQ8: -10 | AS8: 0 | AU8: -10 | AW8: 0 | AY8: -10 | AZ8: 2 | BA8: 0 | BB8: 0 | BC8: 0 | BD8: 2 | BE8: 0 | BF8: 0 | BG8: 0 | BH8: 0 | BI8: 0 | BJ8: 0 | BK8: 0 | BL8: 1 | BM8: 0 | BN8: 0 | BO8: 0 | BP8: 0 | BQ8: 0 | BR8: 0 | BS8: 0 | BT8: 0 | BU8: 1 | BV8: 0 | BW8: 1 | BX8: 0 | BY8: 0 | BZ8: 0 | CA8: 0 | CB8: 0 | CC8: 0 | CD8: 0 | CE8: 0 | CF8: 0 | CG8: 0 | CH8: 0 | CI8: 0 | CJ8: 0 | CK8: 0 | CL8: 0 | CM8: 0 | CN8: 0
A9: 5 | B9: Daniel Nahum | C9: 430 | D9: 26 | E9: 15 | H9: 3 | I9: 52 | L9: 7 | M9: 44 | P9: 16 | Q9: 26 | R9: 2 | T9: 9 | U9: 40 | Y9: 0 | AB9: 13 | AC9: 32 | AF9: 9 | AG9: 40 | AJ9: 2 | AK9: 55 | AN9: 9 | AO9: 40 | AR9: 4 | AS9: 50 | AT9: 2 | AV9: 13 | AW9: 32 | AZ9: 0 | BA9: 1 | BB9: 1 | BC9: 1 | BD9: 0 | BE9: 0 | BF9: 1 | BG9: 0 | BH9: 3 | BI9: 0 | BJ9: 0 | BK9: 0 | BL9: 2 | BM9: 0 | BN9: 0 | BO9: 1 | BP9: 0 | BQ9: 0 | BR9: 0 | BS9: 0 | BT9: 0 | BU9: 0 | BV9: 0 | BW9: 0 | BX9: 0 | BY9: 1 | BZ9: 0 | CA9: 0 | CB9: 0 | CC9: 0 | CD9: 0 | CE9: 0 | CF9: 0 | CG9: 0 | CH9: 0 | CI9: 0 | CJ9: 0 | CK9: 0 | CL9: 0 | CM9: 0 | CN9: 0
A10: 6 | B10: Daniel Paranhos | C10: 288 | D10: 28 | E10: 13 | H10: 10 | I10: 38 | L10: 13 | M10: 32 | P10: 23 | Q10: 18 | T10: 15 | U10: 28 | X10: 18 | Y10: 23 | AC10: 0 | AF10: 7 | AG10: 44 | AJ10: 14 | AK10: 30 | AN10: 12 | AO10: 34 | AR10: 15 | AS10: 28 | AW10: 0 | AZ10: 0 | BA10: 0 | BB10: 0 | BC10: 0 | BD10: 0 | BE10: 0 | BF10: 1 | BG10: 0 | BH10: 0 | BI10: 1 | BJ10: 0 | BK10: 1 | BL10: 1 | BM10: 1 | BN10: 2 | BO10: 0 | BP10: 0 | BQ10: 1 | BR10: 0 | BS10: 0 | BT10: 0 | BU10: 0 | BV10: 1 | BW10: 0 | BX10: 0 | BY10: 0 | BZ10: 0 | CA10: 1 | CB10: 0 | CC10: 0 | CD10: 0 | CE10: 0 | CF10: 0 | CG10: 0 | CH10: 0 | CI10: 0 | CJ10: 0 | CK10: 0 | CL10: 0 | CM10: 0 | CN10: 0
A11: 7 | B11: Diego Silva | C11: 408 | D11: 17 | E11: 24 | F11: 2 | H11: 9 | I11: 40 | L11: 16 | M11: 26 | P11: 4 | Q11: 50 | T11: 14 | U11: 30 | X11: 20 | Y11: 21 | AB11: 24 | AC11: 17 | AF11: 1 | AG11: 60 | AJ11: 29 | AK11: 12 | AM11: SIM | AN11: 7 | AO11: 44 | AR11: 5 | AS11: 48 | AV11: 12 | AW11: 34 | AZ11: 1 | BA11: 0 | BB11: 0 | BC11: 1 | BD11: 1 | BE11: 0 | BF11: 1 | BG11: 0 | BH11: 1 | BI11: 0 | BJ11: 0 | BK11: 1 | BL11: 0 | BM11: 1 | BN11: 0 | BO11: 1 | BP11: 1 | BQ11: 0 | BR11: 0 | BS11: 1 | BT11: 0 | BU11: 0 | BV11: 0 | BW11: 1 | BX11: 0 | BY11: 0 | BZ11: 0 | CA11: 0 | CB11: 1 | CC11: 0 | CD11: 0 | CE11: 0 | CF11: 0 | CG11: 0 | CH11: 0 | CI11: 0 | CJ11: 0 | CK11: 0 | CL11: 0 | CM11: 0 | CN11: 0
A12: 8 | B12: Eduardo Dias | C12: 19 | D12: 6 | E12: 46 | H12: 18 | I12: 23 | M12: 0 | O12: -10 | P12: 26 | Q12: 15 | T12: 26 | U12: 15 | W12: SIM | Y12: 0 | AA12: -10 | AC12: 0 | AE12: -10 | AG12: 0 | AI12: -10 | AK12: 0 | AM12: -10 | AO12: 0 | AQ12: -10 | AS12: 0 | AU12: -10 | AW12: 0 | AY12: -10 | AZ12: 0 | BA12: 0 | BB12: 0 | BC12: 0 | BD12: 0 | BE12: 1 | BF12: 0 | BG12: 0 | BH12: 0 | BI12: 0 | BJ12: 0 | BK12: 0 | BL12: 0 | BM12: 0 | BN12: 0 | BO12: 0 | BP12: 0 | BQ12: 1 | BR12: 0 | BS12: 0 | BT12: 0 | BU12: 0 | BV12: 0 | BW12: 0 | BX12: 0 | BY12: 2 | BZ12: 0 | CA12: 0 | CB12: 0 | CC12: 0 | CD12: 0 | CE12: 0 | CF12: 0 | CG12: 0 | CH12: 0 | CI12: 0 | CJ12: 0 | CK12: 0 | CL12: 0 | CM12: 0 | CN12: 0
A13: 9 | B13: Eduardo Henrique | C13: 278 | D13: 22 | E13: 19 | H13: 15 | I13: 28 | M13: 0 | P13: 9 | Q13: 40 | T13: 25 | U13: 16 | Y13: 0 | AA13: -10 | AB13: 23 | AC13: 18 | AF13: 23 | AG13: 18 | AJ13: 17 | AK13: 24 | AN13: 2 | AO13: 55 | AR13: 7 | AS13: 44 | AV13: 16 | AW13: 26 | AZ13: 0 | BA13: 1 | BB13: 0 | BC13: 0 | BD13: 0 | BE13: 0 | BF13: 1 | BG13: 0 | BH13: 1 | BI13: 0 | BJ13: 0 | BK13: 0 | BL13: 0 | BM13: 0 | BN13: 1 | BO13: 1 | BP13: 1 | BQ13: 0 | BR13: 0 | BS13: 0 | BT13: 0 | BU13: 1 | BV13: 2 | BW13: 0 | BX13: 1 | BY13: 0 | BZ13: 0 | CA13: 0 | CB13: 0 | CC13: 0 | CD13: 0 | CE13: 0 | CF13: 0 | CG13: 0 | CH13: 0 | CI13: 0 | CJ13: 0 | CK13: 0 | CL13: 0 | CM13: 0 | CN13: 0
A14: 10 | B14: Gabriel Veloso | C14: 403 | D14: 31 | E14: 10 | H14: 7 | I14: 44 | L14: 20 | M14: 21 | P14: 10 | Q14: 38 | T14: 1 | U14: 60 | X14: 4 | Y14: 50 | AB14: 5 | AC14: 48 | AE14: -10 | AF14: 13 | AG14: 32 | AJ14: 5 | AK14: 48 | AN14: 16 | AO14: 26 | AS14: 0 | AU14: -10 | AV14: 6 | AW14: 46 | AZ14: 1 | BA14: 0 | BB14: 0 | BC14: 1 | BD14: 2 | BE14: 1 | BF14: 1 | BG14: 0 | BH14: 0 | BI14: 1 | BJ14: 0 | BK14: 0 | BL14: 1 | BM14: 0 | BN14: 0 | BO14: 1 | BP14: 0 | BQ14: 0 | BR14: 0 | BS14: 1 | BT14: 0 | BU14: 0 | BV14: 0 | BW14: 0 | BX14: 0 | BY14: 0 | BZ14: 0 | CA14: 0 | CB14: 0 | CC14: 0 | CD14: 1 | CE14: 0 | CF14: 0 | CG14: 0 | CH14: 0 | CI14: 0 | CJ14: 0 | CK14: 0 | CL14: 0 | CM14: 0 | CN14: 0
A15: 11 | B15: Guilherme Alves | C15: 452 | D15: 13 | E15: 32 | H15: 16 | I15: 26 | K15: SIM | L15: 15 | M15: 28 | P15: 12 | Q15: 34 | T15: 6 | U15: 46 | V15: 2 | X15: 16 | Y15: 26 | AB15: 6 | AC15: 46 | AF15: 14 | AG15: 30 | AJ15: 4 | AK15: 50 | AN15: 6 | AO15: 46 | AR15: 11 | AS15: 36 | AV15: 4 | AW15: 50 | AZ15: 0 | BA15: 0 | BB15: 0 | BC15: 2 | BD15: 0 | BE15: 3 | BF15: 0 | BG15: 0 | BH15: 0 | BI15: 0 | BJ15: 1 | BK15: 1 | BL15: 1 | BM15: 1 | BN15: 1 | BO15: 2 | BP15: 0 | BQ15: 0 | BR15: 0 | BS15: 0 | BT15: 0 | BU15: 0 | BV15: 0 | BW15: 0 | BX15: 0 | BY15: 0 | BZ15: 0 | CA15: 0 | CB15: 0 | CC15: 0 | CD15: 0 | CE15: 0 | CF15: 0 | CG15: 0 | CH15: 0 | CI15: 0 | CJ15: 0 | CK15: 0 | CL15: 0 | CM15: 0 | CN15: 0
A16: 12 | B16: Heimar Mata | C16: 0 | E16: 0 | H16: 17 | I16: 24 | M16: 0 | O16: -10 | Q16: 0 | U16: 0 | W16: -10 | Y16: 0 | AA16: -10 | AC16: 0 | AE16: -10 | AG16: 0 | AI16: -10 | AK16: 0 | AM16: -10 | AO16: 0 | AQ16: -10 | AS16: 0 | AU16: -10 | AW16: 0 | AY16: -10 | AZ16: 0 | BA16: 0 | BB16: 0 | BC16: 0 | BD16: 0 | BE16: 0 | BF16: 0 | BG16: 0 | BH16: 0 | BI16: 0 | BJ16: 0 | BK16: 0 | BL16: 0 | BM16: 0 | BN16: 0 | BO16: 0 | BP16: 1 | BQ16: 0 | BR16: 0 | BS16: 0 | BT16: 0 | BU16: 0 | BV16: 0 | BW16: 0 | BX16: 0 | BY16: 0 | BZ16: 0 | CA16: 0 | CB16: 0 | CC16: 0 | CD16: 0 | CE16: 0 | CF16: 0 | CG16: 0 | CH16: 0 | CI16: 0 | CJ16: 0 | CK16: 0 | CL16: 0 | CM16: 0 | CN16: 0
A17: 13 | B17: Jarbas Reis | C17: 311 | D17: 15 | E17: 28 | H17: 20 | I17: 21 | L17: 19 | M17: 22 | P17: 6 | Q17: 46 | T17: 16 | U17: 26 | X17: 11 | Y17: 36 | AB17: 17 | AC17: 24 | AG17: 0 | AJ17: 15 | AK17: 28 | AN17: 15 | AO17: 28 | AS17: 0 | AV17: 3 | AW17: 52 | AZ17: 0 | BA17: 0 | BB17: 1 | BC17: 0 | BD17: 0 | BE17: 1 | BF17: 0 | BG17: 0 | BH17: 0 | BI17: 0 | BJ17: 1 | BK17: 0 | BL17: 0 | BM17: 0 | BN17: 3 | BO17: 1 | BP17: 1 | BQ17: 0 | BR17: 1 | BS17: 1 | BT17: 0 | BU17: 0 | BV17: 0 | BW17: 0 | BX17: 0 | BY17: 0 | BZ17: 0 | CA17: 0 | CB17: 0 | CC17: 0 | CD17: 0 | CE17: 0 | CF17: 0 | CG17: 0 | CH17: 0 | CI17: 0 | CJ17: 0 | CK17: 0 | CL17: 0 | CM17: 0 | CN17: 0
A18: 14 | B18: Jean Paul | C18: 231 | D18: 24 | E18: 17 | H18: 25 | I18: 16 | L18: 5 | M18: 48 | P18: 28 | Q18: 13 | T18: 22 | U18: 19 | X18: 19 | Y18: 22 | AB18: 18 | AC18: 23 | AF18: 16 | AG18: 26 | AJ18: 16 | AK18: 26 | AN18: 20 | AO18: 21 | AS18: 0 | AW18: 0 | AZ18: 0 | BA18: 0 | BB18: 0 | BC18: 0 | BD18: 1 | BE18: 0 | BF18: 0 | BG18: 0 | BH18: 0 | BI18: 0 | BJ18: 0 | BK18: 0 | BL18: 0 | BM18: 0 | BN18: 0 | BO18: 2 | BP18: 0 | BQ18: 1 | BR18: 1 | BS18: 1 | BT18: 0 | BU18: 1 | BV18: 0 | BW18: 1 | BX18: 1 | BY18: 0 | BZ18: 0 | CA18: 1 | CB18: 0 | CC18: 0 | CD18: 0 | CE18: 0 | CF18: 0 | CG18: 0 | CH18: 0 | CI18: 0 | CJ18: 0 | CK18: 0 | CL18: 0 | CM18: 0 | CN18: 0
A19: 15 | B19: João Fiuza | C19: 20 | E19: 0 | I19: 0 | K19: -10 | L19: 21 | M19: 20 | O19: -10 | P19: 19 | Q19: 22 | U19: 0 | W19: -10 | Y19: 0 | AA19: -10 | AC19: 0 | AF19: 15 | AG19: 28 | AK19: 0 | AM19: -10 | AO19: 0 | AQ19: -10 | AS19: 0 | AU19: -10 | AV19: 14 | AW19: 30 | AY19: -10 | AZ19: 0 | BA19: 0 | BB19: 0 | BC19: 0 | BD19: 0 | BE19: 0 | BF19: 0 | BG19: 0 | BH19: 0 | BI19: 0 | BJ19: 0 | BK19: 0 | BL19: 0 | BM19: 1 | BN19: 1 | BO19: 0 | BP19: 0 | BQ19: 0 | BR19: 1 | BS19: 0 | BT19: 1 | BU19: 0 | BV19: 0 | BW19: 0 | BX19: 0 | BY19: 0 | BZ19: 0 | CA19: 0 | CB19: 0 | CC19: 0 | CD19: 0 | CE19: 0 | CF19: 0 | CG19: 0 | CH19: 0 | CI19: 0 | CJ19: 0 | CK19: 0 | CL19: 0 | CM19: 0 | CN19: 0
A20: 16 | B20: Leandro Malias | C20: 0 | E20: 0 | I20: 0 | M20: 0 | Q20: 0 | U20: 0 | Y20: 0 | AC20: 0 | AG20: 0 | AK20: 0 | AO20: 0 | AS20: 0 | AW20: 0 | AZ20: 0 | BA20: 0 | BB20: 0 | BC20: 0 | BD20: 0 | BE20: 0 | BF20: 0 | BG20: 0 | BH20: 0 | BI20: 0 | BJ20: 0 | BK20: 0 | BL20: 0 | BM20: 0 | BN20: 0 | BO20: 0 | BP20: 0 | BQ20: 0 | BR20: 0 | BS20: 0 | BT20: 0 | BU20: 0 | BV20: 0 | BW20: 0 | BX20: 0 | BY20: 0 | BZ20: 0 | CA20: 0 | CB20: 0 | CC20: 0 | CD20: 0 | CE20: 0 | CF20: 0 | CG20: 0 | CH20: 0 | CI20: 0 | CJ20: 0 | CK20: 0 | CL20: 0 | CM20: 0 | CN20: 0
A21: 17 | B21: Leonardo Bastos | C21: 344 | D21: 11 | E21: 36 | H21: 12 | I21: 34 | L21: 14 | M21: 30 | P21: 25 | Q21: 16 | T21: 3 | U21: 52 | X21: 17 | Y21: 24 | AB21: 14 | AC21: 30 | AF21: 3 | AG21: 52 | AJ21: 10 | AK21: 38 | AO21: 0 | AR21: 8 | AS21: 42 | AW21: 0 | AY21: -10 | AZ21: 0 | BA21: 0 | BB21: 2 | BC21: 0 | BD21: 0 | BE21: 0 | BF21: 0 | BG21: 1 | BH21: 0 | BI21: 1 | BJ21: 1 | BK21: 1 | BL21: 0 | BM21: 2 | BN21: 0 | BO21: 0 | BP21: 1 | BQ21: 0 | BR21: 0 | BS21: 0 | BT21: 0 | BU21: 0 | BV21: 0 | BW21: 0 | BX21: 1 | BY21: 0 | BZ21: 0 | CA21: 0 | CB21: 0 | CC21: 0 | CD21: 0 | CE21: 0 | CF21: 0 | CG21: 0 | CH21: 0 | CI21: 0 | CJ21: 0 | CK21: 0 | CL21: 0 | CM21: 0 | CN21: 0
A22: 18 | B22: Leonardo Bosco | C22: 208 | D22: 16 | E22: 26 | H22: 13 | I22: 32 | L22: 4 | M22: 50 | P22: 29 | Q22: 12 | T22: 12 | U22: 34 | X22: 23 | Y22: 18 | AC22: 0 | AF22: 6 | AG22: 46 | AJ22: 31 | AK22: 10 | AM22: SIM | AO22: 0 | AS22: 0 | AU22: -10 | AW22: 0 | AY22: -10 | AZ22: 0 | BA22: 0 | BB22: 0 | BC22: 1 | BD22: 0 | BE22: 1 | BF22: 0 | BG22: 0 | BH22: 0 | BI22: 0 | BJ22: 0 | BK22: 1 | BL22: 1 | BM22: 0 | BN22: 0 | BO22: 1 | BP22: 0 | BQ22: 0 | BR22: 0 | BS22: 0 | BT22: 0 | BU22: 0 | BV22: 1 | BW22: 0 | BX22: 0 | BY22: 0 | BZ22: 0 | CA22: 0 | CB22: 1 | CC22: 0 | CD22: 1 | CE22: 0 | CF22: 0 | CG22: 0 | CH22: 0 | CI22: 0 | CJ22: 0 | CK22: 0 | CL22: 0 | CM22: 0 | CN22: 0
A23: 19 | B23: Léo Oliveira | C23: 483 | D23: 2 | E23: 55 | H23: 1 | I23: 60 | L23: 3 | M23: 52 | N23: 2 | P23: 5 | Q23: 48 | U23: 0 | Y23: 0 | AB23: 11 | AC23: 36 | AG23: 0 | AJ23: 6 | AK23: 46 | AN23: 1 | AO23: 60 | AP23: 2 | AR23: 1 | AS23: 60 | AV23: 1 | AW23: 60 | AX23: 2 | AZ23: 4 | BA23: 1 | BB23: 1 | BC23: 0 | BD23: 1 | BE23: 1 | BF23: 0 | BG23: 0 | BH23: 0 | BI23: 0 | BJ23: 1 | BK23: 0 | BL23: 0 | BM23: 0 | BN23: 0 | BO23: 0 | BP23: 0 | BQ23: 0 | BR23: 0 | BS23: 0 | BT23: 0 | BU23: 0 | BV23: 0 | BW23: 0 | BX23: 0 | BY23: 0 | BZ23: 0 | CA23: 0 | CB23: 0 | CC23: 0 | CD23: 0 | CE23: 0 | CF23: 0 | CG23: 0 | CH23: 0 | CI23: 0 | CJ23: 0 | CK23: 0 | CL23: 0 | CM23: 0 | CN23: 0
A24: 20 | B24: Luis Almeida | C24: 0 | E24: 0 | G24: -10 | H24: 22 | I24: 19 | L24: 18 | M24: 23 | P24: 24 | Q24: 17 | T24: 32 | U24: 9 | W24: SIM | Y24: 0 | AC24: 0 | AE24: -10 | AG24: 0 | AI24: -10 | AK24: 0 | AM24: -10 | AO24: 0 | AQ24: -10 | AS24: 0 | AU24: -10 | AW24: 0 | AY24: -10 | AZ24: 0 | BA24: 0 | BB24: 0 | BC24: 0 | BD24: 0 | BE24: 0 | BF24: 0 | BG24: 0 | BH24: 0 | BI24: 0 | BJ24: 0 | BK24: 0 | BL24: 0 | BM24: 0 | BN24: 0 | BO24: 0 | BP24: 0 | BQ24: 1 | BR24: 0 | BS24: 0 | BT24: 0 | BU24: 1 | BV24: 0 | BW24: 1 | BX24: 0 | BY24: 0 | BZ24: 0 | CA24: 0 | CB24: 0 | CC24: 0 | CD24: 0 | CE24: 1 | CF24: 0 | CG24: 0 | CH24: 0 | CI24: 0 | CJ24: 0 | CK24: 0 | CL24: 0 | CM24: 0 | CN24: 0
A25: 21 | B25: Marcelo Sant'anna | C25: 439 | D25: 8 | E25: 42 | H25: 8 | I25: 42 | L25: 33 | M25: 8 | O25: SIM | P25: 22 | Q25: 19 | T25: 10 | U25: 38 | X25: 6 | Y25: 46 | AB25: 3 | AC25: 52 | AF25: 12 | AG25: 34 | AJ25: 3 | AK25: 52 | AN25: 10 | AO25: 38 | AR25: 9 | AS25: 40 | AV25: 15 | AW25: 28 | AZ25: 0 | BA25: 0 | BB25: 2 | BC25: 0 | BD25: 0 | BE25: 1 | BF25: 0 | BG25: 2 | BH25: 1 | BI25: 2 | BJ25: 0 | BK25: 1 | BL25: 0 | BM25: 0 | BN25: 1 | BO25: 0 | BP25: 0 | BQ25: 0 | BR25: 0 | BS25: 0 | BT25: 0 | BU25: 1 | BV25: 0 | BW25: 0 | BX25: 0 | BY25: 0 | BZ25: 0 | CA25: 0 | CB25: 0 | CC25: 0 | CD25: 0 | CE25: 0 | CF25: 1 | CG25: 0 | CH25: 0 | CI25: 0 | CJ25: 0 | CK25: 0 | CL25: 0 | CM25: 0 | CN25: 0
A26: 22 | B26: Marcelo Campos | C26: 520 | D26: 9 | E26: 40 | H26: 30 | I26: 11 | L26: 2 | M26: 55 | P26: 7 | Q26: 44 | T26: 8 | U26: 42 | X26: 5 | Y26: 48 | AB26: 1 | AC26: 60 | AD26: 2 | AF26: 11 | AG26: 36 | AJ26: 9 | AK26: 40 | AN26: 13 | AO26: 32 | AR26: 2 | AS26: 55 | AV26: 2 | AW26: 55 | AZ26: 1 | BA26: 3 | BB26: 0 | BC26: 0 | BD26: 1 | BE26: 0 | BF26: 1 | BG26: 1 | BH26: 2 | BI26: 0 | BJ26: 1 | BK26: 0 | BL26: 1 | BM26: 0 | BN26: 0 | BO26: 0 | BP26: 0 | BQ26: 0 | BR26: 0 | BS26: 0 | BT26: 0 | BU26: 0 | BV26: 0 | BW26: 0 | BX26: 0 | BY26: 0 | BZ26: 0 | CA26: 0 | CB26: 0 | CC26: 1 | CD26: 0 | CE26: 0 | CF26: 0 | CG26: 0 | CH26: 0 | CI26: 0 | CJ26: 0 | CK26: 0 | CL26: 0 | CM26: 0 | CN26: 0
A27: 23 | B27: Marcelo Clemente | C27: 324 | D27: 20 | E27: 21 | I27: 0 | M27: 0 | P27: 20 | Q27: 21 | S27: SIM | T27: 11 | U27: 36 | X27: 10 | Y27: 38 | AC27: 0 | AE27: -10 | AF27: 27 | AG27: 14 | AJ27: 1 | AK27: 60 | AN27: 4 | AO27: 50 | AR27: 6 | AS27: 46 | AV27: 5 | AW27: 48 | AZ27: 1 | BA27: 0 | BB27: 0 | BC27: 1 | BD27: 1 | BE27: 1 | BF27: 0 | BG27: 0 | BH27: 0 | BI27: 1 | BJ27: 1 | BK27: 0 | BL27: 0 | BM27: 0 | BN27: 0 | BO27: 0 | BP27: 0 | BQ27: 0 | BR27: 0 | BS27: 2 | BT27: 0 | BU27: 0 | BV27: 0 | BW27: 0 | BX27: 0 | BY27: 0 | BZ27: 1 | CA27: 0 | CB27: 0 | CC27: 0 | CD27: 0 | CE27: 0 | CF27: 0 | CG27: 0 | CH27: 0 | CI27: 0 | CJ27: 0 | CK27: 0 | CL27: 0 | CM27: 0 | CN27: 0
A28: 24 | B28: Marcelo Pereira | C28: 112 | D28: 1 | E28: 60 | H28: 4 | I28: 50 | L28: 27 | M28: 14 | O28: -10 | P28: 14 | Q28: 30 | S28: SIM | U28: 0 | W28: -10 | X28: 36 | Y28: 5 | AA28: SIM | AC28: 0 | AE28: -10 | AF28: 18 | AG28: 23 | AK28: 0 | AM28: -10 | AO28: 0 | AQ28: -10 | AS28: 0 | AU28: -10 | AW28: 0 | AY28: -10 | AZ28: 1 | BA28: 0 | BB28: 0 | BC28: 1 | BD28: 0 | BE28: 0 | BF28: 0 | BG28: 0 | BH28: 0 | BI28: 0 | BJ28: 0 | BK28: 0 | BL28: 0 | BM28: 1 | BN28: 0 | BO28: 0 | BP28: 0 | BQ28: 1 | BR28: 0 | BS28: 0 | BT28: 0 | BU28: 0 | BV28: 0 | BW28: 0 | BX28: 0 | BY28: 0 | BZ28: 1 | CA28: 0 | CB28: 0 | CC28: 0 | CD28: 0 | CE28: 0 | CF28: 0 | CG28: 0 | CH28: 0 | CI28: 1 | CJ28: 0 | CK28: 0 | CL28: 0 | CM28: 0 | CN28: 0
A29: 25 | B29: Marcelo Surerus | C29: 321 | D29: 23 | E29: 18 | I29: 0 | L29: 22 | M29: 19 | P29: 3 | Q29: 52 | T29: 4 | U29: 50 | X29: 7 | Y29: 44 | AB29: 12 | AC29: 34 | AF29: 8 | AG29: 42 | AJ29: 11 | AK29: 36 | AN29: 11 | AO29: 36 | AS29: 0 | AW29: 0 | AY29: -10 | AZ29: 0 | BA29: 0 | BB29: 1 | BC29: 1 | BD29: 0 | BE29: 0 | BF29: 1 | BG29: 1 | BH29: 0 | BI29: 0 | BJ29: 2 | BK29: 1 | BL29: 0 | BM29: 0 | BN29: 0 | BO29: 0 | BP29: 0 | BQ29: 0 | BR29: 0 | BS29: 0 | BT29: 0 | BU29: 1 | BV29: 1 | BW29: 0 | BX29: 0 | BY29: 0 | BZ29: 0 | CA29: 0 | CB29: 0 | CC29: 0 | CD29: 0 | CE29: 0 | CF29: 0 | CG29: 0 | CH29: 0 | CI29: 0 | CJ29: 0 | CK29: 0 | CL29: 0 | CM29: 0 | CN29: 0
A30: 26 | B30: Marcos Rodrigo | C30: 0 | E30: 0 | I30: 0 | K30: -10 | M30: 0 | Q30: 0 | S30: -10 | U30: 0 | Y30: 0 | AC30: 0 | AE30: -10 | AG30: 0 | AI30: -10 | AK30: 0 | AO30: 0 | AS30: 0 | AU30: -10 | AW30: 0 | AZ30: 0 | BA30: 0 | BB30: 0 | BC30: 0 | BD30: 0 | BE30: 0 | BF30: 0 | BG30: 0 | BH30: 0 | BI30: 0 | BJ30: 0 | BK30: 0 | BL30: 0 | BM30: 0 | BN30: 0 | BO30: 0 | BP30: 0 | BQ30: 0 | BR30: 0 | BS30: 0 | BT30: 0 | BU30: 0 | BV30: 0 | BW30: 0 | BX30: 0 | BY30: 0 | BZ30: 0 | CA30: 0 | CB30: 0 | CC30: 0 | CD30: 0 | CE30: 0 | CF30: 0 | CG30: 0 | CH30: 0 | CI30: 0 | CJ30: 0 | CK30: 0 | CL30: 0 | CM30: 0 | CN30: 0
A31: 27 | B31: Neylon Silva | C31: 55 | D31: 30 | E31: 11 | H31: 26 | I31: 15 | M31: 0 | Q31: 0 | T31: 20 | U31: 21 | X31: 15 | Y31: 28 | AB31: 21 | AC31: 20 | AG31: 0 | AK31: 0 | AM31: -10 | AO31: 0 | AQ31: -10 | AS31: 0 | AU31: -10 | AW31: 0 | AY31: -10 | AZ31: 0 | BA31: 0 | BB31: 0 | BC31: 0 | BD31: 0 | BE31: 0 | BF31: 0 | BG31: 0 | BH31: 0 | BI31: 0 | BJ31: 0 | BK31: 0 | BL31: 0 | BM31: 0 | BN31: 1 | BO31: 0 | BP31: 0 | BQ31: 0 | BR31: 0 | BS31: 1 | BT31: 1 | BU31: 0 | BV31: 0 | BW31: 0 | BX31: 0 | BY31: 1 | BZ31: 0 | CA31: 0 | CB31: 0 | CC31: 1 | CD31: 0 | CE31: 0 | CF31: 0 | CG31: 0 | CH31: 0 | CI31: 0 | CJ31: 0 | CK31: 0 | CL31: 0 | CM31: 0 | CN31: 0
A32: 28 | B32: Pedro Fialho | C32: 0 | D32: 21 | E32: 20 | I32: 0 | M32: 0 | O32: -10 | Q32: 0 | U32: 0 | Y32: 0 | AA32: -10 | AC32: 0 | AG32: 0 | AI32: -10 | AK32: 0 | AM32: -10 | AO32: 0 | AQ32: -10 | AS32: 0 | AU32: -10 | AW32: 0 | AY32: -10 | AZ32: 0 | BA32: 0 | BB32: 0 | BC32: 0 | BD32: 0 | BE32: 0 | BF32: 0 | BG32: 0 | BH32: 0 | BI32: 0 | BJ32: 0 | BK32: 0 | BL32: 0 | BM32: 0 | BN32: 0 | BO32: 0 | BP32: 0 | BQ32: 0 | BR32: 0 | BS32: 0 | BT32: 1 | BU32: 0 | BV32: 0 | BW32: 0 | BX32: 0 | BY32: 0 | BZ32: 0 | CA32: 0 | CB32: 0 | CC32: 0 | CD32: 0 | CE32: 0 | CF32: 0 | CG32: 0 | CH32: 0 | CI32: 0 | CJ32: 0 | CK32: 0 | CL32: 0 | CM32: 0 | CN32: 0
A33: 29 | B33: Pedro Mello | C33: 125 | D33: 18 | E33: 23 | H33: 21 | I33: 20 | M33: 0 | O33: -10 | P33: 27 | Q33: 14 | U33: 0 | Y33: 0 | AB33: 19 | AC33: 22 | AF33: 21 | AG33: 20 | AK33: 0 | AM33: -10 | AN33: 18 | AO33: 23 | AR33: 18 | AS33: 23 | AW33: 0 | AZ33: 0 | BA33: 0 | BB33: 0 | BC33: 0 | BD33: 0 | BE33: 0 | BF33: 0 | BG33: 0 | BH33: 0 | BI33: 0 | BJ33: 0 | BK33: 0 | BL33: 0 | BM33: 0 | BN33: 0 | BO33: 0 | BP33: 0 | BQ33: 3 | BR33: 1 | BS33: 0 | BT33: 2 | BU33: 0 | BV33: 0 | BW33: 0 | BX33: 0 | BY33: 0 | BZ33: 1 | CA33: 0 | CB33: 0 | CC33: 0 | CD33: 0 | CE33: 0 | CF33: 0 | CG33: 0 | CH33: 0 | CI33: 0 | CJ33: 0 | CK33: 0 | CL33: 0 | CM33: 0 | CN33: 0
A34: 30 | B34: Rafael Cantoni | C34: 222 | D34: 10 | E34: 38 | H34: 11 | I34: 36 | L34: 8 | M34: 42 | P34: 31 | Q34: 10 | T34: 21 | U34: 20 | W34: SIM | Y34: 0 | AB34: 8 | AC34: 42 | AG34: 0 | AI34: -10 | AK34: 0 | AO34: 0 | AS34: 0 | AV34: 7 | AW34: 44 | AZ34: 0 | BA34: 0 | BB34: 0 | BC34: 0 | BD34: 0 | BE34: 0 | BF34: 1 | BG34: 2 | BH34: 0 | BI34: 1 | BJ34: 1 | BK34: 0 | BL34: 0 | BM34: 0 | BN34: 0 | BO34: 0 | BP34: 0 | BQ34: 0 | BR34: 0 | BS34: 0 | BT34: 1 | BU34: 0 | BV34: 0 | BW34: 0 | BX34: 0 | BY34: 0 | BZ34: 0 | CA34: 0 | CB34: 0 | CC34: 0 | CD34: 1 | CE34: 0 | CF34: 0 | CG34: 0 | CH34: 0 | CI34: 0 | CJ34: 0 | CK34: 0 | CL34: 0 | CM34: 0 | CN34: 0
A35: 31 | B35: Rafael Miranda | C35: 325 | D35: 12 | E35: 34 | I35: 0 | K35: -10 | L35: 12 | M35: 34 | P35: 13 | Q35: 32 | T35: 7 | U35: 44 | X35: 1 | Y35: 60 | AB35: 22 | AC35: 19 | AF35: 5 | AG35: 48 | AJ35: 8 | AK35: 42 | AO35: 0 | AQ35: -10 | AS35: 0 | AU35: -10 | AV35: 8 | AW35: 42 | AZ35: 1 | BA35: 0 | BB35: 0 | BC35: 0 | BD35: 1 | BE35: 0 | BF35: 1 | BG35: 2 | BH35: 0 | BI35: 0 | BJ35: 0 | BK35: 2 | BL35: 1 | BM35: 0 | BN35: 0 | BO35: 0 | BP35: 0 | BQ35: 0 | BR35: 0 | BS35: 0 | BT35: 0 | BU35: 1 | BV35: 0 | BW35: 0 | BX35: 0 | BY35: 0 | BZ35: 0 | CA35: 0 | CB35: 0 | CC35: 0 | CD35: 0 | CE35: 0 | CF35: 0 | CG35: 0 | CH35: 0 | CI35: 0 | CJ35: 0 | CK35: 0 | CL35: 0 | CM35: 0 | CN35: 0
A36: 32 | B36: Rafael Alves | C36: 301 | D36: 27 | E36: 14 | H36: 6 | I36: 46 | L36: 30 | M36: 11 | O36: SIM | P36: 21 | Q36: 20 | T36: 13 | U36: 32 | X36: 13 | Y36: 32 | AB36: 16 | AC36: 26 | AF36: 24 | AG36: 17 | AJ36: 18 | AK36: 23 | AN36: 3 | AO36: 52 | AR36: 10 | AS36: 38 | AW36: 0 | AY36: -10 | AZ36: 0 | BA36: 0 | BB36: 1 | BC36: 0 | BD36: 0 | BE36: 1 | BF36: 0 | BG36: 0 | BH36: 0 | BI36: 1 | BJ36: 0 | BK36: 0 | BL36: 2 | BM36: 0 | BN36: 0 | BO36: 1 | BP36: 0 | BQ36: 1 | BR36: 0 | BS36: 0 | BT36: 1 | BU36: 0 | BV36: 0 | BW36: 1 | BX36: 0 | BY36: 0 | BZ36: 1 | CA36: 0 | CB36: 0 | CC36: 1 | CD36: 0 | CE36: 0 | CF36: 0 | CG36: 0 | CH36: 0 | CI36: 0 | CJ36: 0 | CK36: 0 | CL36: 0 | CM36: 0 | CN36: 0
A37: 33 | B37: Raphael Reis | C37: 133 | D37: 29 | E37: 12 | H37: 19 | I37: 22 | L37: 25 | M37: 16 | Q37: 0 | U37: 0 | X37: 21 | Y37: 20 | AC37: 0 | AE37: -10 | AF37: 20 | AG37: 21 | AK37: 0 | AN37: 19 | AO37: 22 | AR37: 14 | AS37: 30 | AW37: 0 | AZ37: 0 | BA37: 0 | BB37: 0 | BC37: 0 | BD37: 0 | BE37: 0 | BF37: 0 | BG37: 0 | BH37: 0 | BI37: 0 | BJ37: 0 | BK37: 0 | BL37: 0 | BM37: 1 | BN37: 0 | BO37: 0 | BP37: 0 | BQ37: 0 | BR37: 2 | BS37: 1 | BT37: 1 | BU37: 0 | BV37: 0 | BW37: 0 | BX37: 1 | BY37: 0 | BZ37: 0 | CA37: 0 | CB37: 1 | CC37: 0 | CD37: 0 | CE37: 0 | CF37: 0 | CG37: 0 | CH37: 0 | CI37: 0 | CJ37: 0 | CK37: 0 | CL37: 0 | CM37: 0 | CN37: 0
A38: 34 | B38: Renato Cardoso | C38: 58 | E38: 0 | H38: 29 | I38: 12 | M38: 0 | P38: 30 | Q38: 11 | T38: 30 | U38: 11 | Y38: 0 | AC38: 0 | AG38: 0 | AK38: 0 | AN38: 17 | AO38: 24 | AS38: 0 | AW38: 0 | AZ38: 0 | BA38: 0 | BB38: 0 | BC38: 0 | BD38: 0 | BE38: 0 | BF38: 0 | BG38: 0 | BH38: 0 | BI38: 0 | BJ38: 0 | BK38: 0 | BL38: 0 | BM38: 0 | BN38: 0 | BO38: 0 | BP38: 1 | BQ38: 0 | BR38: 0 | BS38: 0 | BT38: 0 | BU38: 0 | BV38: 0 | BW38: 0 | BX38: 0 | BY38: 0 | BZ38: 0 | CA38: 0 | CB38: 1 | CC38: 2 | CD38: 0 | CE38: 0 | CF38: 0 | CG38: 0 | CH38: 0 | CI38: 0 | CJ38: 0 | CK38: 0 | CL38: 0 | CM38: 0 | CN38: 0
A39: 35 | B39: Robert Freitas | C39: 0 | E39: 0 | I39: 0 | M39: 0 | Q39: 0 | S39: -10 | U39: 0 | W39: -10 | Y39: 0 | AA39: -10 | AC39: 0 | AE39: -10 | AG39: 0 | AI39: -10 | AK39: 0 | AM39: -10 | AO39: 0 | AQ39: -10 | AS39: 0 | AU39: -10 | AW39: 0 | AY39: -10 | AZ39: 0 | BA39: 0 | BB39: 0 | BC39: 0 | BD39: 0 | BE39: 0 | BF39: 0 | BG39: 0 | BH39: 0 | BI39: 0 | BJ39: 0 | BK39: 0 | BL39: 0 | BM39: 0 | BN39: 0 | BO39: 0 | BP39: 0 | BQ39: 0 | BR39: 0 | BS39: 0 | BT39: 0 | BU39: 0 | BV39: 0 | BW39: 0 | BX39: 0 | BY39: 0 | BZ39: 0 | CA39: 0 | CB39: 0 | CC39: 0 | CD39: 0 | CE39: 0 | CF39: 0 | CG39: 0 | CH39: 0 | CI39: 0 | CJ39: 0 | CK39: 0 | CL39: 0 | CM39: 0 | CN39: 0
A40: 36 | B40: Rodrigo Mercadante | C40: 319 | E40: 0 | G40: -10 | I40: 0 | K40: -10 | M40: 0 | P40: 11 | Q40: 36 | T40: 2 | U40: 55 | X40: 9 | Y40: 40 | AB40: 4 | AC40: 50 | AF40: 4 | AG40: 50 | AJ40: 7 | AK40: 44 | AL40: 2 | AO40: 0 | AR40: 16 | AS40: 26 | AV40: 11 | AW40: 36 | AZ40: 0 | BA40: 1 | BB40: 0 | BC40: 2 | BD40: 0 | BE40: 0 | BF40: 1 | BG40: 0 | BH40: 1 | BI40: 0 | BJ40: 2 | BK40: 0 | BL40: 0 | BM40: 0 | BN40: 0 | BO40: 1 | BP40: 0 | BQ40: 0 | BR40: 0 | BS40: 0 | BT40: 0 | BU40: 0 | BV40: 0 | BW40: 0 | BX40: 0 | BY40: 0 | BZ40: 0 | CA40: 0 | CB40: 0 | CC40: 0 | CD40: 0 | CE40: 0 | CF40: 0 | CG40: 0 | CH40: 0 | CI40: 0 | CJ40: 0 | CK40: 0 | CL40: 0 | CM40: 0 | CN40: 0
A41: 37 | B41: Saulo Chagas | C41: 97 | D41: 33 | E41: 8 | H41: 23 | I41: 18 | L41: 23 | M41: 18 | P41: 34 | Q41: 7 | S41: SIM | T41: 18 | U41: 23 | Y41: 0 | AB41: 20 | AC41: 21 | AG41: 0 | AJ41: 19 | AK41: 22 | AO41: 0 | AS41: 0 | AU41: -10 | AW41: 0 | AY41: -10 | AZ41: 0 | BA41: 0 | BB41: 0 | BC41: 0 | BD41: 0 | BE41: 0 | BF41: 0 | BG41: 0 | BH41: 0 | BI41: 0 | BJ41: 0 | BK41: 0 | BL41: 0 | BM41: 0 | BN41: 0 | BO41: 0 | BP41: 0 | BQ41: 1 | BR41: 1 | BS41: 1 | BT41: 0 | BU41: 0 | BV41: 2 | BW41: 0 | BX41: 0 | BY41: 0 | BZ41: 0 | CA41: 0 | CB41: 0 | CC41: 0 | CD41: 0 | CE41: 0 | CF41: 1 | CG41: 1 | CH41: 0 | CI41: 0 | CJ41: 0 | CK41: 0 | CL41: 0 | CM41: 0 | CN41: 0
A42: 38 | B42: Victor Silva | C42: 187 | D42: 4 | E42: 50 | G42: -10 | I42: 0 | K42: -10 | L42: 24 | M42: 17 | O42: SIM | P42: 32 | Q42: 9 | T42: 28 | U42: 13 | X42: 2 | Y42: 55 | AB42: 2 | AC42: 55 | AG42: 0 | AI42: -10 | AK42: 0 | AM42: -10 | AN42: 5 | AO42: 48 | AS42: 0 | AU42: -10 | AW42: 0 | AY42: -10 | AZ42: 0 | BA42: 2 | BB42: 0 | BC42: 1 | BD42: 1 | BE42: 0 | BF42: 0 | BG42: 0 | BH42: 0 | BI42: 0 | BJ42: 0 | BK42: 0 | BL42: 0 | BM42: 0 | BN42: 0 | BO42: 0 | BP42: 0 | BQ42: 0 | BR42: 0 | BS42: 0 | BT42: 0 | BU42: 0 | BV42: 0 | BW42: 1 | BX42: 0 | BY42: 0 | BZ42: 0 | CA42: 1 | CB42: 0 | CC42: 0 | CD42: 0 | CE42: 1 | CF42: 0 | CG42: 0 | CH42: 0 | CI42: 0 | CJ42: 0 | CK42: 0 | CL42: 0 | CM42: 0 | CN42: 0
A43: 39 | B43: Wesley Bambirra | C43: 210 | D43: 7 | E43: 44 | H43: 5 | I43: 48 | L43: 6 | M43: 46 | Q43: 0 | T43: 27 | U43: 14 | Y43: 0 | AA43: -10 | AC43: 0 | AF43: 10 | AG43: 38 | AK43: 0 | AN43: 23 | AO43: 18 | AQ43: SIM | AR43: 29 | AS43: 12 | AU43: SIM | AW43: 0 | AZ43: 0 | BA43: 0 | BB43: 0 | BC43: 0 | BD43: 1 | BE43: 1 | BF43: 1 | BG43: 0 | BH43: 0 | BI43: 1 | BJ43: 0 | BK43: 0 | BL43: 0 | BM43: 0 | BN43: 0 | BO43: 0 | BP43: 0 | BQ43: 0 | BR43: 0 | BS43: 0 | BT43: 0 | BU43: 0 | BV43: 1 | BW43: 0 | BX43: 0 | BY43: 0 | BZ43: 1 | CA43: 0 | CB43: 1 | CC43: 0 | CD43: 0 | CE43: 0 | CF43: 0 | CG43: 0 | CH43: 0 | CI43: 0 | CJ43: 0 | CK43: 0 | CL43: 0 | CM43: 0 | CN43: 0
A44: 40 | B44: Wesley Camargos | C44: 43 | D44: 32 | E44: 9 | H44: 27 | I44: 14 | M44: 0 | Q44: 0 | T44: 24 | U44: 17 | Y44: 0 | AC44: 0 | AE44: -10 | AF44: 22 | AG44: 19 | AK44: 0 | AM44: -10 | AO44: 0 | AQ44: -10 | AR44: 17 | AS44: 24 | AW44: 0 | AY44: -10 | AZ44: 0 | BA44: 0 | BB44: 0 | BC44: 0 | BD44: 0 | BE44: 0 | BF44: 0 | BG44: 0 | BH44: 0 | BI44: 0 | BJ44: 0 | BK44: 0 | BL44: 0 | BM44: 0 | BN44: 0 | BO44: 0 | BP44: 1 | BQ44: 0 | BR44: 0 | BS44: 0 | BT44: 0 | BU44: 1 | BV44: 0 | BW44: 1 | BX44: 0 | BY44: 0 | BZ44: 1 | CA44: 0 | CB44: 0 | CC44: 0 | CD44: 0 | CE44: 1 | CF44: 0 | CG44: 0 | CH44: 0 | CI44: 0 | CJ44: 0 | CK44: 0 | CL44: 0 | CM44: 0 | CN44: 0
A45: 41 | B45: Wesley Canuto | C45: 196 | E45: 0 | G45: -10 | I45: 0 | L45: 11 | M45: 36 | P45: 8 | Q45: 42 | U45: 0 | X45: 12 | Y45: 34 | AB45: 9 | AC45: 40 | AG45: 0 | AK45: 0 | AO45: 0 | AQ45: -10 | AR45: 12 | AS45: 34 | AV45: 9 | AW45: 40 | AY45: -10 | AZ45: 0 | BA45: 0 | BB45: 0 | BC45: 0 | BD45: 0 | BE45: 0 | BF45: 0 | BG45: 1 | BH45: 2 | BI45: 0 | BJ45: 1 | BK45: 2 | BL45: 0 | BM45: 0 | BN45: 0 | BO45: 0 | BP45: 0 | BQ45: 0 | BR45: 0 | BS45: 0 | BT45: 0 | BU45: 0 | BV45: 0 | BW45: 0 | BX45: 0 | BY45: 0 | BZ45: 0 | CA45: 0 | CB45: 0 | CC45: 0 | CD45: 0 | CE45: 0 | CF45: 0 | CG45: 0 | CH45: 0 | CI45: 0 | CJ45: 0 | CK45: 0 | CL45: 0 | CM45: 0 | CN45: 0
A46: 42 | B46: Hugo Bambirra | C46: 52 | D46: 25 | E46: 16 | H46: 28 | I46: 13 | L46: 26 | M46: 15 | Q46: 0 | T46: 23 | U46: 18 | Y46: 0 | AA46: -10 | AC46: 0 | AG46: 0 | AK46: 0 | AO46: 0 | AS46: 0 | AW46: 0 | AZ46: 0 | BA46: 0 | BB46: 0 | BC46: 0 | BD46: 0 | BE46: 0 | BF46: 0 | BG46: 0 | BH46: 0 | BI46: 0 | BJ46: 0 | BK46: 0 | BL46: 0 | BM46: 0 | BN46: 0 | BO46: 0 | BP46: 0 | BQ46: 0 | BR46: 0 | BS46: 0 | BT46: 0 | BU46: 0 | BV46: 1 | BW46: 0 | BX46: 1 | BY46: 1 | BZ46: 0 | CA46: 1 | CB46: 0 | CC46: 0 | CD46: 0 | CE46: 0 | CF46: 0 | CG46: 0 | CH46: 0 | CI46: 0 | CJ46: 0 | CK46: 0 | CL46: 0 | CM46: 0 | CN46: 0
A47: 43 | B47: Felipe Franca | C47: 206 | E47: 0 | I47: 0 | L47: 29 | M47: 12 | O47: SIM | P47: 17 | Q47: 24 | T47: 17 | U47: 24 | X47: 3 | Y47: 52 | Z47: 2 | AB47: 15 | AC47: 28 | AF47: 19 | AG47: 22 | AK47: 0 | AN47: 21 | AO47: 20 | AR47: 13 | AS47: 32 | AW47: 0 | AY47: -10 | AZ47: 0 | BA47: 0 | BB47: 1 | BC47: 0 | BD47: 0 | BE47: 0 | BF47: 0 | BG47: 0 | BH47: 0 | BI47: 0 | BJ47: 0 | BK47: 0 | BL47: 1 | BM47: 0 | BN47: 1 | BO47: 0 | BP47: 2 | BQ47: 0 | BR47: 1 | BS47: 0 | BT47: 1 | BU47: 0 | BV47: 0 | BW47: 0 | BX47: 0 | BY47: 0 | BZ47: 0 | CA47: 0 | CB47: 1 | CC47: 0 | CD47: 0 | CE47: 0 | CF47: 0 | CG47: 0 | CH47: 0 | CI47: 0 | CJ47: 0 | CK47: 0 | CL47: 0 | CM47: 0 | CN47: 0
A48: 44 | B48: Roberto Torres | C48: 93 | E48: 0 | I48: 0 | L48: 10 | M48: 38 | P48: 2 | Q48: 55 | U48: 0 | Y48: 0 | AC48: 0 | AG48: 0 | AK48: 0 | AO48: 0 | AS48: 0 | AW48: 0 | AZ48: 0 | BA48: 1 | BB48: 0 | BC48: 0 | BD48: 0 | BE48: 0 | BF48: 0 | BG48: 0 | BH48: 0 | BI48: 1 | BJ48: 0 | BK48: 0 | BL48: 0 | BM48: 0 | BN48: 0 | BO48: 0 | BP48: 0 | BQ48: 0 | BR48: 0 | BS48: 0 | BT48: 0 | BU48: 0 | BV48: 0 | BW48: 0 | BX48: 0 | BY48: 0 | BZ48: 0 | CA48: 0 | CB48: 0 | CC48: 0 | CD48: 0 | CE48: 0 | CF48: 0 | CG48: 0 | CH48: 0 | CI48: 0 | CJ48: 0 | CK48: 0 | CL48: 0 | CM48: 0 | CN48: 0
AZ49: 0 | BA49: 0 | BB49: 0 | BC49: 0 | BD49: 0 | BE49: 0 | BF49: 0 | BG49: 0 | BH49: 0 | BI49: 0 | BJ49: 0 | BK49: 0 | BL49: 0 | BM49: 0 | BN49: 0 | BO49: 0 | BP49: 0 | BQ49: 0 | BR49: 0 | BS49: 0 | BT49: 0 | BU49: 0 | BV49: 0 | BW49: 0 | BX49: 0 | BY49: 0 | BZ49: 0 | CA49: 0 | CB49: 0 | CC49: 0 | CD49: 0 | CE49: 0 | CF49: 0 | CG49: 0 | CH49: 0 | CI49: 0 | CJ49: 0 | CK49: 0 | CL49: 0 | CM49: 0 | CN49: 0

Sheet Classificação Geral
A1: 2021 | E1: OK | I1: OK | M1: OK | Q1: OK | U1: OK | Y1: OK | AC1: OK | AG1: OK | AK1: OK | AO1: OK | AS1: OK | AW1: OK
D2: 1ª etapa | H2: 2ª etapa | L2: 3ª etapa | P2: 4ª etapa | T2: 5ª etapa | X2: Etapa 6 11/07/2021 - 10:00 | AB2: Etapa 7 18/07/2021 - 10:00 | AF2: Etapa 8 15/08/2021 - 10:00 | AJ2: Etapa 9 12/09/2021 - 10:00 - Domingo | AN2: Etapa 10 17/10/2021 - 10:00 - Domingo | AR2: 11ª etapa | AV2: 12ª etapa
B4: Nome do (a) Piloto (a) | C4: Pontuação Geral | D4: Posição | E4: Pontos | F4: Bônus | G4: Penalidade | H4: Posição | I4: Pontos | J4: Bônus | K4: Penalidade | L4: Posição | M4: Pontos | N4: Bônus | O4: Penalidade | P4: Posição | Q4: Pontos | R4: Bônus | S4: Penalidade | T4: Posição | U4: Pontos | V4: Bônus | W4: Penalidade | X4: Posição | Y4: Pontos | Z4: Bônus | AA4: Penalidade | AB4: Posição | AC4: Pontos | AD4: Bônus | AE4: Penalidade | AF4: Posição | AG4: Pontos | AH4: Bônus | AI4: Penalidade | AJ4: Posição | AK4: Pontos | AL4: Bônus | AM4: Penalidade | AN4: Posição | AO4: Pontos | AP4: Bônus | AQ4: Penalidade | AR4: Posição | AS4: Pontos | AT4: Bônus | AU4: Penalidade | AV4: Posição | AW4: Pontos | AX4: Bônus | AY4: Penalidade | AZ4: 1º LUGAR | BA4: 2º LUGAR | BB4: 3º LUGAR | BC4: 4º LUGAR | BD4: 5º LUGAR | BE4: 6º LUGAR | BF4: 7º LUGAR | BG4: 8º LUGAR | BH4: 9º LUGAR | BI4: 10º LUGAR | BJ4: 11º LUGAR | BK4: 12º LUGAR | BL4: 13º LUGAR | BM4: 14º LUGAR | BN4: 15º LUGAR | BO4: 16º LUGAR | BP4: 17º LUGAR | BQ4: 18º LUGAR | BR4: 19º LUGAR | BS4: 20º LUGAR | BT4: 21º LUGAR | BU4: 22º LUGAR | BV4: 23º LUGAR | BW4: 24º LUGAR | BX4: 25º LUGAR | BY4: 26º LUGAR | BZ4: 27º LUGAR | CA4: 28º LUGAR | CB4: 29º LUGAR | CC4: 30º LUGAR | CD4: 31º LUGAR | CE4: 32º LUGAR | CF4: 33º LUGAR | CG4: 34º LUGAR | CH4: 35º LUGAR | CI4: 36º LUGAR | CJ4: 37º LUGAR | CK4: 38º LUGAR | CL4: 39º LUGAR | CM4: 40º LUGAR | CN4: 41º LUGAR
A5: 1 | B5: Marcelo Campos | C5: 520 | D5: 9 | E5: 40 | H5: 30 | I5: 11 | L5: 2 | M5: 55 | P5: 7 | Q5: 44 | T5: 8 | U5: 42 | X5: 5 | Y5: 48 | AB5: 1 | AC5: 60 | AD5: 2 | AF5: 11 | AG5: 36 | AJ5: 9 | AK5: 40 | AN5: 13 | AO5: 32 | AR5: 2 | AS5: 55 | AV5: 2 | AW5: 55 | AZ5: 1 | BA5: 3 | BB5: 0 | BC5: 0 | BD5: 1 | BE5: 0 | BF5: 1 | BG5: 1 | BH5: 2 | BI5: 0 | BJ5: 1 | BK5: 0 | BL5: 1 | BM5: 0 | BN5: 0 | BO5: 0 | BP5: 0 | BQ5: 0 | BR5: 0 | BS5: 0 | BT5: 0 | BU5: 0 | BV5: 0 | BW5: 0 | BX5: 0 | BY5: 0 | BZ5: 0 | CA5: 0 | CB5: 0 | CC5: 1 | CD5: 0 | CE5: 0 | CF5: 0 | CG5: 0 | CH5: 0 | CI5: 0 | CJ5: 0 | CK5: 0 | CL5: 0 | CM5: 0 | CN5: 0
A6: 2 | B6: Léo Oliveira | C6: 483 | D6: 2 | E6: 55 | H6: 1 | I6: 60 | L6: 3 | M6: 52 | N6: 2 | P6: 5 | Q6: 48 | U6: 0 | Y6: 0 | AB6: 11 | AC6: 36 | AG6: 0 | AJ6: 6 | AK6: 46 | AN6: 1 | AO6: 60 | AP6: 2 | AR6: 1 | AS6: 60 | AV6: 1 | AW6: 60 | AX6: 2 | AZ6: 4 | BA6: 1 | BB6: 1 | BC6: 0 | BD6: 1 | BE6: 1 | BF6: 0 | BG6: 0 | BH6: 0 | BI6: 0 | BJ6: 1 | BK6: 0 | BL6: 0 | BM6: 0 | BN6: 0 | BO6: 0 | BP6: 0 | BQ6: 0 | BR6: 0 | BS6: 0 | BT6: 0 | BU6: 0 | BV6: 0 | BW6: 0 | BX6: 0 | BY6: 0 | BZ6: 0 | CA6: 0 | CB6: 0 | CC6: 0 | CD6: 0 | CE6: 0 | CF6: 0 | CG6: 0 | CH6: 0 | CI6: 0 | CJ6: 0 | CK6: 0 | CL6: 0 | CM6: 0 | CN6: 0
A7: 3 | B7: Guilherme Alves | C7: 452 | D7: 13 | E7: 32 | H7: 16 | I7: 26 | K7: SIM | L7: 15 | M7: 28 | P7: 12 | Q7: 34 | T7: 6 | U7: 46 | V7: 2 | X7: 16 | Y7: 26 | AB7: 6 | AC7: 46 | AF7: 14 | AG7: 30 | AJ7: 4 | AK7: 50 | AN7: 6 | AO7: 46 | AR7: 11 | AS7: 36 | AV7: 4 | AW7: 50 | AZ7: 0 | BA7: 0 | BB7: 0 | BC7: 2 | BD7: 0 | BE7: 3 | BF7: 0 | BG7: 0 | BH7: 0 | BI7: 0 | BJ7: 1 | BK7: 1 | BL7: 1 | BM7: 1 | BN7: 1 | BO7: 2 | BP7: 0 | BQ7: 0 | BR7: 0 | BS7: 0 | BT7: 0 | BU7: 0 | BV7: 0 | BW7: 0 | BX7: 0 | BY7: 0 | BZ7: 0 | CA7: 0 | CB7: 0 | CC7: 0 | CD7: 0 | CE7: 0 | CF7: 0 | CG7: 0 | CH7: 0 | CI7: 0 | CJ7: 0 | CK7: 0 | CL7: 0 | CM7: 0 | CN7: 0
A8: 4 | B8: Marcelo Sant'anna | C8: 439 | D8: 8 | E8: 42 | H8: 8 | I8: 42 | L8: 33 | M8: 8 | O8: SIM | P8: 22 | Q8: 19 | T8: 10 | U8: 38 | X8: 6 | Y8: 46 | AB8: 3 | AC8: 52 | AF8: 12 | AG8: 34 | AJ8: 3 | AK8: 52 | AN8: 10 | AO8: 38 | AR8: 9 | AS8: 40 | AV8: 15 | AW8: 28 | AZ8: 0 | BA8: 0 | BB8: 2 | BC8: 0 | BD8: 0 | BE8: 1 | BF8: 0 | BG8: 2 | BH8: 1 | BI8: 2 | BJ8: 0 | BK8: 1 | BL8: 0 | BM8: 0 | BN8: 1 | BO8: 0 | BP8: 0 | BQ8: 0 | BR8: 0 | BS8: 0 | BT8: 0 | BU8: 1 | BV8: 0 | BW8: 0 | BX8: 0 | BY8: 0 | BZ8: 0 | CA8: 0 | CB8: 0 | CC8: 0 | CD8: 0 | CE8: 0 | CF8: 1 | CG8: 0 | CH8: 0 | CI8: 0 | CJ8: 0 | CK8: 0 | CL8: 0 | CM8: 0 | CN8: 0
A9: 5 | B9: Daniel Nahum | C9: 430 | D9: 26 | E9: 15 | H9: 3 | I9: 52 | L9: 7 | M9: 44 | P9: 16 | Q9: 26 | R9: 2 | T9: 9 | U9: 40 | Y9: 0 | AB9: 13 | AC9: 32 | AF9: 9 | AG9: 40 | AJ9: 2 | AK9: 55 | AN9: 9 | AO9: 40 | AR9: 4 | AS9: 50 | AT9: 2 | AV9: 13 | AW9: 32 | AZ9: 0 | BA9: 1 | BB9: 1 | BC9: 1 | BD9: 0 | BE9: 0 | BF9: 1 | BG9: 0 | BH9: 3 | BI9: 0 | BJ9: 0 | BK9: 0 | BL9: 2 | BM9: 0 | BN9: 0 | BO9: 1 | BP9: 0 | BQ9: 0 | BR9: 0 | BS9: 0 | BT9: 0 | BU9: 0 | BV9: 0 | BW9: 0 | BX9: 0 | BY9: 1 | BZ9: 0 | CA9: 0 | CB9: 0 | CC9: 0 | CD9: 0 | CE9: 0 | CF9: 0 | CG9: 0 | CH9: 0 | CI9: 0 | CJ9: 0 | CK9: 0 | CL9: 0 | CM9: 0 | CN9: 0
A10: 6 | B10: Diego Silva | C10: 408 | D10: 17 | E10: 24 | F10: 2 | H10: 9 | I10: 40 | L10: 16 | M10: 26 | P10: 4 | Q10: 50 | T10: 14 | U10: 30 | X10: 20 | Y10: 21 | AB10: 24 | AC10: 17 | AF10: 1 | AG10: 60 | AJ10: 29 | AK10: 12 | AM10: SIM | AN10: 7 | AO10: 44 | AR10: 5 | AS10: 48 | AV10: 12 | AW10: 34 | AZ10: 1 | BA10: 0 | BB10: 0 | BC10: 1 | BD10: 1 | BE10: 0 | BF10: 1 | BG10: 0 | BH10: 1 | BI10: 0 | BJ10: 0 | BK10: 1 | BL10: 0 | BM10: 1 | BN10: 0 | BO10: 1 | BP10: 1 | BQ10: 0 | BR10: 0 | BS10: 1 | BT10: 0 | BU10: 0 | BV10: 0 | BW10: 1 | BX10: 0 | BY10: 0 | BZ10: 0 | CA10: 0 | CB10: 1 | CC10: 0 | CD10: 0 | CE10: 0 | CF10: 0 | CG10: 0 | CH10: 0 | CI10: 0 | CJ10: 0 | CK10: 0 | CL10: 0 | CM10: 0 | CN10: 0
A11: 7 | B11: Gabriel Veloso | C11: 403 | D11: 31 | E11: 10 | H11: 7 | I11: 44 | L11: 20 | M11: 21 | P11: 10 | Q11: 38 | T11: 1 | U11: 60 | X11: 4 | Y11: 50 | AB11: 5 | AC11: 48 | AE11: -10 | AF11: 13 | AG11: 32 | AJ11: 5 | AK11: 48 | AN11: 16 | AO11: 26 | AS11: 0 | AU11: -10 | AV11: 6 | AW11: 46 | AZ11: 1 | BA11: 0 | BB11: 0 | BC11: 1 | BD11: 2 | BE11: 1 | BF11: 1 | BG11: 0 | BH11: 0 | BI11: 1 | BJ11: 0 | BK11: 0 | BL11: 1 | BM11: 0 | BN11: 0 | BO11: 1 | BP11: 0 | BQ11: 0 | BR11: 0 | BS11: 1 | BT11: 0 | BU11: 0 | BV11: 0 | BW11: 0 | BX11: 0 | BY11: 0 | BZ11: 0 | CA11: 0 | CB11: 0 | CC11: 0 | CD11: 1 | CE11: 0 | CF11: 0 | CG11: 0 | CH11: 0 | CI11: 0 | CJ11: 0 | CK11: 0 | CL11: 0 | CM11: 0 | CN11: 0
A12: 8 | B12: Alexandre Melillo | C12: 403 | D12: 14 | E12: 30 | H12: 14 | I12: 30 | L12: 9 | M12: 40 | P12: 18 | Q12: 23 | T12: 19 | U12: 22 | X12: 8 | Y12: 42 | AB12: 10 | AC12: 38 | AF12: 17 | AG12: 24 | AJ12: 12 | AK12: 34 | AN12: 14 | AO12: 30 | AR12: 3 | AS12: 52 | AV12: 10 | AW12: 38 | AZ12: 0 | BA12: 0 | BB12: 1 | BC12: 0 | BD12: 0 | BE12: 0 | BF12: 0 | BG12: 1 | BH12: 1 | BI12: 2 | BJ12: 0 | BK12: 1 | BL12: 0 | BM12: 3 | BN12: 0 | BO12: 0 | BP12: 1 | BQ12: 1 | BR12: 1 | BS12: 0 | BT12: 0 | BU12: 0 | BV12: 0 | BW12: 0 | BX12: 0 | BY12: 0 | BZ12: 0 | CA12: 0 | CB12: 0 | CC12: 0 | CD12: 0 | CE12: 0 | CF12: 0 | CG12: 0 | CH12: 0 | CI12: 0 | CJ12: 0 | CK12: 0 | CL12: 0 | CM12: 0 | CN12: 0
A13: 9 | B13: Leonardo Bastos | C13: 344 | D13: 11 | E13: 36 | H13: 12 | I13: 34 | L13: 14 | M13: 30 | P13: 25 | Q13: 16 | T13: 3 | U13: 52 | X13: 17 | Y13: 24 | AB13: 14 | AC13: 30 | AF13: 3 | AG13: 52 | AJ13: 10 | AK13: 38 | AO13: 0 | AR13: 8 | AS13: 42 | AW13: 0 | AY13: -10 | AZ13: 0 | BA13: 0 | BB13: 2 | BC13: 0 | BD13: 0 | BE13: 0 | BF13: 0 | BG13: 1 | BH13: 0 | BI13: 1 | BJ13: 1 | BK13: 1 | BL13: 0 | BM13: 2 | BN13: 0 | BO13: 0 | BP13: 1 | BQ13: 0 | BR13: 0 | BS13: 0 | BT13: 0 | BU13: 0 | BV13: 0 | BW13: 0 | BX13: 1 | BY13: 0 | BZ13: 0 | CA13: 0 | CB13: 0 | CC13: 0 | CD13: 0 | CE13: 0 | CF13: 0 | CG13: 0 | CH13: 0 | CI13: 0 | CJ13: 0 | CK13: 0 | CL13: 0 | CM13: 0 | CN13: 0
A14: 10 | B14: Rafael Miranda | C14: 325 | D14: 12 | E14: 34 | I14: 0 | K14: -10 | L14: 12 | M14: 34 | P14: 13 | Q14: 32 | T14: 7 | U14: 44 | X14: 1 | Y14: 60 | AB14: 22 | AC14: 19 | AF14: 5 | AG14: 48 | AJ14: 8 | AK14: 42 | AO14: 0 | AQ14: -10 | AS14: 0 | AU14: -10 | AV14: 8 | AW14: 42 | AZ14: 1 | BA14: 0 | BB14: 0 | BC14: 0 | BD14: 1 | BE14: 0 | BF14: 1 | BG14: 2 | BH14: 0 | BI14: 0 | BJ14: 0 | BK14: 2 | BL14: 1 | BM14: 0 | BN14: 0 | BO14: 0 | BP14: 0 | BQ14: 0 | BR14: 0 | BS14: 0 | BT14: 0 | BU14: 1 | BV14: 0 | BW14: 0 | BX14: 0 | BY14: 0 | BZ14: 0 | CA14: 0 | CB14: 0 | CC14: 0 | CD14: 0 | CE14: 0 | CF14: 0 | CG14: 0 | CH14: 0 | CI14: 0 | CJ14: 0 | CK14: 0 | CL14: 0 | CM14: 0 | CN14: 0
A15: 11 | B15: Marcelo Clemente | C15: 324 | D15: 20 | E15: 21 | I15: 0 | M15: 0 | P15: 20 | Q15: 21 | S15: SIM | T15: 11 | U15: 36 | X15: 10 | Y15: 38 | AC15: 0 | AE15: -10 | AF15: 27 | AG15: 14 | AJ15: 1 | AK15: 60 | AN15: 4 | AO15: 50 | AR15: 6 | AS15: 46 | AV15: 5 | AW15: 48 | AZ15: 1 | BA15: 0 | BB15: 0 | BC15: 1 | BD15: 1 | BE15: 1 | BF15: 0 | BG15: 0 | BH15: 0 | BI15: 1 | BJ15: 1 | BK15: 0 | BL15: 0 | BM15: 0 | BN15: 0 | BO15: 0 | BP15: 0 | BQ15: 0 | BR15: 0 | BS15: 2 | BT15: 0 | BU15: 0 | BV15: 0 | BW15: 0 | BX15: 0 | BY15: 0 | BZ15: 1 | CA15: 0 | CB15: 0 | CC15: 0 | CD15: 0 | CE15: 0 | CF15: 0 | CG15: 0 | CH15: 0 | CI15: 0 | CJ15: 0 | CK15: 0 | CL15: 0 | CM15: 0 | CN15: 0
A16: 12 | B16: Marcelo Surerus | C16: 321 | D16: 23 | E16: 18 | I16: 0 | L16: 22 | M16: 19 | P16: 3 | Q16: 52 | T16: 4 | U16: 50 | X16: 7 | Y16: 44 | AB16: 12 | AC16: 34 | AF16: 8 | AG16: 42 | AJ16: 11 | AK16: 36 | AN16: 11 | AO16: 36 | AS16: 0 | AW16: 0 | AY16: -10 | AZ16: 0 | BA16: 0 | BB16: 1 | BC16: 1 | BD16: 0 | BE16: 0 | BF16: 1 | BG16: 1 | BH16: 0 | BI16: 0 | BJ16: 2 | BK16: 1 | BL16: 0 | BM16: 0 | BN16: 0 | BO16: 0 | BP16: 0 | BQ16: 0 | BR16: 0 | BS16: 0 | BT16: 0 | BU16: 1 | BV16: 1 | BW16: 0 | BX16: 0 | BY16: 0 | BZ16: 0 | CA16: 0 | CB16: 0 | CC16: 0 | CD16: 0 | CE16: 0 | CF16: 0 | CG16: 0 | CH16: 0 | CI16: 0 | CJ16: 0 | CK16: 0 | CL16: 0 | CM16: 0 | CN16: 0
A17: 13 | B17: Rodrigo Mercadante | C17: 319 | E17: 0 | G17: -10 | I17: 0 | K17: -10 | M17: 0 | P17: 11 | Q17: 36 | T17: 2 | U17: 55 | X17: 9 | Y17: 40 | AB17: 4 | AC17: 50 | AF17: 4 | AG17: 50 | AJ17: 7 | AK17: 44 | AL17: 2 | AO17: 0 | AR17: 16 | AS17: 26 | AV17: 11 | AW17: 36 | AZ17: 0 | BA17: 1 | BB17: 0 | BC17: 2 | BD17: 0 | BE17: 0 | BF17: 1 | BG17: 0 | BH17: 1 | BI17: 0 | BJ17: 2 | BK17: 0 | BL17: 0 | BM17: 0 | BN17: 0 | BO17: 1 | BP17: 0 | BQ17: 0 | BR17: 0 | BS17: 0 | BT17: 0 | BU17: 0 | BV17: 0 | BW17: 0 | BX17: 0 | BY17: 0 | BZ17: 0 | CA17: 0 | CB17: 0 | CC17: 0 | CD17: 0 | CE17: 0 | CF17: 0 | CG17: 0 | CH17: 0 | CI17: 0 | CJ17: 0 | CK17: 0 | CL17: 0 | CM17: 0 | CN17: 0
A18: 14 | B18: Jarbas Reis | C18: 311 | D18: 15 | E18: 28 | H18: 20 | I18: 21 | L18: 19 | M18: 22 | P18: 6 | Q18: 46 | T18: 16 | U18: 26 | X18: 11 | Y18: 36 | AB18: 17 | AC18: 24 | AG18: 0 | AJ18: 15 | AK18: 28 | AN18: 15 | AO18: 28 | AS18: 0 | AV18: 3 | AW18: 52 | AZ18: 0 | BA18: 0 | BB18: 1 | BC18: 0 | BD18: 0 | BE18: 1 | BF18: 0 | BG18: 0 | BH18: 0 | BI18: 0 | BJ18: 1 | BK18: 0 | BL18: 0 | BM18: 0 | BN18: 3 | BO18: 1 | BP18: 1 | BQ18: 0 | BR18: 1 | BS18: 1 | BT18: 0 | BU18: 0 | BV18: 0 | BW18: 0 | BX18: 0 | BY18: 0 | BZ18: 0 | CA18: 0 | CB18: 0 | CC18: 0 | CD18: 0 | CE18: 0 | CF18: 0 | CG18: 0 | CH18: 0 | CI18: 0 | CJ18: 0 | CK18: 0 | CL18: 0 | CM18: 0 | CN18: 0
A19: 15 | B19: Rafael Alves | C19: 301 | D19: 27 | E19: 14 | H19: 6 | I19: 46 | L19: 30 | M19: 11 | O19: SIM | P19: 21 | Q19: 20 | T19: 13 | U19: 32 | X19: 13 | Y19: 32 | AB19: 16 | AC19: 26 | AF19: 24 | AG19: 17 | AJ19: 18 | AK19: 23 | AN19: 3 | AO19: 52 | AR19: 10 | AS19: 38 | AW19: 0 | AY19: -10 | AZ19: 0 | BA19: 0 | BB19: 1 | BC19: 0 | BD19: 0 | BE19: 1 | BF19: 0 | BG19: 0 | BH19: 0 | BI19: 1 | BJ19: 0 | BK19: 0 | BL19: 2 | BM19: 0 | BN19: 0 | BO19: 1 | BP19: 0 | BQ19: 1 | BR19: 0 | BS19: 0 | BT19: 1 | BU19: 0 | BV19: 0 | BW19: 1 | BX19: 0 | BY19: 0 | BZ19: 1 | CA19: 0 | CB19: 0 | CC19: 1 | CD19: 0 | CE19: 0 | CF19: 0 | CG19: 0 | CH19: 0 | CI19: 0 | CJ19: 0 | CK19: 0 | CL19: 0 | CM19: 0 | CN19: 0
A20: 16 | B20: Daniel Paranhos | C20: 288 | D20: 28 | E20: 13 | H20: 10 | I20: 38 | L20: 13 | M20: 32 | P20: 23 | Q20: 18 | T20: 15 | U20: 28 | X20: 18 | Y20: 23 | AC20: 0 | AF20: 7 | AG20: 44 | AJ20: 14 | AK20: 30 | AN20: 12 | AO20: 34 | AR20: 15 | AS20: 28 | AW20: 0 | AZ20: 0 | BA20: 0 | BB20: 0 | BC20: 0 | BD20: 0 | BE20: 0 | BF20: 1 | BG20: 0 | BH20: 0 | BI20: 1 | BJ20: 0 | BK20: 1 | BL20: 1 | BM20: 1 | BN20: 2 | BO20: 0 | BP20: 0 | BQ20: 1 | BR20: 0 | BS20: 0 | BT20: 0 | BU20: 0 | BV20: 1 | BW20: 0 | BX20: 0 | BY20: 0 | BZ20: 0 | CA20: 1 | CB20: 0 | CC20: 0 | CD20: 0 | CE20: 0 | CF20: 0 | CG20: 0 | CH20: 0 | CI20: 0 | CJ20: 0 | CK20: 0 | CL20: 0 | CM20: 0 | CN20: 0
A21: 17 | B21: Eduardo Henrique | C21: 278 | D21: 22 | E21: 19 | H21: 15 | I21: 28 | M21: 0 | P21: 9 | Q21: 40 | T21: 25 | U21: 16 | Y21: 0 | AA21: -10 | AB21: 23 | AC21: 18 | AF21: 23 | AG21: 18 | AJ21: 17 | AK21: 24 | AN21: 2 | AO21: 55 | AR21: 7 | AS21: 44 | AV21: 16 | AW21: 26 | AZ21: 0 | BA21: 1 | BB21: 0 | BC21: 0 | BD21: 0 | BE21: 0 | BF21: 1 | BG21: 0 | BH21: 1 | BI21: 0 | BJ21: 0 | BK21: 0 | BL21: 0 | BM21: 0 | BN21: 1 | BO21: 1 | BP21: 1 | BQ21: 0 | BR21: 0 | BS21: 0 | BT21: 0 | BU21: 1 | BV21: 2 | BW21: 0 | BX21: 1 | BY21: 0 | BZ21: 0 | CA21: 0 | CB21: 0 | CC21: 0 | CD21: 0 | CE21: 0 | CF21: 0 | CG21: 0 | CH21: 0 | CI21: 0 | CJ21: 0 | CK21: 0 | CL21: 0 | CM21: 0 | CN21: 0
A22: 18 | B22: Alan Silva | C22: 272 | D22: 3 | E22: 52 | I22: 0 | K22: -10 | M22: 0 | O22: -10 | P22: 15 | Q22: 28 | T22: 29 | U22: 12 | X22: 14 | Y22: 30 | AB22: 7 | AC22: 44 | AF22: 2 | AG22: 55 | AJ22: 24 | AK22: 17 | AM22: SIM | AN22: 8 | AO22: 42 | AR22: 19 | AS22: 22 | AW22: 0 | AY22: -10 | AZ22: 0 | BA22: 1 | BB22: 1 | BC22: 0 | BD22: 0 | BE22: 0 | BF22: 1 | BG22: 1 | BH22: 0 | BI22: 0 | BJ22: 0 | BK22: 0 | BL22: 0 | BM22: 1 | BN22: 1 | BO22: 0 | BP22: 0 | BQ22: 0 | BR22: 1 | BS22: 0 | BT22: 0 | BU22: 0 | BV22: 0 | BW22: 1 | BX22: 0 | BY22: 0 | BZ22: 0 | CA22: 0 | CB22: 1 | CC22: 0 | CD22: 0 | CE22: 0 | CF22: 0 | CG22: 0 | CH22: 0 | CI22: 0 | CJ22: 0 | CK22: 0 | CL22: 0 | CM22: 0 | CN22: 0
A23: 19 | B23: Cláudio Dumont | C23: 234 | D23: 5 | E23: 48 | H23: 24 | I23: 17 | L23: 1 | M23: 60 | P23: 1 | Q23: 60 | T23: 5 | U23: 48 | X23: 22 | Y23: 19 | AA23: SIM | AC23: 0 | AE23: -10 | AG23: 0 | AI23: -10 | AJ23: 13 | AK23: 32 | AO23: 0 | AQ23: -10 | AS23: 0 | AU23: -10 | AW23: 0 | AY23: -10 | AZ23: 2 | BA23: 0 | BB23: 0 | BC23: 0 | BD23: 2 | BE23: 0 | BF23: 0 | BG23: 0 | BH23: 0 | BI23: 0 | BJ23: 0 | BK23: 0 | BL23: 1 | BM23: 0 | BN23: 0 | BO23: 0 | BP23: 0 | BQ23: 0 | BR23: 0 | BS23: 0 | BT23: 0 | BU23: 1 | BV23: 0 | BW23: 1 | BX23: 0 | BY23: 0 | BZ23: 0 | CA23: 0 | CB23: 0 | CC23: 0 | CD23: 0 | CE23: 0 | CF23: 0 | CG23: 0 | CH23: 0 | CI23: 0 | CJ23: 0 | CK23: 0 | CL23: 0 | CM23: 0 | CN23: 0
A24: 20 | B24: Jean Paul | C24: 231 | D24: 24 | E24: 17 | H24: 25 | I24: 16 | L24: 5 | M24: 48 | P24: 28 | Q24: 13 | T24: 22 | U24: 19 | X24: 19 | Y24: 22 | AB24: 18 | AC24: 23 | AF24: 16 | AG24: 26 | AJ24: 16 | AK24: 26 | AN24: 20 | AO24: 21 | AS24: 0 | AW24: 0 | AZ24: 0 | BA24: 0 | BB24: 0 | BC24: 0 | BD24: 1 | BE24: 0 | BF24: 0 | BG24: 0 | BH24: 0 | BI24: 0 | BJ24: 0 | BK24: 0 | BL24: 0 | BM24: 0 | BN24: 0 | BO24: 2 | BP24: 0 | BQ24: 1 | BR24: 1 | BS24: 1 | BT24: 0 | BU24: 1 | BV24: 0 | BW24: 1 | BX24: 1 | BY24: 0 | BZ24: 0 | CA24: 1 | CB24: 0 | CC24: 0 | CD24: 0 | CE24: 0 | CF24: 0 | CG24: 0 | CH24: 0 | CI24: 0 | CJ24: 0 | CK24: 0 | CL24: 0 | CM24: 0 | CN24: 0
A25: 21 | B25: Rafael Cantoni | C25: 222 | D25: 10 | E25: 38 | H25: 11 | I25: 36 | L25: 8 | M25: 42 | P25: 31 | Q25: 10 | T25: 21 | U25: 20 | W25: SIM | Y25: 0 | AB25: 8 | AC25: 42 | AG25: 0 | AI25: -10 | AK25: 0 | AO25: 0 | AS25: 0 | AV25: 7 | AW25: 44 | AZ25: 0 | BA25: 0 | BB25: 0 | BC25: 0 | BD25: 0 | BE25: 0 | BF25: 1 | BG25: 2 | BH25: 0 | BI25: 1 | BJ25: 1 | BK25: 0 | BL25: 0 | BM25: 0 | BN25: 0 | BO25: 0 | BP25: 0 | BQ25: 0 | BR25: 0 | BS25: 0 | BT25: 1 | BU25: 0 | BV25: 0 | BW25: 0 | BX25: 0 | BY25: 0 | BZ25: 0 | CA25: 0 | CB25: 0 | CC25: 0 | CD25: 1 | CE25: 0 | CF25: 0 | CG25: 0 | CH25: 0 | CI25: 0 | CJ25: 0 | CK25: 0 | CL25: 0 | CM25: 0 | CN25: 0
A26: 22 | B26: Wesley Bambirra | C26: 210 | D26: 7 | E26: 44 | H26: 5 | I26: 48 | L26: 6 | M26: 46 | Q26: 0 | T26: 27 | U26: 14 | Y26: 0 | AA26: -10 | AC26: 0 | AF26: 10 | AG26: 38 | AK26: 0 | AN26: 23 | AO26: 18 | AQ26: SIM | AR26: 29 | AS26: 12 | AU26: SIM | AW26: 0 | AZ26: 0 | BA26: 0 | BB26: 0 | BC26: 0 | BD26: 1 | BE26: 1 | BF26: 1 | BG26: 0 | BH26: 0 | BI26: 1 | BJ26: 0 | BK26: 0 | BL26: 0 | BM26: 0 | BN26: 0 | BO26: 0 | BP26: 0 | BQ26: 0 | BR26: 0 | BS26: 0 | BT26: 0 | BU26: 0 | BV26: 1 | BW26: 0 | BX26: 0 | BY26: 0 | BZ26: 1 | CA26: 0 | CB26: 1 | CC26: 0 | CD26: 0 | CE26: 0 | CF26: 0 | CG26: 0 | CH26: 0 | CI26: 0 | CJ26: 0 | CK26: 0 | CL26: 0 | CM26: 0 | CN26: 0
A27: 23 | B27: Leonardo Bosco | C27: 208 | D27: 16 | E27: 26 | H27: 13 | I27: 32 | L27: 4 | M27: 50 | P27: 29 | Q27: 12 | T27: 12 | U27: 34 | X27: 23 | Y27: 18 | AC27: 0 | AF27: 6 | AG27: 46 | AJ27: 31 | AK27: 10 | AM27: SIM | AO27: 0 | AS27: 0 | AU27: -10 | AW27: 0 | AY27: -10 | AZ27: 0 | BA27: 0 | BB27: 0 | BC27: 1 | BD27: 0 | BE27: 1 | BF27: 0 | BG27: 0 | BH27: 0 | BI27: 0 | BJ27: 0 | BK27: 1 | BL27: 1 | BM27: 0 | BN27: 0 | BO27: 1 | BP27: 0 | BQ27: 0 | BR27: 0 | BS27: 0 | BT27: 0 | BU27: 0 | BV27: 1 | BW27: 0 | BX27: 0 | BY27: 0 | BZ27: 0 | CA27: 0 | CB27: 1 | CC27: 0 | CD27: 1 | CE27: 0 | CF27: 0 | CG27: 0 | CH27: 0 | CI27: 0 | CJ27: 0 | CK27: 0 | CL27: 0 | CM27: 0 | CN27: 0
A28: 24 | B28: Felipe Franca | C28: 206 | E28: 0 | I28: 0 | L28: 29 | M28: 12 | O28: SIM | P28: 17 | Q28: 24 | T28: 17 | U28: 24 | X28: 3 | Y28: 52 | Z28: 2 | AB28: 15 | AC28: 28 | AF28: 19 | AG28: 22 | AK28: 0 | AN28: 21 | AO28: 20 | AR28: 13 | AS28: 32 | AW28: 0 | AY28: -10 | AZ28: 0 | BA28: 0 | BB28: 1 | BC28: 0 | BD28: 0 | BE28: 0 | BF28: 0 | BG28: 0 | BH28: 0 | BI28: 0 | BJ28: 0 | BK28: 0 | BL28: 1 | BM28: 0 | BN28: 1 | BO28: 0 | BP28: 2 | BQ28: 0 | BR28: 1 | BS28: 0 | BT28: 1 | BU28: 0 | BV28: 0 | BW28: 0 | BX28: 0 | BY28: 0 | BZ28: 0 | CA28: 0 | CB28: 1 | CC28: 0 | CD28: 0 | CE28: 0 | CF28: 0 | CG28: 0 | CH28: 0 | CI28: 0 | CJ28: 0 | CK28: 0 | CL28: 0 | CM28: 0 | CN28: 0
A29: 25 | B29: Wesley Canuto | C29: 196 | E29: 0 | G29: -10 | I29: 0 | L29: 11 | M29: 36 | P29: 8 | Q29: 42 | U29: 0 | X29: 12 | Y29: 34 | AB29: 9 | AC29: 40 | AG29: 0 | AK29: 0 | AO29: 0 | AQ29: -10 | AR29: 12 | AS29: 34 | AV29: 9 | AW29: 40 | AY29: -10 | AZ29: 0 | BA29: 0 | BB29: 0 | BC29: 0 | BD29: 0 | BE29: 0 | BF29: 0 | BG29: 1 | BH29: 2 | BI29: 0 | BJ29: 1 | BK29: 2 | BL29: 0 | BM29: 0 | BN29: 0 | BO29: 0 | BP29: 0 | BQ29: 0 | BR29: 0 | BS29: 0 | BT29: 0 | BU29: 0 | BV29: 0 | BW29: 0 | BX29: 0 | BY29: 0 | BZ29: 0 | CA29: 0 | CB29: 0 | CC29: 0 | CD29: 0 | CE29: 0 | CF29: 0 | CG29: 0 | CH29: 0 | CI29: 0 | CJ29: 0 | CK29: 0 | CL29: 0 | CM29: 0 | CN29: 0
A30: 26 | B30: Victor Silva | C30: 187 | D30: 4 | E30: 50 | G30: -10 | I30: 0 | K30: -10 | L30: 24 | M30: 17 | O30: SIM | P30: 32 | Q30: 9 | T30: 28 | U30: 13 | X30: 2 | Y30: 55 | AB30: 2 | AC30: 55 | AG30: 0 | AI30: -10 | AK30: 0 | AM30: -10 | AN30: 5 | AO30: 48 | AS30: 0 | AU30: -10 | AW30: 0 | AY30: -10 | AZ30: 0 | BA30: 2 | BB30: 0 | BC30: 1 | BD30: 1 | BE30: 0 | BF30: 0 | BG30: 0 | BH30: 0 | BI30: 0 | BJ30: 0 | BK30: 0 | BL30: 0 | BM30: 0 | BN30: 0 | BO30: 0 | BP30: 0 | BQ30: 0 | BR30: 0 | BS30: 0 | BT30: 0 | BU30: 0 | BV30: 0 | BW30: 1 | BX30: 0 | BY30: 0 | BZ30: 0 | CA30: 1 | CB30: 0 | CC30: 0 | CD30: 0 | CE30: 1 | CF30: 0 | CG30: 0 | CH30: 0 | CI30: 0 | CJ30: 0 | CK30: 0 | CL30: 0 | CM30: 0 | CN30: 0
A31: 27 | B31: Raphael Reis | C31: 133 | D31: 29 | E31: 12 | H31: 19 | I31: 22 | L31: 25 | M31: 16 | Q31: 0 | U31: 0 | X31: 21 | Y31: 20 | AC31: 0 | AE31: -10 | AF31: 20 | AG31: 21 | AK31: 0 | AN31: 19 | AO31: 22 | AR31: 14 | AS31: 30 | AW31: 0 | AZ31: 0 | BA31: 0 | BB31: 0 | BC31: 0 | BD31: 0 | BE31: 0 | BF31: 0 | BG31: 0 | BH31: 0 | BI31: 0 | BJ31: 0 | BK31: 0 | BL31: 0 | BM31: 1 | BN31: 0 | BO31: 0 | BP31: 0 | BQ31: 0 | BR31: 2 | BS31: 1 | BT31: 1 | BU31: 0 | BV31: 0 | BW31: 0 | BX31: 1 | BY31: 0 | BZ31: 0 | CA31: 0 | CB31: 1 | CC31: 0 | CD31: 0 | CE31: 0 | CF31: 0 | CG31: 0 | CH31: 0 | CI31: 0 | CJ31: 0 | CK31: 0 | CL31: 0 | CM31: 0 | CN31: 0
A32: 28 | B32: Pedro Mello | C32: 125 | D32: 18 | E32: 23 | H32: 21 | I32: 20 | M32: 0 | O32: -10 | P32: 27 | Q32: 14 | U32: 0 | Y32: 0 | AB32: 19 | AC32: 22 | AF32: 21 | AG32: 20 | AK32: 0 | AM32: -10 | AN32: 18 | AO32: 23 | AR32: 18 | AS32: 23 | AW32: 0 | AZ32: 0 | BA32: 0 | BB32: 0 | BC32: 0 | BD32: 0 | BE32: 0 | BF32: 0 | BG32: 0 | BH32: 0 | BI32: 0 | BJ32: 0 | BK32: 0 | BL32: 0 | BM32: 0 | BN32: 0 | BO32: 0 | BP32: 0 | BQ32: 3 | BR32: 1 | BS32: 0 | BT32: 2 | BU32: 0 | BV32: 0 | BW32: 0 | BX32: 0 | BY32: 0 | BZ32: 1 | CA32: 0 | CB32: 0 | CC32: 0 | CD32: 0 | CE32: 0 | CF32: 0 | CG32: 0 | CH32: 0 | CI32: 0 | CJ32: 0 | CK32: 0 | CL32: 0 | CM32: 0 | CN32: 0
A33: 29 | B33: Marcelo Pereira | C33: 112 | D33: 1 | E33: 60 | H33: 4 | I33: 50 | L33: 27 | M33: 14 | O33: -10 | P33: 14 | Q33: 30 | S33: SIM | U33: 0 | W33: -10 | X33: 36 | Y33: 5 | AA33: SIM | AC33: 0 | AE33: -10 | AF33: 18 | AG33: 23 | AK33: 0 | AM33: -10 | AO33: 0 | AQ33: -10 | AS33: 0 | AU33: -10 | AW33: 0 | AY33: -10 | AZ33: 1 | BA33: 0 | BB33: 0 | BC33: 1 | BD33: 0 | BE33: 0 | BF33: 0 | BG33: 0 | BH33: 0 | BI33: 0 | BJ33: 0 | BK33: 0 | BL33: 0 | BM33: 1 | BN33: 0 | BO33: 0 | BP33: 0 | BQ33: 1 | BR33: 0 | BS33: 0 | BT33: 0 | BU33: 0 | BV33: 0 | BW33: 0 | BX33: 0 | BY33: 0 | BZ33: 1 | CA33: 0 | CB33: 0 | CC33: 0 | CD33: 0 | CE33: 0 | CF33: 0 | CG33: 0 | CH33: 0 | CI33: 1 | CJ33: 0 | CK33: 0 | CL33: 0 | CM33: 0 | CN33: 0
A34: 30 | B34: Saulo Chagas | C34: 97 | D34: 33 | E34: 8 | H34: 23 | I34: 18 | L34: 23 | M34: 18 | P34: 34 | Q34: 7 | S34: SIM | T34: 18 | U34: 23 | Y34: 0 | AB34: 20 | AC34: 21 | AG34: 0 | AJ34: 19 | AK34: 22 | AO34: 0 | AS34: 0 | AU34: -10 | AW34: 0 | AY34: -10 | AZ34: 0 | BA34: 0 | BB34: 0 | BC34: 0 | BD34: 0 | BE34: 0 | BF34: 0 | BG34: 0 | BH34: 0 | BI34: 0 | BJ34: 0 | BK34: 0 | BL34: 0 | BM34: 0 | BN34: 0 | BO34: 0 | BP34: 0 | BQ34: 1 | BR34: 1 | BS34: 1 | BT34: 0 | BU34: 0 | BV34: 2 | BW34: 0 | BX34: 0 | BY34: 0 | BZ34: 0 | CA34: 0 | CB34: 0 | CC34: 0 | CD34: 0 | CE34: 0 | CF34: 1 | CG34: 1 | CH34: 0 | CI34: 0 | CJ34: 0 | CK34: 0 | CL34: 0 | CM34: 0 | CN34: 0
A35: 31 | B35: Roberto Torres | C35: 93 | E35: 0 | I35: 0 | L35: 10 | M35: 38 | P35: 2 | Q35: 55 | U35: 0 | Y35: 0 | AC35: 0 | AG35: 0 | AK35: 0 | AO35: 0 | AS35: 0 | AW35: 0 | AZ35: 0 | BA35: 1 | BB35: 0 | BC35: 0 | BD35: 0 | BE35: 0 | BF35: 0 | BG35: 0 | BH35: 0 | BI35: 1 | BJ35: 0 | BK35: 0 | BL35: 0 | BM35: 0 | BN35: 0 | BO35: 0 | BP35: 0 | BQ35: 0 | BR35: 0 | BS35: 0 | BT35: 0 | BU35: 0 | BV35: 0 | BW35: 0 | BX35: 0 | BY35: 0 | BZ35: 0 | CA35: 0 | CB35: 0 | CC35: 0 | CD35: 0 | CE35: 0 | CF35: 0 | CG35: 0 | CH35: 0 | CI35: 0 | CJ35: 0 | CK35: 0 | CL35: 0 | CM35: 0 | CN35: 0
A36: 32 | B36: Renato Cardoso | C36: 58 | E36: 0 | H36: 29 | I36: 12 | M36: 0 | P36: 30 | Q36: 11 | T36: 30 | U36: 11 | Y36: 0 | AC36: 0 | AG36: 0 | AK36: 0 | AN36: 17 | AO36: 24 | AS36: 0 | AW36: 0 | AZ36: 0 | BA36: 0 | BB36: 0 | BC36: 0 | BD36: 0 | BE36: 0 | BF36: 0 | BG36: 0 | BH36: 0 | BI36: 0 | BJ36: 0 | BK36: 0 | BL36: 0 | BM36: 0 | BN36: 0 | BO36: 0 | BP36: 1 | BQ36: 0 | BR36: 0 | BS36: 0 | BT36: 0 | BU36: 0 | BV36: 0 | BW36: 0 | BX36: 0 | BY36: 0 | BZ36: 0 | CA36: 0 | CB36: 1 | CC36: 2 | CD36: 0 | CE36: 0 | CF36: 0 | CG36: 0 | CH36: 0 | CI36: 0 | CJ36: 0 | CK36: 0 | CL36: 0 | CM36: 0 | CN36: 0
A37: 33 | B37: Neylon Silva | C37: 55 | D37: 30 | E37: 11 | H37: 26 | I37: 15 | M37: 0 | Q37: 0 | T37: 20 | U37: 21 | X37: 15 | Y37: 28 | AB37: 21 | AC37: 20 | AG37: 0 | AK37: 0 | AM37: -10 | AO37: 0 | AQ37: -10 | AS37: 0 | AU37: -10 | AW37: 0 | AY37: -10 | AZ37: 0 | BA37: 0 | BB37: 0 | BC37: 0 | BD37: 0 | BE37: 0 | BF37: 0 | BG37: 0 | BH37: 0 | BI37: 0 | BJ37: 0 | BK37: 0 | BL37: 0 | BM37: 0 | BN37: 1 | BO37: 0 | BP37: 0 | BQ37: 0 | BR37: 0 | BS37: 1 | BT37: 1 | BU37: 0 | BV37: 0 | BW37: 0 | BX37: 0 | BY37: 1 | BZ37: 0 | CA37: 0 | CB37: 0 | CC37: 1 | CD37: 0 | CE37: 0 | CF37: 0 | CG37: 0 | CH37: 0 | CI37: 0 | CJ37: 0 | CK37: 0 | CL37: 0 | CM37: 0 | CN37: 0
A38: 34 | B38: Hugo Bambirra | C38: 52 | D38: 25 | E38: 16 | H38: 28 | I38: 13 | L38: 26 | M38: 15 | Q38: 0 | T38: 23 | U38: 18 | Y38: 0 | AA38: -10 | AC38: 0 | AG38: 0 | AK38: 0 | AO38: 0 | AS38: 0 | AW38: 0 | AZ38: 0 | BA38: 0 | BB38: 0 | BC38: 0 | BD38: 0 | BE38: 0 | BF38: 0 | BG38: 0 | BH38: 0 | BI38: 0 | BJ38: 0 | BK38: 0 | BL38: 0 | BM38: 0 | BN38: 0 | BO38: 0 | BP38: 0 | BQ38: 0 | BR38: 0 | BS38: 0 | BT38: 0 | BU38: 0 | BV38: 1 | BW38: 0 | BX38: 1 | BY38: 1 | BZ38: 0 | CA38: 1 | CB38: 0 | CC38: 0 | CD38: 0 | CE38: 0 | CF38: 0 | CG38: 0 | CH38: 0 | CI38: 0 | CJ38: 0 | CK38: 0 | CL38: 0 | CM38: 0 | CN38: 0
A39: 35 | B39: Wesley Camargos | C39: 43 | D39: 32 | E39: 9 | H39: 27 | I39: 14 | M39: 0 | Q39: 0 | T39: 24 | U39: 17 | Y39: 0 | AC39: 0 | AE39: -10 | AF39: 22 | AG39: 19 | AK39: 0 | AM39: -10 | AO39: 0 | AQ39: -10 | AR39: 17 | AS39: 24 | AW39: 0 | AY39: -10 | AZ39: 0 | BA39: 0 | BB39: 0 | BC39: 0 | BD39: 0 | BE39: 0 | BF39: 0 | BG39: 0 | BH39: 0 | BI39: 0 | BJ39: 0 | BK39: 0 | BL39: 0 | BM39: 0 | BN39: 0 | BO39: 0 | BP39: 1 | BQ39: 0 | BR39: 0 | BS39: 0 | BT39: 0 | BU39: 1 | BV39: 0 | BW39: 1 | BX39: 0 | BY39: 0 | BZ39: 1 | CA39: 0 | CB39: 0 | CC39: 0 | CD39: 0 | CE39: 1 | CF39: 0 | CG39: 0 | CH39: 0 | CI39: 0 | CJ39: 0 | CK39: 0 | CL39: 0 | CM39: 0 | CN39: 0
A40: 36 | B40: João Fiuza | C40: 20 | E40: 0 | I40: 0 | K40: -10 | L40: 21 | M40: 20 | O40: -10 | P40: 19 | Q40: 22 | U40: 0 | W40: -10 | Y40: 0 | AA40: -10 | AC40: 0 | AF40: 15 | AG40: 28 | AK40: 0 | AM40: -10 | AO40: 0 | AQ40: -10 | AS40: 0 | AU40: -10 | AV40: 14 | AW40: 30 | AY40: -10 | AZ40: 0 | BA40: 0 | BB40: 0 | BC40: 0 | BD40: 0 | BE40: 0 | BF40: 0 | BG40: 0 | BH40: 0 | BI40: 0 | BJ40: 0 | BK40: 0 | BL40: 0 | BM40: 1 | BN40: 1 | BO40: 0 | BP40: 0 | BQ40: 0 | BR40: 1 | BS40: 0 | BT40: 1 | BU40: 0 | BV40: 0 | BW40: 0 | BX40: 0 | BY40: 0 | BZ40: 0 | CA40: 0 | CB40: 0 | CC40: 0 | CD40: 0 | CE40: 0 | CF40: 0 | CG40: 0 | CH40: 0 | CI40: 0 | CJ40: 0 | CK40: 0 | CL40: 0 | CM40: 0 | CN40: 0
A41: 37 | B41: Eduardo Dias | C41: 19 | D41: 6 | E41: 46 | H41: 18 | I41: 23 | M41: 0 | O41: -10 | P41: 26 | Q41: 15 | T41: 26 | U41: 15 | W41: SIM | Y41: 0 | AA41: -10 | AC41: 0 | AE41: -10 | AG41: 0 | AI41: -10 | AK41: 0 | AM41: -10 | AO41: 0 | AQ41: -10 | AS41: 0 | AU41: -10 | AW41: 0 | AY41: -10 | AZ41: 0 | BA41: 0 | BB41: 0 | BC41: 0 | BD41: 0 | BE41: 1 | BF41: 0 | BG41: 0 | BH41: 0 | BI41: 0 | BJ41: 0 | BK41: 0 | BL41: 0 | BM41: 0 | BN41: 0 | BO41: 0 | BP41: 0 | BQ41: 1 | BR41: 0 | BS41: 0 | BT41: 0 | BU41: 0 | BV41: 0 | BW41: 0 | BX41: 0 | BY41: 2 | BZ41: 0 | CA41: 0 | CB41: 0 | CC41: 0 | CD41: 0 | CE41: 0 | CF41: 0 | CG41: 0 | CH41: 0 | CI41: 0 | CJ41: 0 | CK41: 0 | CL41: 0 | CM41: 0 | CN41: 0
A42: 38 | B42: Heimar Mata | C42: 0 | E42: 0 | H42: 17 | I42: 24 | M42: 0 | O42: -10 | Q42: 0 | U42: 0 | W42: -10 | Y42: 0 | AA42: -10 | AC42: 0 | AE42: -10 | AG42: 0 | AI42: -10 | AK42: 0 | AM42: -10 | AO42: 0 | AQ42: -10 | AS42: 0 | AU42: -10 | AW42: 0 | AY42: -10 | AZ42: 0 | BA42: 0 | BB42: 0 | BC42: 0 | BD42: 0 | BE42: 0 | BF42: 0 | BG42: 0 | BH42: 0 | BI42: 0 | BJ42: 0 | BK42: 0 | BL42: 0 | BM42: 0 | BN42: 0 | BO42: 0 | BP42: 1 | BQ42: 0 | BR42: 0 | BS42: 0 | BT42: 0 | BU42: 0 | BV42: 0 | BW42: 0 | BX42: 0 | BY42: 0 | BZ42: 0 | CA42: 0 | CB42: 0 | CC42: 0 | CD42: 0 | CE42: 0 | CF42: 0 | CG42: 0 | CH42: 0 | CI42: 0 | CJ42: 0 | CK42: 0 | CL42: 0 | CM42: 0 | CN42: 0
A43: 39 | B43: Luis Almeida | C43: 0 | E43: 0 | G43: -10 | H43: 22 | I43: 19 | L43: 18 | M43: 23 | P43: 24 | Q43: 17 | T43: 32 | U43: 9 | W43: SIM | Y43: 0 | AC43: 0 | AE43: -10 | AG43: 0 | AI43: -10 | AK43: 0 | AM43: -10 | AO43: 0 | AQ43: -10 | AS43: 0 | AU43: -10 | AW43: 0 | AY43: -10 | AZ43: 0 | BA43: 0 | BB43: 0 | BC43: 0 | BD43: 0 | BE43: 0 | BF43: 0 | BG43: 0 | BH43: 0 | BI43: 0 | BJ43: 0 | BK43: 0 | BL43: 0 | BM43: 0 | BN43: 0 | BO43: 0 | BP43: 0 | BQ43: 1 | BR43: 0 | BS43: 0 | BT43: 0 | BU43: 1 | BV43: 0 | BW43: 1 | BX43: 0 | BY43: 0 | BZ43: 0 | CA43: 0 | CB43: 0 | CC43: 0 | CD43: 0 | CE43: 1 | CF43: 0 | CG43: 0 | CH43: 0 | CI43: 0 | CJ43: 0 | CK43: 0 | CL43: 0 | CM43: 0 | CN43: 0
A44: 40 | B44: Pedro Fialho | C44: 0 | D44: 21 | E44: 20 | I44: 0 | M44: 0 | O44: -10 | Q44: 0 | U44: 0 | Y44: 0 | AA44: -10 | AC44: 0 | AG44: 0 | AI44: -10 | AK44: 0 | AM44: -10 | AO44: 0 | AQ44: -10 | AS44: 0 | AU44: -10 | AW44: 0 | AY44: -10 | AZ44: 0 | BA44: 0 | BB44: 0 | BC44: 0 | BD44: 0 | BE44: 0 | BF44: 0 | BG44: 0 | BH44: 0 | BI44: 0 | BJ44: 0 | BK44: 0 | BL44: 0 | BM44: 0 | BN44: 0 | BO44: 0 | BP44: 0 | BQ44: 0 | BR44: 0 | BS44: 0 | BT44: 1 | BU44: 0 | BV44: 0 | BW44: 0 | BX44: 0 | BY44: 0 | BZ44: 0 | CA44: 0 | CB44: 0 | CC44: 0 | CD44: 0 | CE44: 0 | CF44: 0 | CG44: 0 | CH44: 0 | CI44: 0 | CJ44: 0 | CK44: 0 | CL44: 0 | CM44: 0 | CN44: 0
A45: 41 | B45: Adriano Morato | C45: 0 | E45: 0 | G45: -10 | I45: 0 | K45: -10 | M45: 0 | O45: -10 | Q45: 0 | U45: 0 | Y45: 0 | AC45: 0 | AE45: -10 | AG45: 0 | AI45: -10 | AK45: 0 | AM45: -10 | AO45: 0 | AQ45: -10 | AS45: 0 | AU45: -10 | AW45: 0 | AY45: -10 | AZ45: 0 | BA45: 0 | BB45: 0 | BC45: 0 | BD45: 0 | BE45: 0 | BF45: 0 | BG45: 0 | BH45: 0 | BI45: 0 | BJ45: 0 | BK45: 0 | BL45: 0 | BM45: 0 | BN45: 0 | BO45: 0 | BP45: 0 | BQ45: 0 | BR45: 0 | BS45: 0 | BT45: 0 | BU45: 0 | BV45: 0 | BW45: 0 | BX45: 0 | BY45: 0 | BZ45: 0 | CA45: 0 | CB45: 0 | CC45: 0 | CD45: 0 | CE45: 0 | CF45: 0 | CG45: 0 | CH45: 0 | CI45: 0 | CJ45: 0 | CK45: 0 | CL45: 0 | CM45: 0 | CN45: 0
A46: 42 | B46: Leandro Malias | C46: 0 | E46: 0 | I46: 0 | M46: 0 | Q46: 0 | U46: 0 | Y46: 0 | AC46: 0 | AG46: 0 | AK46: 0 | AO46: 0 | AS46: 0 | AW46: 0 | AZ46: 0 | BA46: 0 | BB46: 0 | BC46: 0 | BD46: 0 | BE46: 0 | BF46: 0 | BG46: 0 | BH46: 0 | BI46: 0 | BJ46: 0 | BK46: 0 | BL46: 0 | BM46: 0 | BN46: 0 | BO46: 0 | BP46: 0 | BQ46: 0 | BR46: 0 | BS46: 0 | BT46: 0 | BU46: 0 | BV46: 0 | BW46: 0 | BX46: 0 | BY46: 0 | BZ46: 0 | CA46: 0 | CB46: 0 | CC46: 0 | CD46: 0 | CE46: 0 | CF46: 0 | CG46: 0 | CH46: 0 | CI46: 0 | CJ46: 0 | CK46: 0 | CL46: 0 | CM46: 0 | CN46: 0
A47: 43 | B47: Marcos Rodrigo | C47: 0 | E47: 0 | I47: 0 | K47: -10 | M47: 0 | Q47: 0 | S47: -10 | U47: 0 | Y47: 0 | AC47: 0 | AE47: -10 | AG47: 0 | AI47: -10 | AK47: 0 | AO47: 0 | AS47: 0 | AU47: -10 | AW47: 0 | AZ47: 0 | BA47: 0 | BB47: 0 | BC47: 0 | BD47: 0 | BE47: 0 | BF47: 0 | BG47: 0 | BH47: 0 | BI47: 0 | BJ47: 0 | BK47: 0 | BL47: 0 | BM47: 0 | BN47: 0 | BO47: 0 | BP47: 0 | BQ47: 0 | BR47: 0 | BS47: 0 | BT47: 0 | BU47: 0 | BV47: 0 | BW47: 0 | BX47: 0 | BY47: 0 | BZ47: 0 | CA47: 0 | CB47: 0 | CC47: 0 | CD47: 0 | CE47: 0 | CF47: 0 | CG47: 0 | CH47: 0 | CI47: 0 | CJ47: 0 | CK47: 0 | CL47: 0 | CM47: 0 | CN47: 0
A48: 44 | B48: Robert Freitas | C48: 0 | E48: 0 | I48: 0 | M48: 0 | Q48: 0 | S48: -10 | U48: 0 | W48: -10 | Y48: 0 | AA48: -10 | AC48: 0 | AE48: -10 | AG48: 0 | AI48: -10 | AK48: 0 | AM48: -10 | AO48: 0 | AQ48: -10 | AS48: 0 | AU48: -10 | AW48: 0 | AY48: -10 | AZ48: 0 | BA48: 0 | BB48: 0 | BC48: 0 | BD48: 0 | BE48: 0 | BF48: 0 | BG48: 0 | BH48: 0 | BI48: 0 | BJ48: 0 | BK48: 0 | BL48: 0 | BM48: 0 | BN48: 0 | BO48: 0 | BP48: 0 | BQ48: 0 | BR48: 0 | BS48: 0 | BT48: 0 | BU48: 0 | BV48: 0 | BW48: 0 | BX48: 0 | BY48: 0 | BZ48: 0 | CA48: 0 | CB48: 0 | CC48: 0 | CD48: 0 | CE48: 0 | CF48: 0 | CG48: 0 | CH48: 0 | CI48: 0 | CJ48: 0 | CK48: 0 | CL48: 0 | CM48: 0 | CN48: 0
AZ49: 0 | BA49: 0 | BB49: 0 | BC49: 0 | BD49: 0 | BE49: 0 | BF49: 0 | BG49: 0 | BH49: 0 | BI49: 0 | BJ49: 0 | BK49: 0 | BL49: 0 | BM49: 0 | BN49: 0 | BO49: 0 | BP49: 0 | BQ49: 0 | BR49: 0 | BS49: 0 | BT49: 0 | BU49: 0 | BV49: 0 | BW49: 0 | BX49: 0 | BY49: 0 | BZ49: 0 | CA49: 0 | CB49: 0 | CC49: 0 | CD49: 0 | CE49: 0 | CF49: 0 | CG49: 0 | CH49: 0 | CI49: 0 | CJ49: 0 | CK49: 0 | CL49: 0 | CM49: 0 | CN49: 0

Sheet Class. elimin. 2 piores res
A1: 2021 | E1: OK | I1: OK | M1: OK | Q1: OK | U1: OK | Y1: OK | AC1: OK | AG1: OK | AK1: OK | AO1: OK | AS1: OK | AW1: OK
D2: 1ª etapa | H2: 2ª etapa | L2: 3ª etapa | P2: 4ª etapa | T2: 5ª etapa | X2: Etapa 6 11/07/2021 - 10:00 | AB2: Etapa 7 18/07/2021 - 10:00 | AF2: Etapa 8 15/08/2021 - 10:00 | AJ2: Etapa 9 12/09/2021 - 10:00 - Domingo | AN2: Etapa 10 17/10/2021 - 10:00 - Domingo | AR2: 11ª etapa | AV2: 12ª etapa
B4: Nome do (a) Piloto (a) | C4: Pontuação Geral | D4: Posição | E4: Pontos | F4: Bônus | G4: Penalidade | H4: Posição | I4: Pontos | J4: Bônus | K4: Penalidade | L4: Posição | M4: Pontos | N4: Bônus | O4: Penalidade | P4: Posição | Q4: Pontos | R4: Bônus | S4: Penalidade | T4: Posição | U4: Pontos | V4: Bônus | W4: Penalidade | X4: Posição | Y4: Pontos | Z4: Bônus | AA4: Penalidade | AB4: Posição | AC4: Pontos | AD4: Bônus | AE4: Penalidade | AF4: Posição | AG4: Pontos | AH4: Bônus | AI4: Penalidade | AJ4: Posição | AK4: Pontos | AL4: Bônus | AM4: Penalidade | AN4: Posição | AO4: Pontos | AP4: Bônus | AQ4: Penalidade | AR4: Posição | AS4: Pontos | AT4: Bônus | AU4: Penalidade | AV4: Posição | AW4: Pontos | AX4: Bônus | AY4: Penalidade | AZ4: 1º LUGAR | BA4: 2º LUGAR | BB4: 3º LUGAR | BC4: 4º LUGAR | BD4: 5º LUGAR | BE4: 6º LUGAR | BF4: 7º LUGAR | BG4: 8º LUGAR | BH4: 9º LUGAR | BI4: 10º LUGAR | BJ4: 11º LUGAR | BK4: 12º LUGAR | BL4: 13º LUGAR | BM4: 14º LUGAR | BN4: 15º LUGAR | BO4: 16º LUGAR | BP4: 17º LUGAR | BQ4: 18º LUGAR | BR4: 19º LUGAR | BS4: 20º LUGAR | BT4: 21º LUGAR | BU4: 22º LUGAR | BV4: 23º LUGAR | BW4: 24º LUGAR | BX4: 25º LUGAR | BY4: 26º LUGAR | BZ4: 27º LUGAR | CA4: 28º LUGAR | CB4: 29º LUGAR | CC4: 30º LUGAR | CD4: 31º LUGAR | CE4: 32º LUGAR | CF4: 33º LUGAR | CG4: 34º LUGAR | CH4: 35º LUGAR | CI4: 36º LUGAR | CJ4: 37º LUGAR | CK4: 38º LUGAR | CL4: 39º LUGAR | CM4: 40º LUGAR | CN4: 41º LUGAR
A5: 1 | B5: Léo Oliveira | C5: 483 | D5: 2 | E5: 55 | H5: 1 | I5: 60 | L5: 3 | M5: 52 | N5: 2 | P5: 5 | Q5: 48 | U5: 0* | Y5: 0* | AB5: 11 | AC5: 36 | AG5: 0 | AJ5: 6 | AK5: 46 | AN5: 1 | AO5: 60 | AP5: 2 | AR5: 1 | AS5: 60 | AV5: 1 | AW5: 60 | AX5: 2 | AZ5: 4 | BA5: 1 | BB5: 1 | BC5: 0 | BD5: 1 | BE5: 1 | BF5: 0 | BG5: 0 | BH5: 0 | BI5: 0 | BJ5: 1 | BK5: 0 | BL5: 0 | BM5: 0 | BN5: 0 | BO5: 0 | BP5: 0 | BQ5: 0 | BR5: 0 | BS5: 0 | BT5: 0 | BU5: 0 | BV5: 0 | BW5: 0 | BX5: 0 | BY5: 0 | BZ5: 0 | CA5: 0 | CB5: 0 | CC5: 0 | CD5: 0 | CE5: 0 | CF5: 0 | CG5: 0 | CH5: 0 | CI5: 0 | CJ5: 0 | CK5: 0 | CL5: 0 | CM5: 0 | CN5: 0
A6: 2 | B6: Marcelo Campos | C6: 477 | D6: 9 | E6: 40 | H6: 30 | I6: 11* | L6: 2 | M6: 55 | P6: 7 | Q6: 44 | T6: 8 | U6: 42 | X6: 5 | Y6: 48 | AB6: 1 | AC6: 60 | AD6: 2 | AF6: 11 | AG6: 36 | AJ6: 9 | AK6: 40 | AN6: 13 | AO6: 32* | AR6: 2 | AS6: 55 | AV6: 2 | AW6: 55 | AZ6: 1 | BA6: 3 | BB6: 0 | BC6: 0 | BD6: 1 | BE6: 0 | BF6: 1 | BG6: 1 | BH6: 2 | BI6: 0 | BJ6: 1 | BK6: 0 | BL6: 1 | BM6: 0 | BN6: 0 | BO6: 0 | BP6: 0 | BQ6: 0 | BR6: 0 | BS6: 0 | BT6: 0 | BU6: 0 | BV6: 0 | BW6: 0 | BX6: 0 | BY6: 0 | BZ6: 0 | CA6: 0 | CB6: 0 | CC6: 1 | CD6: 0 | CE6: 0 | CF6: 0 | CG6: 0 | CH6: 0 | CI6: 0 | CJ6: 0 | CK6: 0 | CL6: 0 | CM6: 0 | CN6: 0
A7: 3 | B7: Daniel Nahum | C7: 415 | D7: 26 | E7: 15* | H7: 3 | I7: 52 | L7: 7 | M7: 44 | P7: 16 | Q7: 26 | R7: 2 | T7: 9 | U7: 40 | Y7: 0* | AB7: 13 | AC7: 32 | AF7: 9 | AG7: 40 | AJ7: 2 | AK7: 55 | AN7: 9 | AO7: 40 | AR7: 4 | AS7: 50 | AT7: 2 | AV7: 13 | AW7: 32 | AZ7: 0 | BA7: 1 | BB7: 1 | BC7: 1 | BD7: 0 | BE7: 0 | BF7: 1 | BG7: 0 | BH7: 3 | BI7: 0 | BJ7: 0 | BK7: 0 | BL7: 2 | BM7: 0 | BN7: 0 | BO7: 1 | BP7: 0 | BQ7: 0 | BR7: 0 | BS7: 0 | BT7: 0 | BU7: 0 | BV7: 0 | BW7: 0 | BX7: 0 | BY7: 1 | BZ7: 0 | CA7: 0 | CB7: 0 | CC7: 0 | CD7: 0 | CE7: 0 | CF7: 0 | CG7: 0 | CH7: 0 | CI7: 0 | CJ7: 0 | CK7: 0 | CL7: 0 | CM7: 0 | CN7: 0
A8: 4 | B8: Guilherme Alves | C8: 398 | D8: 13 | E8: 32 | H8: 16 | I8: 26 | K8: SIM | L8: 15 | M8: 28* | P8: 12 | Q8: 34 | T8: 6 | U8: 46 | V8: 2 | X8: 16 | Y8: 26* | AB8: 6 | AC8: 46 | AF8: 14 | AG8: 30 | AJ8: 4 | AK8: 50 | AN8: 6 | AO8: 46 | AR8: 11 | AS8: 36 | AV8: 4 | AW8: 50 | AZ8: 0 | BA8: 0 | BB8: 0 | BC8: 2 | BD8: 0 | BE8: 3 | BF8: 0 | BG8: 0 | BH8: 0 | BI8: 0 | BJ8: 1 | BK8: 1 | BL8: 1 | BM8: 1 | BN8: 1 | BO8: 2 | BP8: 0 | BQ8: 0 | BR8: 0 | BS8: 0 | BT8: 0 | BU8: 0 | BV8: 0 | BW8: 0 | BX8: 0 | BY8: 0 | BZ8: 0 | CA8: 0 | CB8: 0 | CC8: 0 | CD8: 0 | CE8: 0 | CF8: 0 | CG8: 0 | CH8: 0 | CI8: 0 | CJ8: 0 | CK8: 0 | CL8: 0 | CM8: 0 | CN8: 0
A9: 5 | B9: Gabriel Veloso | C9: 393 | D9: 31 | E9: 10* | H9: 7 | I9: 44 | L9: 20 | M9: 21 | P9: 10 | Q9: 38 | T9: 1 | U9: 60 | X9: 4 | Y9: 50 | AB9: 5 | AC9: 48 | AE9: -10 | AF9: 13 | AG9: 32 | AJ9: 5 | AK9: 48 | AN9: 16 | AO9: 26 | AS9: 0* | AU9: -10 | AV9: 6 | AW9: 46 | AZ9: 1 | BA9: 0 | BB9: 0 | BC9: 1 | BD9: 2 | BE9: 1 | BF9: 1 | BG9: 0 | BH9: 0 | BI9: 1 | BJ9: 0 | BK9: 0 | BL9: 1 | BM9: 0 | BN9: 0 | BO9: 1 | BP9: 0 | BQ9: 0 | BR9: 0 | BS9: 1 | BT9: 0 | BU9: 0 | BV9: 0 | BW9: 0 | BX9: 0 | BY9: 0 | BZ9: 0 | CA9: 0 | CB9: 0 | CC9: 0 | CD9: 1 | CE9: 0 | CF9: 0 | CG9: 0 | CH9: 0 | CI9: 0 | CJ9: 0 | CK9: 0 | CL9: 0 | CM9: 0 | CN9: 0
A10: 6 | B10: Marcelo Sant'anna | C10: 392 | D10: 8 | E10: 42 | H10: 8 | I10: 42 | L10: 33 | M10: 8 | O10: SIM | P10: 22 | Q10: 19* | T10: 10 | U10: 38 | X10: 6 | Y10: 46 | AB10: 3 | AC10: 52 | AF10: 12 | AG10: 34 | AJ10: 3 | AK10: 52 | AN10: 10 | AO10: 38 | AR10: 9 | AS10: 40 | AV10: 15 | AW10: 28* | AZ10: 0 | BA10: 0 | BB10: 2 | BC10: 0 | BD10: 0 | BE10: 1 | BF10: 0 | BG10: 2 | BH10: 1 | BI10: 2 | BJ10: 0 | BK10: 1 | BL10: 0 | BM10: 0 | BN10: 1 | BO10: 0 | BP10: 0 | BQ10: 0 | BR10: 0 | BS10: 0 | BT10: 0 | BU10: 1 | BV10: 0 | BW10: 0 | BX10: 0 | BY10: 0 | BZ10: 0 | CA10: 0 | CB10: 0 | CC10: 0 | CD10: 0 | CE10: 0 | CF10: 1 | CG10: 0 | CH10: 0 | CI10: 0 | CJ10: 0 | CK10: 0 | CL10: 0 | CM10: 0 | CN10: 0
A11: 7 | B11: Diego Silva | C11: 370 | D11: 17 | E11: 24 | F11: 2 | H11: 9 | I11: 40 | L11: 16 | M11: 26 | P11: 4 | Q11: 50 | T11: 14 | U11: 30 | X11: 20 | Y11: 21* | AB11: 24 | AC11: 17* | AF11: 1 | AG11: 60 | AJ11: 29 | AK11: 12 | AM11: SIM | AN11: 7 | AO11: 44 | AR11: 5 | AS11: 48 | AV11: 12 | AW11: 34 | AZ11: 1 | BA11: 0 | BB11: 0 | BC11: 1 | BD11: 1 | BE11: 0 | BF11: 1 | BG11: 0 | BH11: 1 | BI11: 0 | BJ11: 0 | BK11: 1 | BL11: 0 | BM11: 1 | BN11: 0 | BO11: 1 | BP11: 1 | BQ11: 0 | BR11: 0 | BS11: 1 | BT11: 0 | BU11: 0 | BV11: 0 | BW11: 1 | BX11: 0 | BY11: 0 | BZ11: 0 | CA11: 0 | CB11: 1 | CC11: 0 | CD11: 0 | CE11: 0 | CF11: 0 | CG11: 0 | CH11: 0 | CI11: 0 | CJ11: 0 | CK11: 0 | CL11: 0 | CM11: 0 | CN11: 0
A12: 8 | B12: Alexandre Melillo | C12: 358 | D12: 14 | E12: 30 | H12: 14 | I12: 30 | L12: 9 | M12: 40 | P12: 18 | Q12: 23* | T12: 19 | U12: 22* | X12: 8 | Y12: 42 | AB12: 10 | AC12: 38 | AF12: 17 | AG12: 24 | AJ12: 12 | AK12: 34 | AN12: 14 | AO12: 30 | AR12: 3 | AS12: 52 | AV12: 10 | AW12: 38 | AZ12: 0 | BA12: 0 | BB12: 1 | BC12: 0 | BD12: 0 | BE12: 0 | BF12: 0 | BG12: 1 | BH12: 1 | BI12: 2 | BJ12: 0 | BK12: 1 | BL12: 0 | BM12: 3 | BN12: 0 | BO12: 0 | BP12: 1 | BQ12: 1 | BR12: 1 | BS12: 0 | BT12: 0 | BU12: 0 | BV12: 0 | BW12: 0 | BX12: 0 | BY12: 0 | BZ12: 0 | CA12: 0 | CB12: 0 | CC12: 0 | CD12: 0 | CE12: 0 | CF12: 0 | CG12: 0 | CH12: 0 | CI12: 0 | CJ12: 0 | CK12: 0 | CL12: 0 | CM12: 0 | CN12: 0
A13: 9 | B13: Leonardo Bastos | C13: 328 | D13: 11 | E13: 36 | H13: 12 | I13: 34 | L13: 14 | M13: 30 | P13: 25 | Q13: 16* | T13: 3 | U13: 52 | X13: 17 | Y13: 24 | AB13: 14 | AC13: 30 | AF13: 3 | AG13: 52 | AJ13: 10 | AK13: 38 | AO13: 0* | AR13: 8 | AS13: 42 | AW13: 0 | AY13: -10 | AZ13: 0 | BA13: 0 | BB13: 2 | BC13: 0 | BD13: 0 | BE13: 0 | BF13: 0 | BG13: 1 | BH13: 0 | BI13: 1 | BJ13: 1 | BK13: 1 | BL13: 0 | BM13: 2 | BN13: 0 | BO13: 0 | BP13: 1 | BQ13: 0 | BR13: 0 | BS13: 0 | BT13: 0 | BU13: 0 | BV13: 0 | BW13: 0 | BX13: 1 | BY13: 0 | BZ13: 0 | CA13: 0 | CB13: 0 | CC13: 0 | CD13: 0 | CE13: 0 | CF13: 0 | CG13: 0 | CH13: 0 | CI13: 0 | CJ13: 0 | CK13: 0 | CL13: 0 | CM13: 0 | CN13: 0
A14: 10 | B14: Rafael Miranda | C14: 325 | D14: 12 | E14: 34 | I14: 0* | K14: -10 | L14: 12 | M14: 34 | P14: 13 | Q14: 32 | T14: 7 | U14: 44 | X14: 1 | Y14: 60 | AB14: 22 | AC14: 19 | AF14: 5 | AG14: 48 | AJ14: 8 | AK14: 42 | AO14: 0* | AQ14: -10 | AS14: 0 | AU14: -10 | AV14: 8 | AW14: 42 | AZ14: 1 | BA14: 0 | BB14: 0 | BC14: 0 | BD14: 1 | BE14: 0 | BF14: 1 | BG14: 2 | BH14: 0 | BI14: 0 | BJ14: 0 | BK14: 2 | BL14: 1 | BM14: 0 | BN14: 0 | BO14: 0 | BP14: 0 | BQ14: 0 | BR14: 0 | BS14: 0 | BT14: 0 | BU14: 1 | BV14: 0 | BW14: 0 | BX14: 0 | BY14: 0 | BZ14: 0 | CA14: 0 | CB14: 0 | CC14: 0 | CD14: 0 | CE14: 0 | CF14: 0 | CG14: 0 | CH14: 0 | CI14: 0 | CJ14: 0 | CK14: 0 | CL14: 0 | CM14: 0 | CN14: 0
A15: 11 | B15: Marcelo Clemente | C15: 324 | D15: 20 | E15: 21 | I15: 0* | M15: 0* | P15: 20 | Q15: 21 | S15: SIM | T15: 11 | U15: 36 | X15: 10 | Y15: 38 | AC15: 0 | AE15: -10 | AF15: 27 | AG15: 14 | AJ15: 1 | AK15: 60 | AN15: 4 | AO15: 50 | AR15: 6 | AS15: 46 | AV15: 5 | AW15: 48 | AZ15: 1 | BA15: 0 | BB15: 0 | BC15: 1 | BD15: 1 | BE15: 1 | BF15: 0 | BG15: 0 | BH15: 0 | BI15: 1 | BJ15: 1 | BK15: 0 | BL15: 0 | BM15: 0 | BN15: 0 | BO15: 0 | BP15: 0 | BQ15: 0 | BR15: 0 | BS15: 2 | BT15: 0 | BU15: 0 | BV15: 0 | BW15: 0 | BX15: 0 | BY15: 0 | BZ15: 1 | CA15: 0 | CB15: 0 | CC15: 0 | CD15: 0 | CE15: 0 | CF15: 0 | CG15: 0 | CH15: 0 | CI15: 0 | CJ15: 0 | CK15: 0 | CL15: 0 | CM15: 0 | CN15: 0
A16: 12 | B16: Marcelo Surerus | C16: 321 | D16: 23 | E16: 18 | I16: 0* | L16: 22 | M16: 19 | P16: 3 | Q16: 52 | T16: 4 | U16: 50 | X16: 7 | Y16: 44 | AB16: 12 | AC16: 34 | AF16: 8 | AG16: 42 | AJ16: 11 | AK16: 36 | AN16: 11 | AO16: 36 | AS16: 0* | AW16: 0 | AY16: -10 | AZ16: 0 | BA16: 0 | BB16: 1 | BC16: 1 | BD16: 0 | BE16: 0 | BF16: 1 | BG16: 1 | BH16: 0 | BI16: 0 | BJ16: 2 | BK16: 1 | BL16: 0 | BM16: 0 | BN16: 0 | BO16: 0 | BP16: 0 | BQ16: 0 | BR16: 0 | BS16: 0 | BT16: 0 | BU16: 1 | BV16: 1 | BW16: 0 | BX16: 0 | BY16: 0 | BZ16: 0 | CA16: 0 | CB16: 0 | CC16: 0 | CD16: 0 | CE16: 0 | CF16: 0 | CG16: 0 | CH16: 0 | CI16: 0 | CJ16: 0 | CK16: 0 | CL16: 0 | CM16: 0 | CN16: 0
A17: 13 | B17: Rodrigo Mercadante | C17: 319 | E17: 0* | G17: -10 | I17: 0* | K17: -10 | M17: 0 | P17: 11 | Q17: 36 | T17: 2 | U17: 55 | X17: 9 | Y17: 40 | AB17: 4 | AC17: 50 | AF17: 4 | AG17: 50 | AJ17: 7 | AK17: 44 | AL17: 2 | AO17: 0 | AR17: 16 | AS17: 26 | AV17: 11 | AW17: 36 | AZ17: 0 | BA17: 1 | BB17: 0 | BC17: 2 | BD17: 0 | BE17: 0 | BF17: 1 | BG17: 0 | BH17: 1 | BI17: 0 | BJ17: 2 | BK17: 0 | BL17: 0 | BM17: 0 | BN17: 0 | BO17: 1 | BP17: 0 | BQ17: 0 | BR17: 0 | BS17: 0 | BT17: 0 | BU17: 0 | BV17: 0 | BW17: 0 | BX17: 0 | BY17: 0 | BZ17: 0 | CA17: 0 | CB17: 0 | CC17: 0 | CD17: 0 | CE17: 0 | CF17: 0 | CG17: 0 | CH17: 0 | CI17: 0 | CJ17: 0 | CK17: 0 | CL17: 0 | CM17: 0 | CN17: 0
A18: 14 | B18: Jarbas Reis | C18: 311 | D18: 15 | E18: 28 | H18: 20 | I18: 21 | L18: 19 | M18: 22 | P18: 6 | Q18: 46 | T18: 16 | U18: 26 | X18: 11 | Y18: 36 | AB18: 17 | AC18: 24 | AG18: 0* | AJ18: 15 | AK18: 28 | AN18: 15 | AO18: 28 | AS18: 0* | AV18: 3 | AW18: 52 | AZ18: 0 | BA18: 0 | BB18: 1 | BC18: 0 | BD18: 0 | BE18: 1 | BF18: 0 | BG18: 0 | BH18: 0 | BI18: 0 | BJ18: 1 | BK18: 0 | BL18: 0 | BM18: 0 | BN18: 3 | BO18: 1 | BP18: 1 | BQ18: 0 | BR18: 1 | BS18: 1 | BT18: 0 | BU18: 0 | BV18: 0 | BW18: 0 | BX18: 0 | BY18: 0 | BZ18: 0 | CA18: 0 | CB18: 0 | CC18: 0 | CD18: 0 | CE18: 0 | CF18: 0 | CG18: 0 | CH18: 0 | CI18: 0 | CJ18: 0 | CK18: 0 | CL18: 0 | CM18: 0 | CN18: 0
A19: 15 | B19: Daniel Paranhos | C19: 288 | D19: 28 | E19: 13 | H19: 10 | I19: 38 | L19: 13 | M19: 32 | P19: 23 | Q19: 18 | T19: 15 | U19: 28 | X19: 18 | Y19: 23 | AC19: 0* | AF19: 7 | AG19: 44 | AJ19: 14 | AK19: 30 | AN19: 12 | AO19: 34 | AR19: 15 | AS19: 28 | AW19: 0* | AZ19: 0 | BA19: 0 | BB19: 0 | BC19: 0 | BD19: 0 | BE19: 0 | BF19: 1 | BG19: 0 | BH19: 0 | BI19: 1 | BJ19: 0 | BK19: 1 | BL19: 1 | BM19: 1 | BN19: 2 | BO19: 0 | BP19: 0 | BQ19: 1 | BR19: 0 | BS19: 0 | BT19: 0 | BU19: 0 | BV19: 1 | BW19: 0 | BX19: 0 | BY19: 0 | BZ19: 0 | CA19: 1 | CB19: 0 | CC19: 0 | CD19: 0 | CE19: 0 | CF19: 0 | CG19: 0 | CH19: 0 | CI19: 0 | CJ19: 0 | CK19: 0 | CL19: 0 | CM19: 0 | CN19: 0
A20: 16 | B20: Eduardo Henrique | C20: 278 | D20: 22 | E20: 19 | H20: 15 | I20: 28 | M20: 0* | P20: 9 | Q20: 40 | T20: 25 | U20: 16 | Y20: 0* | AA20: -10 | AB20: 23 | AC20: 18 | AF20: 23 | AG20: 18 | AJ20: 17 | AK20: 24 | AN20: 2 | AO20: 55 | AR20: 7 | AS20: 44 | AV20: 16 | AW20: 26 | AZ20: 0 | BA20: 1 | BB20: 0 | BC20: 0 | BD20: 0 | BE20: 0 | BF20: 1 | BG20: 0 | BH20: 1 | BI20: 0 | BJ20: 0 | BK20: 0 | BL20: 0 | BM20: 0 | BN20: 1 | BO20: 1 | BP20: 1 | BQ20: 0 | BR20: 0 | BS20: 0 | BT20: 0 | BU20: 1 | BV20: 2 | BW20: 0 | BX20: 1 | BY20: 0 | BZ20: 0 | CA20: 0 | CB20: 0 | CC20: 0 | CD20: 0 | CE20: 0 | CF20: 0 | CG20: 0 | CH20: 0 | CI20: 0 | CJ20: 0 | CK20: 0 | CL20: 0 | CM20: 0 | CN20: 0
A21: 17 | B21: Alan Silva | C21: 272 | D21: 3 | E21: 52 | I21: 0* | K21: -10 | M21: 0* | O21: -10 | P21: 15 | Q21: 28 | T21: 29 | U21: 12 | X21: 14 | Y21: 30 | AB21: 7 | AC21: 44 | AF21: 2 | AG21: 55 | AJ21: 24 | AK21: 17 | AM21: SIM | AN21: 8 | AO21: 42 | AR21: 19 | AS21: 22 | AW21: 0 | AY21: -10 | AZ21: 0 | BA21: 1 | BB21: 1 | BC21: 0 | BD21: 0 | BE21: 0 | BF21: 1 | BG21: 1 | BH21: 0 | BI21: 0 | BJ21: 0 | BK21: 0 | BL21: 0 | BM21: 1 | BN21: 1 | BO21: 0 | BP21: 0 | BQ21: 0 | BR21: 1 | BS21: 0 | BT21: 0 | BU21: 0 | BV21: 0 | BW21: 1 | BX21: 0 | BY21: 0 | BZ21: 0 | CA21: 0 | CB21: 1 | CC21: 0 | CD21: 0 | CE21: 0 | CF21: 0 | CG21: 0 | CH21: 0 | CI21: 0 | CJ21: 0 | CK21: 0 | CL21: 0 | CM21: 0 | CN21: 0
A22: 18 | B22: Rafael Alves | C22: 270 | D22: 27 | E22: 14* | H22: 6 | I22: 46 | L22: 30 | M22: 11 | O22: SIM | P22: 21 | Q22: 20 | T22: 13 | U22: 32 | X22: 13 | Y22: 32 | AB22: 16 | AC22: 26 | AF22: 24 | AG22: 17* | AJ22: 18 | AK22: 23 | AN22: 3 | AO22: 52 | AR22: 10 | AS22: 38 | AW22: 0 | AY22: -10 | AZ22: 0 | BA22: 0 | BB22: 1 | BC22: 0 | BD22: 0 | BE22: 1 | BF22: 0 | BG22: 0 | BH22: 0 | BI22: 1 | BJ22: 0 | BK22: 0 | BL22: 2 | BM22: 0 | BN22: 0 | BO22: 1 | BP22: 0 | BQ22: 1 | BR22: 0 | BS22: 0 | BT22: 1 | BU22: 0 | BV22: 0 | BW22: 1 | BX22: 0 | BY22: 0 | BZ22: 1 | CA22: 0 | CB22: 0 | CC22: 1 | CD22: 0 | CE22: 0 | CF22: 0 | CG22: 0 | CH22: 0 | CI22: 0 | CJ22: 0 | CK22: 0 | CL22: 0 | CM22: 0 | CN22: 0
A23: 19 | B23: Cláudio Dumont | C23: 234 | D23: 5 | E23: 48 | H23: 24 | I23: 17 | L23: 1 | M23: 60 | P23: 1 | Q23: 60 | T23: 5 | U23: 48 | X23: 22 | Y23: 19 | AA23: SIM | AC23: 0* | AE23: -10 | AG23: 0* | AI23: -10 | AJ23: 13 | AK23: 32 | AO23: 0 | AQ23: -10 | AS23: 0 | AU23: -10 | AW23: 0 | AY23: -10 | AZ23: 2 | BA23: 0 | BB23: 0 | BC23: 0 | BD23: 2 | BE23: 0 | BF23: 0 | BG23: 0 | BH23: 0 | BI23: 0 | BJ23: 0 | BK23: 0 | BL23: 1 | BM23: 0 | BN23: 0 | BO23: 0 | BP23: 0 | BQ23: 0 | BR23: 0 | BS23: 0 | BT23: 0 | BU23: 1 | BV23: 0 | BW23: 1 | BX23: 0 | BY23: 0 | BZ23: 0 | CA23: 0 | CB23: 0 | CC23: 0 | CD23: 0 | CE23: 0 | CF23: 0 | CG23: 0 | CH23: 0 | CI23: 0 | CJ23: 0 | CK23: 0 | CL23: 0 | CM23: 0 | CN23: 0
A24: 20 | B24: Jean Paul | C24: 231 | D24: 24 | E24: 17 | H24: 25 | I24: 16 | L24: 5 | M24: 48 | P24: 28 | Q24: 13 | T24: 22 | U24: 19 | X24: 19 | Y24: 22 | AB24: 18 | AC24: 23 | AF24: 16 | AG24: 26 | AJ24: 16 | AK24: 26 | AN24: 20 | AO24: 21 | AS24: 0* | AW24: 0* | AZ24: 0 | BA24: 0 | BB24: 0 | BC24: 0 | BD24: 1 | BE24: 0 | BF24: 0 | BG24: 0 | BH24: 0 | BI24: 0 | BJ24: 0 | BK24: 0 | BL24: 0 | BM24: 0 | BN24: 0 | BO24: 2 | BP24: 0 | BQ24: 1 | BR24: 1 | BS24: 1 | BT24: 0 | BU24: 1 | BV24: 0 | BW24: 1 | BX24: 1 | BY24: 0 | BZ24: 0 | CA24: 1 | CB24: 0 | CC24: 0 | CD24: 0 | CE24: 0 | CF24: 0 | CG24: 0 | CH24: 0 | CI24: 0 | CJ24: 0 | CK24: 0 | CL24: 0 | CM24: 0 | CN24: 0
A25: 21 | B25: Rafael Cantoni | C25: 222 | D25: 10 | E25: 38 | H25: 11 | I25: 36 | L25: 8 | M25: 42 | P25: 31 | Q25: 10 | T25: 21 | U25: 20 | W25: SIM | Y25: 0* | AB25: 8 | AC25: 42 | AG25: 0* | AI25: -10 | AK25: 0 | AO25: 0 | AS25: 0 | AV25: 7 | AW25: 44 | AZ25: 0 | BA25: 0 | BB25: 0 | BC25: 0 | BD25: 0 | BE25: 0 | BF25: 1 | BG25: 2 | BH25: 0 | BI25: 1 | BJ25: 1 | BK25: 0 | BL25: 0 | BM25: 0 | BN25: 0 | BO25: 0 | BP25: 0 | BQ25: 0 | BR25: 0 | BS25: 0 | BT25: 1 | BU25: 0 | BV25: 0 | BW25: 0 | BX25: 0 | BY25: 0 | BZ25: 0 | CA25: 0 | CB25: 0 | CC25: 0 | CD25: 1 | CE25: 0 | CF25: 0 | CG25: 0 | CH25: 0 | CI25: 0 | CJ25: 0 | CK25: 0 | CL25: 0 | CM25: 0 | CN25: 0
A26: 22 | B26: Wesley Bambirra | C26: 210 | D26: 7 | E26: 44 | H26: 5 | I26: 48 | L26: 6 | M26: 46 | Q26: 0* | T26: 27 | U26: 14 | Y26: 0* | AA26: -10 | AC26: 0 | AF26: 10 | AG26: 38 | AK26: 0 | AN26: 23 | AO26: 18 | AQ26: SIM | AR26: 29 | AS26: 12 | AU26: SIM | AW26: 0 | AZ26: 0 | BA26: 0 | BB26: 0 | BC26: 0 | BD26: 1 | BE26: 1 | BF26: 1 | BG26: 0 | BH26: 0 | BI26: 1 | BJ26: 0 | BK26: 0 | BL26: 0 | BM26: 0 | BN26: 0 | BO26: 0 | BP26: 0 | BQ26: 0 | BR26: 0 | BS26: 0 | BT26: 0 | BU26: 0 | BV26: 1 | BW26: 0 | BX26: 0 | BY26: 0 | BZ26: 1 | CA26: 0 | CB26: 1 | CC26: 0 | CD26: 0 | CE26: 0 | CF26: 0 | CG26: 0 | CH26: 0 | CI26: 0 | CJ26: 0 | CK26: 0 | CL26: 0 | CM26: 0 | CN26: 0
A27: 23 | B27: Leonardo Bosco | C27: 208 | D27: 16 | E27: 26 | H27: 13 | I27: 32 | L27: 4 | M27: 50 | P27: 29 | Q27: 12 | T27: 12 | U27: 34 | X27: 23 | Y27: 18 | AC27: 0* | AF27: 6 | AG27: 46 | AJ27: 31 | AK27: 10 | AM27: SIM | AO27: 0* | AS27: 0 | AU27: -10 | AW27: 0 | AY27: -10 | AZ27: 0 | BA27: 0 | BB27: 0 | BC27: 1 | BD27: 0 | BE27: 1 | BF27: 0 | BG27: 0 | BH27: 0 | BI27: 0 | BJ27: 0 | BK27: 1 | BL27: 1 | BM27: 0 | BN27: 0 | BO27: 1 | BP27: 0 | BQ27: 0 | BR27: 0 | BS27: 0 | BT27: 0 | BU27: 0 | BV27: 1 | BW27: 0 | BX27: 0 | BY27: 0 | BZ27: 0 | CA27: 0 | CB27: 1 | CC27: 0 | CD27: 1 | CE27: 0 | CF27: 0 | CG27: 0 | CH27: 0 | CI27: 0 | CJ27: 0 | CK27: 0 | CL27: 0 | CM27: 0 | CN27: 0
A28: 24 | B28: Felipe Franca | C28: 206 | E28: 0* | I28: 0* | L28: 29 | M28: 12 | O28: SIM | P28: 17 | Q28: 24 | T28: 17 | U28: 24 | X28: 3 | Y28: 52 | Z28: 2 | AB28: 15 | AC28: 28 | AF28: 19 | AG28: 22 | AK28: 0 | AN28: 21 | AO28: 20 | AR28: 13 | AS28: 32 | AW28: 0 | AY28: -10 | AZ28: 0 | BA28: 0 | BB28: 1 | BC28: 0 | BD28: 0 | BE28: 0 | BF28: 0 | BG28: 0 | BH28: 0 | BI28: 0 | BJ28: 0 | BK28: 0 | BL28: 1 | BM28: 0 | BN28: 1 | BO28: 0 | BP28: 2 | BQ28: 0 | BR28: 1 | BS28: 0 | BT28: 1 | BU28: 0 | BV28: 0 | BW28: 0 | BX28: 0 | BY28: 0 | BZ28: 0 | CA28: 0 | CB28: 1 | CC28: 0 | CD28: 0 | CE28: 0 | CF28: 0 | CG28: 0 | CH28: 0 | CI28: 0 | CJ28: 0 | CK28: 0 | CL28: 0 | CM28: 0 | CN28: 0
A29: 25 | B29: Wesley Canuto | C29: 196 | E29: 0* | G29: -10 | I29: 0* | L29: 11 | M29: 36 | P29: 8 | Q29: 42 | U29: 0 | X29: 12 | Y29: 34 | AB29: 9 | AC29: 40 | AG29: 0 | AK29: 0 | AO29: 0 | AQ29: -10 | AR29: 12 | AS29: 34 | AV29: 9 | AW29: 40 | AY29: -10 | AZ29: 0 | BA29: 0 | BB29: 0 | BC29: 0 | BD29: 0 | BE29: 0 | BF29: 0 | BG29: 1 | BH29: 2 | BI29: 0 | BJ29: 1 | BK29: 2 | BL29: 0 | BM29: 0 | BN29: 0 | BO29: 0 | BP29: 0 | BQ29: 0 | BR29: 0 | BS29: 0 | BT29: 0 | BU29: 0 | BV29: 0 | BW29: 0 | BX29: 0 | BY29: 0 | BZ29: 0 | CA29: 0 | CB29: 0 | CC29: 0 | CD29: 0 | CE29: 0 | CF29: 0 | CG29: 0 | CH29: 0 | CI29: 0 | CJ29: 0 | CK29: 0 | CL29: 0 | CM29: 0 | CN29: 0
A30: 26 | B30: Victor Silva | C30: 187 | D30: 4 | E30: 50 | G30: -10 | I30: 0* | K30: -10 | L30: 24 | M30: 17 | O30: SIM | P30: 32 | Q30: 9 | T30: 28 | U30: 13 | X30: 2 | Y30: 55 | AB30: 2 | AC30: 55 | AG30: 0* | AI30: -10 | AK30: 0 | AM30: -10 | AN30: 5 | AO30: 48 | AS30: 0 | AU30: -10 | AW30: 0 | AY30: -10 | AZ30: 0 | BA30: 2 | BB30: 0 | BC30: 1 | BD30: 1 | BE30: 0 | BF30: 0 | BG30: 0 | BH30: 0 | BI30: 0 | BJ30: 0 | BK30: 0 | BL30: 0 | BM30: 0 | BN30: 0 | BO30: 0 | BP30: 0 | BQ30: 0 | BR30: 0 | BS30: 0 | BT30: 0 | BU30: 0 | BV30: 0 | BW30: 1 | BX30: 0 | BY30: 0 | BZ30: 0 | CA30: 1 | CB30: 0 | CC30: 0 | CD30: 0 | CE30: 1 | CF30: 0 | CG30: 0 | CH30: 0 | CI30: 0 | CJ30: 0 | CK30: 0 | CL30: 0 | CM30: 0 | CN30: 0
A31: 27 | B31: Raphael Reis | C31: 133 | D31: 29 | E31: 12 | H31: 19 | I31: 22 | L31: 25 | M31: 16 | Q31: 0* | U31: 0* | X31: 21 | Y31: 20 | AC31: 0 | AE31: -10 | AF31: 20 | AG31: 21 | AK31: 0 | AN31: 19 | AO31: 22 | AR31: 14 | AS31: 30 | AW31: 0 | AZ31: 0 | BA31: 0 | BB31: 0 | BC31: 0 | BD31: 0 | BE31: 0 | BF31: 0 | BG31: 0 | BH31: 0 | BI31: 0 | BJ31: 0 | BK31: 0 | BL31: 0 | BM31: 1 | BN31: 0 | BO31: 0 | BP31: 0 | BQ31: 0 | BR31: 2 | BS31: 1 | BT31: 1 | BU31: 0 | BV31: 0 | BW31: 0 | BX31: 1 | BY31: 0 | BZ31: 0 | CA31: 0 | CB31: 1 | CC31: 0 | CD31: 0 | CE31: 0 | CF31: 0 | CG31: 0 | CH31: 0 | CI31: 0 | CJ31: 0 | CK31: 0 | CL31: 0 | CM31: 0 | CN31: 0
A32: 28 | B32: Pedro Mello | C32: 125 | D32: 18 | E32: 23 | H32: 21 | I32: 20 | M32: 0* | O32: -10 | P32: 27 | Q32: 14 | U32: 0* | Y32: 0 | AB32: 19 | AC32: 22 | AF32: 21 | AG32: 20 | AK32: 0 | AM32: -10 | AN32: 18 | AO32: 23 | AR32: 18 | AS32: 23 | AW32: 0 | AZ32: 0 | BA32: 0 | BB32: 0 | BC32: 0 | BD32: 0 | BE32: 0 | BF32: 0 | BG32: 0 | BH32: 0 | BI32: 0 | BJ32: 0 | BK32: 0 | BL32: 0 | BM32: 0 | BN32: 0 | BO32: 0 | BP32: 0 | BQ32: 3 | BR32: 1 | BS32: 0 | BT32: 2 | BU32: 0 | BV32: 0 | BW32: 0 | BX32: 0 | BY32: 0 | BZ32: 1 | CA32: 0 | CB32: 0 | CC32: 0 | CD32: 0 | CE32: 0 | CF32: 0 | CG32: 0 | CH32: 0 | CI32: 0 | CJ32: 0 | CK32: 0 | CL32: 0 | CM32: 0 | CN32: 0
A33: 29 | B33: Marcelo Pereira | C33: 112 | D33: 1 | E33: 60 | H33: 4 | I33: 50 | L33: 27 | M33: 14 | O33: -10 | P33: 14 | Q33: 30 | S33: SIM | U33: 0* | W33: -10 | X33: 36 | Y33: 5 | AA33: SIM | AC33: 0* | AE33: -10 | AF33: 18 | AG33: 23 | AK33: 0 | AM33: -10 | AO33: 0 | AQ33: -10 | AS33: 0 | AU33: -10 | AW33: 0 | AY33: -10 | AZ33: 1 | BA33: 0 | BB33: 0 | BC33: 1 | BD33: 0 | BE33: 0 | BF33: 0 | BG33: 0 | BH33: 0 | BI33: 0 | BJ33: 0 | BK33: 0 | BL33: 0 | BM33: 1 | BN33: 0 | BO33: 0 | BP33: 0 | BQ33: 1 | BR33: 0 | BS33: 0 | BT33: 0 | BU33: 0 | BV33: 0 | BW33: 0 | BX33: 0 | BY33: 0 | BZ33: 1 | CA33: 0 | CB33: 0 | CC33: 0 | CD33: 0 | CE33: 0 | CF33: 0 | CG33: 0 | CH33: 0 | CI33: 1 | CJ33: 0 | CK33: 0 | CL33: 0 | CM33: 0 | CN33: 0
A34: 30 | B34: Saulo Chagas | C34: 97 | D34: 33 | E34: 8 | H34: 23 | I34: 18 | L34: 23 | M34: 18 | P34: 34 | Q34: 7 | S34: SIM | T34: 18 | U34: 23 | Y34: 0* | AB34: 20 | AC34: 21 | AG34: 0* | AJ34: 19 | AK34: 22 | AO34: 0 | AS34: 0 | AU34: -10 | AW34: 0 | AY34: -10 | AZ34: 0 | BA34: 0 | BB34: 0 | BC34: 0 | BD34: 0 | BE34: 0 | BF34: 0 | BG34: 0 | BH34: 0 | BI34: 0 | BJ34: 0 | BK34: 0 | BL34: 0 | BM34: 0 | BN34: 0 | BO34: 0 | BP34: 0 | BQ34: 1 | BR34: 1 | BS34: 1 | BT34: 0 | BU34: 0 | BV34: 2 | BW34: 0 | BX34: 0 | BY34: 0 | BZ34: 0 | CA34: 0 | CB34: 0 | CC34: 0 | CD34: 0 | CE34: 0 | CF34: 1 | CG34: 1 | CH34: 0 | CI34: 0 | CJ34: 0 | CK34: 0 | CL34: 0 | CM34: 0 | CN34: 0
A35: 31 | B35: Roberto Torres | C35: 93 | E35: 0* | I35: 0* | L35: 10 | M35: 38 | P35: 2 | Q35: 55 | U35: 0 | Y35: 0 | AC35: 0 | AG35: 0 | AK35: 0 | AO35: 0 | AS35: 0 | AW35: 0 | AZ35: 0 | BA35: 1 | BB35: 0 | BC35: 0 | BD35: 0 | BE35: 0 | BF35: 0 | BG35: 0 | BH35: 0 | BI35: 1 | BJ35: 0 | BK35: 0 | BL35: 0 | BM35: 0 | BN35: 0 | BO35: 0 | BP35: 0 | BQ35: 0 | BR35: 0 | BS35: 0 | BT35: 0 | BU35: 0 | BV35: 0 | BW35: 0 | BX35: 0 | BY35: 0 | BZ35: 0 | CA35: 0 | CB35: 0 | CC35: 0 | CD35: 0 | CE35: 0 | CF35: 0 | CG35: 0 | CH35: 0 | CI35: 0 | CJ35: 0 | CK35: 0 | CL35: 0 | CM35: 0 | CN35: 0
A36: 32 | B36: Renato Cardoso | C36: 58 | E36: 0* | H36: 29 | I36: 12 | M36: 0* | P36: 30 | Q36: 11 | T36: 30 | U36: 11 | Y36: 0 | AC36: 0 | AG36: 0 | AK36: 0 | AN36: 17 | AO36: 24 | AS36: 0 | AW36: 0 | AZ36: 0 | BA36: 0 | BB36: 0 | BC36: 0 | BD36: 0 | BE36: 0 | BF36: 0 | BG36: 0 | BH36: 0 | BI36: 0 | BJ36: 0 | BK36: 0 | BL36: 0 | BM36: 0 | BN36: 0 | BO36: 0 | BP36: 1 | BQ36: 0 | BR36: 0 | BS36: 0 | BT36: 0 | BU36: 0 | BV36: 0 | BW36: 0 | BX36: 0 | BY36: 0 | BZ36: 0 | CA36: 0 | CB36: 1 | CC36: 2 | CD36: 0 | CE36: 0 | CF36: 0 | CG36: 0 | CH36: 0 | CI36: 0 | CJ36: 0 | CK36: 0 | CL36: 0 | CM36: 0 | CN36: 0
A37: 33 | B37: Neylon Silva | C37: 55 | D37: 30 | E37: 11 | H37: 26 | I37: 15 | M37: 0* | Q37: 0* | T37: 20 | U37: 21 | X37: 15 | Y37: 28 | AB37: 21 | AC37: 20 | AG37: 0 | AK37: 0 | AM37: -10 | AO37: 0 | AQ37: -10 | AS37: 0 | AU37: -10 | AW37: 0 | AY37: -10 | AZ37: 0 | BA37: 0 | BB37: 0 | BC37: 0 | BD37: 0 | BE37: 0 | BF37: 0 | BG37: 0 | BH37: 0 | BI37: 0 | BJ37: 0 | BK37: 0 | BL37: 0 | BM37: 0 | BN37: 1 | BO37: 0 | BP37: 0 | BQ37: 0 | BR37: 0 | BS37: 1 | BT37: 1 | BU37: 0 | BV37: 0 | BW37: 0 | BX37: 0 | BY37: 1 | BZ37: 0 | CA37: 0 | CB37: 0 | CC37: 1 | CD37: 0 | CE37: 0 | CF37: 0 | CG37: 0 | CH37: 0 | CI37: 0 | CJ37: 0 | CK37: 0 | CL37: 0 | CM37: 0 | CN37: 0
A38: 34 | B38: Hugo Bambirra | C38: 52 | D38: 25 | E38: 16 | H38: 28 | I38: 13 | L38: 26 | M38: 15 | Q38: 0* | T38: 23 | U38: 18 | Y38: 0* | AA38: -10 | AC38: 0 | AG38: 0 | AK38: 0 | AO38: 0 | AS38: 0 | AW38: 0 | AZ38: 0 | BA38: 0 | BB38: 0 | BC38: 0 | BD38: 0 | BE38: 0 | BF38: 0 | BG38: 0 | BH38: 0 | BI38: 0 | BJ38: 0 | BK38: 0 | BL38: 0 | BM38: 0 | BN38: 0 | BO38: 0 | BP38: 0 | BQ38: 0 | BR38: 0 | BS38: 0 | BT38: 0 | BU38: 0 | BV38: 1 | BW38: 0 | BX38: 1 | BY38: 1 | BZ38: 0 | CA38: 1 | CB38: 0 | CC38: 0 | CD38: 0 | CE38: 0 | CF38: 0 | CG38: 0 | CH38: 0 | CI38: 0 | CJ38: 0 | CK38: 0 | CL38: 0 | CM38: 0 | CN38: 0
A39: 35 | B39: Wesley Camargos | C39: 43 | D39: 32 | E39: 9 | H39: 27 | I39: 14 | M39: 0* | Q39: 0* | T39: 24 | U39: 17 | Y39: 0 | AC39: 0 | AE39: -10 | AF39: 22 | AG39: 19 | AK39: 0 | AM39: -10 | AO39: 0 | AQ39: -10 | AR39: 17 | AS39: 24 | AW39: 0 | AY39: -10 | AZ39: 0 | BA39: 0 | BB39: 0 | BC39: 0 | BD39: 0 | BE39: 0 | BF39: 0 | BG39: 0 | BH39: 0 | BI39: 0 | BJ39: 0 | BK39: 0 | BL39: 0 | BM39: 0 | BN39: 0 | BO39: 0 | BP39: 1 | BQ39: 0 | BR39: 0 | BS39: 0 | BT39: 0 | BU39: 1 | BV39: 0 | BW39: 1 | BX39: 0 | BY39: 0 | BZ39: 1 | CA39: 0 | CB39: 0 | CC39: 0 | CD39: 0 | CE39: 1 | CF39: 0 | CG39: 0 | CH39: 0 | CI39: 0 | CJ39: 0 | CK39: 0 | CL39: 0 | CM39: 0 | CN39: 0
A40: 36 | B40: João Fiuza | C40: 20 | E40: 0* | I40: 0* | K40: -10 | L40: 21 | M40: 20 | O40: -10 | P40: 19 | Q40: 22 | U40: 0 | W40: -10 | Y40: 0 | AA40: -10 | AC40: 0 | AF40: 15 | AG40: 28 | AK40: 0 | AM40: -10 | AO40: 0 | AQ40: -10 | AS40: 0 | AU40: -10 | AV40: 14 | AW40: 30 | AY40: -10 | AZ40: 0 | BA40: 0 | BB40: 0 | BC40: 0 | BD40: 0 | BE40: 0 | BF40: 0 | BG40: 0 | BH40: 0 | BI40: 0 | BJ40: 0 | BK40: 0 | BL40: 0 | BM40: 1 | BN40: 1 | BO40: 0 | BP40: 0 | BQ40: 0 | BR40: 1 | BS40: 0 | BT40: 1 | BU40: 0 | BV40: 0 | BW40: 0 | BX40: 0 | BY40: 0 | BZ40: 0 | CA40: 0 | CB40: 0 | CC40: 0 | CD40: 0 | CE40: 0 | CF40: 0 | CG40: 0 | CH40: 0 | CI40: 0 | CJ40: 0 | CK40: 0 | CL40: 0 | CM40: 0 | CN40: 0
A41: 37 | B41: Eduardo Dias | C41: 19 | D41: 6 | E41: 46 | H41: 18 | I41: 23 | M41: 0* | O41: -10 | P41: 26 | Q41: 15 | T41: 26 | U41: 15 | W41: SIM | Y41: 0* | AA41: -10 | AC41: 0 | AE41: -10 | AG41: 0 | AI41: -10 | AK41: 0 | AM41: -10 | AO41: 0 | AQ41: -10 | AS41: 0 | AU41: -10 | AW41: 0 | AY41: -10 | AZ41: 0 | BA41: 0 | BB41: 0 | BC41: 0 | BD41: 0 | BE41: 1 | BF41: 0 | BG41: 0 | BH41: 0 | BI41: 0 | BJ41: 0 | BK41: 0 | BL41: 0 | BM41: 0 | BN41: 0 | BO41: 0 | BP41: 0 | BQ41: 1 | BR41: 0 | BS41: 0 | BT41: 0 | BU41: 0 | BV41: 0 | BW41: 0 | BX41: 0 | BY41: 2 | BZ41: 0 | CA41: 0 | CB41: 0 | CC41: 0 | CD41: 0 | CE41: 0 | CF41: 0 | CG41: 0 | CH41: 0 | CI41: 0 | CJ41: 0 | CK41: 0 | CL41: 0 | CM41: 0 | CN41: 0
A42: 38 | B42: Heimar Mata | C42: 0 | E42: 0* | H42: 17 | I42: 24 | M42: 0* | O42: -10 | Q42: 0 | U42: 0 | W42: -10 | Y42: 0 | AA42: -10 | AC42: 0 | AE42: -10 | AG42: 0 | AI42: -10 | AK42: 0 | AM42: -10 | AO42: 0 | AQ42: -10 | AS42: 0 | AU42: -10 | AW42: 0 | AY42: -10 | AZ42: 0 | BA42: 0 | BB42: 0 | BC42: 0 | BD42: 0 | BE42: 0 | BF42: 0 | BG42: 0 | BH42: 0 | BI42: 0 | BJ42: 0 | BK42: 0 | BL42: 0 | BM42: 0 | BN42: 0 | BO42: 0 | BP42: 1 | BQ42: 0 | BR42: 0 | BS42: 0 | BT42: 0 | BU42: 0 | BV42: 0 | BW42: 0 | BX42: 0 | BY42: 0 | BZ42: 0 | CA42: 0 | CB42: 0 | CC42: 0 | CD42: 0 | CE42: 0 | CF42: 0 | CG42: 0 | CH42: 0 | CI42: 0 | CJ42: 0 | CK42: 0 | CL42: 0 | CM42: 0 | CN42: 0
A43: 39 | B43: Luis Almeida | C43: 0 | E43: 0* | G43: -10 | H43: 22 | I43: 19 | L43: 18 | M43: 23 | P43: 24 | Q43: 17 | T43: 32 | U43: 9 | W43: SIM | Y43: 0* | AC43: 0 | AE43: -10 | AG43: 0 | AI43: -10 | AK43: 0 | AM43: -10 | AO43: 0 | AQ43: -10 | AS43: 0 | AU43: -10 | AW43: 0 | AY43: -10 | AZ43: 0 | BA43: 0 | BB43: 0 | BC43: 0 | BD43: 0 | BE43: 0 | BF43: 0 | BG43: 0 | BH43: 0 | BI43: 0 | BJ43: 0 | BK43: 0 | BL43: 0 | BM43: 0 | BN43: 0 | BO43: 0 | BP43: 0 | BQ43: 1 | BR43: 0 | BS43: 0 | BT43: 0 | BU43: 1 | BV43: 0 | BW43: 1 | BX43: 0 | BY43: 0 | BZ43: 0 | CA43: 0 | CB43: 0 | CC43: 0 | CD43: 0 | CE43: 1 | CF43: 0 | CG43: 0 | CH43: 0 | CI43: 0 | CJ43: 0 | CK43: 0 | CL43: 0 | CM43: 0 | CN43: 0
A44: 40 | B44: Pedro Fialho | C44: 0 | D44: 21 | E44: 20 | I44: 0* | M44: 0* | O44: -10 | Q44: 0 | U44: 0 | Y44: 0 | AA44: -10 | AC44: 0 | AG44: 0 | AI44: -10 | AK44: 0 | AM44: -10 | AO44: 0 | AQ44: -10 | AS44: 0 | AU44: -10 | AW44: 0 | AY44: -10 | AZ44: 0 | BA44: 0 | BB44: 0 | BC44: 0 | BD44: 0 | BE44: 0 | BF44: 0 | BG44: 0 | BH44: 0 | BI44: 0 | BJ44: 0 | BK44: 0 | BL44: 0 | BM44: 0 | BN44: 0 | BO44: 0 | BP44: 0 | BQ44: 0 | BR44: 0 | BS44: 0 | BT44: 1 | BU44: 0 | BV44: 0 | BW44: 0 | BX44: 0 | BY44: 0 | BZ44: 0 | CA44: 0 | CB44: 0 | CC44: 0 | CD44: 0 | CE44: 0 | CF44: 0 | CG44: 0 | CH44: 0 | CI44: 0 | CJ44: 0 | CK44: 0 | CL44: 0 | CM44: 0 | CN44: 0
A45: 41 | B45: Adriano Morato | C45: 0 | E45: 0* | G45: -10 | I45: 0* | K45: -10 | M45: 0 | O45: -10 | Q45: 0 | U45: 0 | Y45: 0 | AC45: 0 | AE45: -10 | AG45: 0 | AI45: -10 | AK45: 0 | AM45: -10 | AO45: 0 | AQ45: -10 | AS45: 0 | AU45: -10 | AW45: 0 | AY45: -10 | AZ45: 0 | BA45: 0 | BB45: 0 | BC45: 0 | BD45: 0 | BE45: 0 | BF45: 0 | BG45: 0 | BH45: 0 | BI45: 0 | BJ45: 0 | BK45: 0 | BL45: 0 | BM45: 0 | BN45: 0 | BO45: 0 | BP45: 0 | BQ45: 0 | BR45: 0 | BS45: 0 | BT45: 0 | BU45: 0 | BV45: 0 | BW45: 0 | BX45: 0 | BY45: 0 | BZ45: 0 | CA45: 0 | CB45: 0 | CC45: 0 | CD45: 0 | CE45: 0 | CF45: 0 | CG45: 0 | CH45: 0 | CI45: 0 | CJ45: 0 | CK45: 0 | CL45: 0 | CM45: 0 | CN45: 0
A46: 42 | B46: Leandro Malias | C46: 0 | E46: 0* | I46: 0* | M46: 0 | Q46: 0 | U46: 0 | Y46: 0 | AC46: 0 | AG46: 0 | AK46: 0 | AO46: 0 | AS46: 0 | AW46: 0 | AZ46: 0 | BA46: 0 | BB46: 0 | BC46: 0 | BD46: 0 | BE46: 0 | BF46: 0 | BG46: 0 | BH46: 0 | BI46: 0 | BJ46: 0 | BK46: 0 | BL46: 0 | BM46: 0 | BN46: 0 | BO46: 0 | BP46: 0 | BQ46: 0 | BR46: 0 | BS46: 0 | BT46: 0 | BU46: 0 | BV46: 0 | BW46: 0 | BX46: 0 | BY46: 0 | BZ46: 0 | CA46: 0 | CB46: 0 | CC46: 0 | CD46: 0 | CE46: 0 | CF46: 0 | CG46: 0 | CH46: 0 | CI46: 0 | CJ46: 0 | CK46: 0 | CL46: 0 | CM46: 0 | CN46: 0
A47: 43 | B47: Marcos Rodrigo | C47: 0 | E47: 0* | I47: 0* | K47: -10 | M47: 0 | Q47: 0 | S47: -10 | U47: 0 | Y47: 0 | AC47: 0 | AE47: -10 | AG47: 0 | AI47: -10 | AK47: 0 | AO47: 0 | AS47: 0 | AU47: -10 | AW47: 0 | AZ47: 0 | BA47: 0 | BB47: 0 | BC47: 0 | BD47: 0 | BE47: 0 | BF47: 0 | BG47: 0 | BH47: 0 | BI47: 0 | BJ47: 0 | BK47: 0 | BL47: 0 | BM47: 0 | BN47: 0 | BO47: 0 | BP47: 0 | BQ47: 0 | BR47: 0 | BS47: 0 | BT47: 0 | BU47: 0 | BV47: 0 | BW47: 0 | BX47: 0 | BY47: 0 | BZ47: 0 | CA47: 0 | CB47: 0 | CC47: 0 | CD47: 0 | CE47: 0 | CF47: 0 | CG47: 0 | CH47: 0 | CI47: 0 | CJ47: 0 | CK47: 0 | CL47: 0 | CM47: 0 | CN47: 0
A48: 44 | B48: Robert Freitas | C48: 0 | E48: 0* | I48: 0* | M48: 0 | Q48: 0 | S48: -10 | U48: 0 | W48: -10 | Y48: 0 | AA48: -10 | AC48: 0 | AE48: -10 | AG48: 0 | AI48: -10 | AK48: 0 | AM48: -10 | AO48: 0 | AQ48: -10 | AS48: 0 | AU48: -10 | AW48: 0 | AY48: -10 | AZ48: 0 | BA48: 0 | BB48: 0 | BC48: 0 | BD48: 0 | BE48: 0 | BF48: 0 | BG48: 0 | BH48: 0 | BI48: 0 | BJ48: 0 | BK48: 0 | BL48: 0 | BM48: 0 | BN48: 0 | BO48: 0 | BP48: 0 | BQ48: 0 | BR48: 0 | BS48: 0 | BT48: 0 | BU48: 0 | BV48: 0 | BW48: 0 | BX48: 0 | BY48: 0 | BZ48: 0 | CA48: 0 | CB48: 0 | CC48: 0 | CD48: 0 | CE48: 0 | CF48: 0 | CG48: 0 | CH48: 0 | CI48: 0 | CJ48: 0 | CK48: 0 | CL48: 0 | CM48: 0 | CN48: 0
AZ49: 0 | BA49: 0 | BB49: 0 | BC49: 0 | BD49: 0 | BE49: 0 | BF49: 0 | BG49: 0 | BH49: 0 | BI49: 0 | BJ49: 0 | BK49: 0 | BL49: 0 | BM49: 0 | BN49: 0 | BO49: 0 | BP49: 0 | BQ49: 0 | BR49: 0 | BS49: 0 | BT49: 0 | BU49: 0 | BV49: 0 | BW49: 0 | BX49: 0 | BY49: 0 | BZ49: 0 | CA49: 0 | CB49: 0 | CC49: 0 | CD49: 0 | CE49: 0 | CF49: 0 | CG49: 0 | CH49: 0 | CI49: 0 | CJ49: 0 | CK49: 0 | CL49: 0 | CM49: 0 | CN49: 0

Sheet Tabela Equipes
A1: 2021 | D1: OK | H1: OK | L1: OK | P1: OK | T1: OK | X1: OK | AB1: OK | AF1: OK | AJ1: OK | AN1: OK | AR1: OK | AV1: OK
C2: 1ª etapa | G2: 2ª etapa | K2: 3ª etapa | O2: 4ª etapa | S2: 5ª etapa | W2: Etapa 6 11/07/2021 - 10:00 | AA2: Etapa 7 18/07/2021 - 10:00 | AE2: Etapa 8 15/08/2021 - 10:00 | AI2: Etapa 9 12/09/2021 - 10:00 - Domingo | AM2: Etapa 10 17/10/2021 - 10:00 - Domingo | AQ2: 11ª etapa | AU2: 12ª etapa
C3: 00:00:00 | G3: 00:00:00 | K3: 00:00:00 | O3: 00:00:00 | S3: 00:00:00 | W3: 00:00:00 | AA3: 00:00:00 | AE3: 00:00:00 | AI3: 00:00:00 | AM3: 00:00:00 | AQ3: 00:00:00 | AU3: 00:00:00
A4: EQUIPES | B4: Pontuação Geral | C4: Posição | D4: Pontos | E4: Bônus | F4: Penalidade | G4: Posição | H4: Pontos | I4: Bônus | J4: Penalidade | K4: Posição | L4: Pontos | M4: Bônus | N4: Penalidade | O4: Posição | P4: Pontos | Q4: Bônus | R4: Penalidade | S4: Posição | T4: Pontos | U4: Bônus | V4: Penalidade | W4: Posição | X4: Pontos | Y4: Bônus | Z4: Penalidade | AA4: Posição | AB4: Pontos | AC4: Bônus | AD4: Penalidade | AE4: Posição | AF4: Pontos | AG4: Bônus | AH4: Penalidade | AI4: Posição | AJ4: Pontos | AK4: Bônus | AL4: Penalidade | AM4: Posição | AN4: Pontos | AO4: Bônus | AP4: Penalidade | AQ4: Posição | AR4: Pontos | AS4: Bônus | AT4: Penalidade | AU4: Posição | AV4: Pontos | AW4: Bônus | AX4: Penalidade
A5: VIAKART | B5: 814 | D5: 114 | E5: 0 | H5: 103 | I5: 0 | L5: 124 | M5: 0 | P5: 143 | Q5: 0 | T5: 60 | U5: 0 | X5: 59 | Y5: 0 | AB5: 24 | AC5: 0 | AF5: 69 | AG5: 0 | AJ5: 38 | AK5: 0 | AN5: 28 | AO5: 0 | AR5: 0 | AS5: 0 | AV5: 52 | AW5: 0
A6: Roberto Torres | B6: 93 | C6: 0 | D6: 0 | E6: 0 | G6: 0 | H6: 0 | I6: 0 | K6: 10 | L6: 38 | M6: 0 | O6: 2 | P6: 55 | Q6: 0 | S6: 0 | T6: 0 | U6: 0 | W6: 0 | X6: 0 | Y6: 0 | AA6: 0 | AB6: 0 | AC6: 0 | AE6: 0 | AF6: 0 | AG6: 0 | AI6: 0 | AJ6: 0 | AK6: 0 | AM6: 0 | AN6: 0 | AO6: 0 | AQ6: 0 | AR6: 0 | AS6: 0 | AU6: 0 | AV6: 0 | AW6: 0
A7: Jarbas Reis | B7: 311 | C7: 15 | D7: 28 | E7: 0 | G7: 20 | H7: 21 | I7: 0 | K7: 19 | L7: 22 | M7: 0 | O7: 6 | P7: 46 | Q7: 0 | S7: 16 | T7: 26 | U7: 0 | W7: 11 | X7: 36 | Y7: 0 | AA7: 17 | AB7: 24 | AC7: 0 | AE7: 0 | AF7: 0 | AG7: 0 | AI7: 15 | AJ7: 28 | AK7: 0 | AM7: 15 | AN7: 28 | AO7: 0 | AQ7: 0 | AR7: 0 | AS7: 0 | AU7: 3 | AV7: 52 | AW7: 0
A8: Marcelo Pereira | B8: 182 | C8: 1 | D8: 60 | E8: 0 | G8: 4 | H8: 50 | I8: 0 | K8: 27 | L8: 14 | M8: 0 | O8: 14 | P8: 30 | Q8: 0 | S8: 0 | T8: 0 | U8: 0 | W8: 36 | X8: 5 | Y8: 0 | AA8: 0 | AB8: 0 | AC8: 0 | AE8: 18 | AF8: 23 | AG8: 0 | AI8: 0 | AJ8: 0 | AK8: 0 | AM8: 0 | AN8: 0 | AO8: 0 | AQ8: 0 | AR8: 0 | AS8: 0 | AU8: 0 | AV8: 0 | AW8: 0
A9: Leonardo Bosco | B9: 228 | C9: 16 | D9: 26 | E9: 0 | G9: 13 | H9: 32 | I9: 0 | K9: 4 | L9: 50 | M9: 0 | O9: 29 | P9: 12 | Q9: 0 | S9: 12 | T9: 34 | U9: 0 | W9: 23 | X9: 18 | Y9: 0 | AA9: 0 | AB9: 0 | AC9: 0 | AE9: 6 | AF9: 46 | AG9: 0 | AI9: 31 | AJ9: 10 | AK9: 0 | AM9: 0 | AN9: 0 | AO9: 0 | AQ9: 0 | AR9: 0 | AS9: 0 | AU9: 0 | AV9: 0 | AW9: 0
A10: XXXXXX | B10: 0
A11: ALPHA ENGENHARIA | B11: 1065 | D11: 73 | E11: 0 | H11: 52 | I11: 0 | L11: 94 | M11: 0 | P11: 82 | Q11: 0 | T11: 87 | U11: 0 | X11: 106 | Y11: 0 | AB11: 60 | AC11: 2 | AF11: 71 | AG11: 0 | AJ11: 100 | AK11: 0 | AN11: 104 | AO11: 0 | AR11: 131 | AS11: 0 | AV11: 103 | AW11: 0
A12: Marcelo Campos | B12: 520 | C12: 9 | D12: 40 | E12: 0 | G12: 30 | H12: 11 | I12: 0 | K12: 2 | L12: 55 | M12: 0 | O12: 7 | P12: 44 | Q12: 0 | S12: 8 | T12: 42 | U12: 0 | W12: 5 | X12: 48 | Y12: 0 | AA12: 1 | AB12: 60 | AC12: 2 | AE12: 11 | AF12: 36 | AG12: 0 | AI12: 9 | AJ12: 40 | AK12: 0 | AM12: 13 | AN12: 32 | AO12: 0 | AQ12: 2 | AR12: 55 | AS12: 0 | AU12: 2 | AV12: 55 | AW12: 0
A13: Raphael Reis | B13: 143 | C13: 29 | D13: 12 | E13: 0 | G13: 19 | H13: 22 | I13: 0 | K13: 25 | L13: 16 | M13: 0 | O13: 0 | P13: 0 | Q13: 0 | S13: 0 | T13: 0 | U13: 0 | W13: 21 | X13: 20 | Y13: 0 | AA13: 0 | AB13: 0 | AC13: 0 | AE13: 20 | AF13: 21 | AG13: 0 | AI13: 0 | AJ13: 0 | AK13: 0 | AM13: 19 | AN13: 22 | AO13: 0 | AQ13: 14 | AR13: 30 | AS13: 0 | AU13: 0 | AV13: 0 | AW13: 0
A14: Marcelo Clemente | B14: 334 | C14: 20 | D14: 21 | E14: 0 | G14: 0 | H14: 0 | I14: 0 | K14: 0 | L14: 0 | M14: 0 | O14: 20 | P14: 21 | Q14: 0 | S14: 11 | T14: 36 | U14: 0 | W14: 10 | X14: 38 | Y14: 0 | AA14: 0 | AB14: 0 | AC14: 0 | AE14: 27 | AF14: 14 | AG14: 0 | AI14: 1 | AJ14: 60 | AK14: 0 | AM14: 4 | AN14: 50 | AO14: 0 | AQ14: 6 | AR14: 46 | AS14: 0 | AU14: 5 | AV14: 48 | AW14: 0
A15: Luis Almeida | B15: 68 | C15: 0 | D15: 0 | E15: 0 | G15: 22 | H15: 19 | I15: 0 | K15: 18 | L15: 23 | M15: 0 | O15: 24 | P15: 17 | Q15: 0 | S15: 32 | T15: 9 | U15: 0 | W15: 0 | X15: 0 | Y15: 0 | AA15: 0 | AB15: 0 | AC15: 0 | AE15: 0 | AF15: 0 | AG15: 0 | AI15: 0 | AJ15: 0 | AK15: 0 | AM15: 0 | AN15: 0 | AO15: 0 | AQ15: 0 | AR15: 0 | AS15: 0 | AU15: 0 | AV15: 0 | AW15: 0
A16: XXXXXX | B16: 0
A17: CLEMENTE CAR | B17: 979 | D17: 97 | E17: 0 | H17: 102 | I17: 0 | L17: 104 | M17: 2 | P17: 87 | Q17: 0 | T17: 67 | U17: 0 | X17: 60 | Y17: 0 | AB17: 76 | AC17: 0 | AF17: 48 | AG17: 0 | AJ17: 110 | AK17: 0 | AN17: 60 | AO17: 2 | AR17: 60 | AS17: 0 | AV17: 102 | AW17: 2
A18: Léo Oliveira | B18: 483 | C18: 2 | D18: 55 | E18: 0 | G18: 1 | H18: 60 | I18: 0 | K18: 3 | L18: 52 | M18: 2 | O18: 5 | P18: 48 | Q18: 0 | S18: 0 | T18: 0 | U18: 0 | W18: 0 | X18: 0 | Y18: 0 | AA18: 11 | AB18: 36 | AC18: 0 | AE18: 0 | AF18: 0 | AG18: 0 | AI18: 6 | AJ18: 46 | AK18: 0 | AM18: 1 | AN18: 60 | AO18: 2 | AQ18: 1 | AR18: 60 | AS18: 0 | AU18: 1 | AV18: 60 | AW18: 2
A19: Heimar Mata | B19: 24 | C19: 0 | D19: 0 | E19: 0 | G19: 17 | H19: 24 | I19: 0 | K19: 0 | L19: 0 | M19: 0 | O19: 0 | P19: 0 | Q19: 0 | S19: 0 | T19: 0 | U19: 0 | W19: 0 | X19: 0 | Y19: 0 | AA19: 0 | AB19: 0 | AC19: 0 | AE19: 0 | AF19: 0 | AG19: 0 | AI19: 0 | AJ19: 0 | AK19: 0 | AM19: 0 | AN19: 0 | AO19: 0 | AQ19: 0 | AR19: 0 | AS19: 0 | AU19: 0 | AV19: 0 | AW19: 0
A20: Saulo Chagas | B20: 117 | C20: 33 | D20: 8 | E20: 0 | G20: 23 | H20: 18 | I20: 0 | K20: 23 | L20: 18 | M20: 0 | O20: 34 | P20: 7 | Q20: 0 | S20: 18 | T20: 23 | U20: 0 | W20: 0 | X20: 0 | Y20: 0 | AA20: 20 | AB20: 21 | AC20: 0 | AE20: 0 | AF20: 0 | AG20: 0 | AI20: 19 | AJ20: 22 | AK20: 0 | AM20: 0 | AN20: 0 | AO20: 0 | AQ20: 0 | AR20: 0 | AS20: 0 | AU20: 0 | AV20: 0 | AW20: 0
A21: Rafael Miranda | B21: 355 | C21: 12 | D21: 34 | E21: 0 | G21: 0 | H21: 0 | I21: 0 | K21: 12 | L21: 34 | M21: 0 | O21: 13 | P21: 32 | Q21: 0 | S21: 7 | T21: 44 | U21: 0 | W21: 1 | X21: 60 | Y21: 0 | AA21: 22 | AB21: 19 | AC21: 0 | AE21: 5 | AF21: 48 | AG21: 0 | AI21: 8 | AJ21: 42 | AK21: 0 | AM21: 0 | AN21: 0 | AO21: 0 | AQ21: 0 | AR21: 0 | AS21: 0 | AU21: 8 | AV21: 42 | AW21: 0
A22: XXXXXX
A23: AST ESTRUTURAS | B23: 304 | D23: 20 | E23: 0 | H23: 12 | I23: 0 | L23: 36 | M23: 0 | P23: 53 | Q23: 0 | T23: 11 | U23: 0 | X23: 34 | Y23: 0 | AB23: 40 | AC23: 0 | AF23: 0 | AG23: 0 | AJ23: 0 | AK23: 0 | AN23: 24 | AO23: 0 | AR23: 34 | AS23: 0 | AV23: 40 | AW23: 0
A24: Pedro Fialho | B24: 20 | C24: 21 | D24: 20 | E24: 0 | G24: 0 | H24: 0 | I24: 0 | K24: 0 | L24: 0 | M24: 0 | O24: 0 | P24: 0 | Q24: 0 | S24: 0 | T24: 0 | U24: 0 | W24: 0 | X24: 0 | Y24: 0 | AA24: 0 | AB24: 0 | AC24: 0 | AE24: 0 | AF24: 0 | AG24: 0 | AI24: 0 | AJ24: 0 | AK24: 0 | AM24: 0 | AN24: 0 | AO24: 0 | AQ24: 0 | AR24: 0 | AS24: 0 | AU24: 0 | AV24: 0 | AW24: 0
A25: Wesley Canuto | B25: 226 | C25: 0 | D25: 0 | E25: 0 | G25: 0 | H25: 0 | I25: 0 | K25: 11 | L25: 36 | M25: 0 | O25: 8 | P25: 42 | Q25: 0 | S25: 0 | T25: 0 | U25: 0 | W25: 12 | X25: 34 | Y25: 0 | AA25: 9 | AB25: 40 | AC25: 0 | AE25: 0 | AF25: 0 | AG25: 0 | AI25: 0 | AJ25: 0 | AK25: 0 | AM25: 0 | AN25: 0 | AO25: 0 | AQ25: 12 | AR25: 34 | AS25: 0 | AU25: 9 | AV25: 40 | AW25: 0
A26: Renato Cardoso | B26: 58 | C26: 0 | D26: 0 | E26: 0 | G26: 29 | H26: 12 | I26: 0 | K26: 0 | L26: 0 | M26: 0 | O26: 30 | P26: 11 | Q26: 0 | S26: 30 | T26: 11 | U26: 0 | W26: 0 | X26: 0 | Y26: 0 | AA26: 0 | AB26: 0 | AC26: 0 | AE26: 0 | AF26: 0 | AG26: 0 | AI26: 0 | AJ26: 0 | AK26: 0 | AM26: 17 | AN26: 24 | AO26: 0 | AQ26: 0 | AR26: 0 | AS26: 0 | AU26: 0 | AV26: 0 | AW26: 0
A27: Robert Freitas | B27: 0 | C27: 0 | D27: 0 | E27: 0 | G27: 0 | H27: 0 | I27: 0 | K27: 0 | L27: 0 | M27: 0 | O27: 0 | P27: 0 | Q27: 0 | S27: 0 | T27: 0 | U27: 0 | W27: 0 | X27: 0 | Y27: 0 | AA27: 0 | AB27: 0 | AC27: 0 | AE27: 0 | AF27: 0 | AG27: 0 | AI27: 0 | AJ27: 0 | AK27: 0 | AM27: 0 | AN27: 0 | AO27: 0 | AQ27: 0 | AR27: 0 | AS27: 0 | AU27: 0 | AV27: 0 | AW27: 0
A28: XXXXXX | B28: 0
A29: TIRA GRILOS | B29: 836 | D29: 122 | E29: 0 | H29: 78 | I29: 0 | L29: 94 | M29: 0 | P29: 41 | Q29: 0 | T29: 62 | U29: 0 | X29: 52 | Y29: 0 | AB29: 67 | AC29: 0 | AF29: 138 | AG29: 0 | AJ29: 43 | AK29: 0 | AN29: 81 | AO29: 0 | AR29: 58 | AS29: 0 | AV29: 0 | AW29: 0
A30: Wesley Bambirra | B30: 220 | C30: 7 | D30: 44 | E30: 0 | G30: 5 | H30: 48 | I30: 0 | K30: 6 | L30: 46 | M30: 0 | O30: 0 | P30: 0 | Q30: 0 | S30: 27 | T30: 14 | U30: 0 | W30: 0 | X30: 0 | Y30: 0 | AA30: 0 | AB30: 0 | AC30: 0 | AE30: 10 | AF30: 38 | AG30: 0 | AI30: 0 | AJ30: 0 | AK30: 0 | AM30: 23 | AN30: 18 | AO30: 0 | AQ30: 29 | AR30: 12 | AS30: 0 | AU30: 0 | AV30: 0 | AW30: 0
A31: Jean Paul | B31: 231 | C31: 24 | D31: 17 | E31: 0 | G31: 25 | H31: 16 | I31: 0 | K31: 5 | L31: 48 | M31: 0 | O31: 28 | P31: 13 | Q31: 0 | S31: 22 | T31: 19 | U31: 0 | W31: 19 | X31: 22 | Y31: 0 | AA31: 18 | AB31: 23 | AC31: 0 | AE31: 16 | AF31: 26 | AG31: 0 | AI31: 16 | AJ31: 26 | AK31: 0 | AM31: 20 | AN31: 21 | AO31: 0 | AQ31: 0 | AR31: 0 | AS31: 0 | AU31: 0 | AV31: 0 | AW31: 0
A32: Wesley Camargos | B32: 83 | C32: 32 | D32: 9 | E32: 0 | G32: 27 | H32: 14 | I32: 0 | K32: 0 | L32: 0 | M32: 0 | O32: 0 | P32: 0 | Q32: 0 | S32: 24 | T32: 17 | U32: 0 | W32: 0 | X32: 0 | Y32: 0 | AA32: 0 | AB32: 0 | AC32: 0 | AE32: 22 | AF32: 19 | AG32: 0 | AI32: 0 | AJ32: 0 | AK32: 0 | AM32: 0 | AN32: 0 | AO32: 0 | AQ32: 17 | AR32: 24 | AS32: 0 | AU32: 0 | AV32: 0 | AW32: 0
A33: Alan Silva | B33: 302 | C33: 3 | D33: 52 | E33: 0 | G33: 0 | H33: 0 | I33: 0 | K33: 0 | L33: 0 | M33: 0 | O33: 15 | P33: 28 | Q33: 0 | S33: 29 | T33: 12 | U33: 0 | W33: 14 | X33: 30 | Y33: 0 | AA33: 7 | AB33: 44 | AC33: 0 | AE33: 2 | AF33: 55 | AG33: 0 | AI33: 24 | AJ33: 17 | AK33: 0 | AM33: 8 | AN33: 42 | AO33: 0 | AQ33: 19 | AR33: 22 | AS33: 0 | AU33: 0 | AV33: 0 | AW33: 0
A34: XXXXXX | B34: 0
A35: DELCAR | B35: 793 | D35: 36 | E35: 0 | H35: 34 | I35: 0 | L35: 50 | M35: 0 | P35: 74 | Q35: 0 | T35: 107 | U35: 0 | X35: 64 | Y35: 0 | AB35: 80 | AC35: 0 | AF35: 130 | AG35: 0 | AJ35: 82 | AK35: 2 | AN35: 0 | AO35: 0 | AR35: 68 | AS35: 0 | AV35: 66 | AW35: 0
A36: Leonardo Bastos | B36: 354 | C36: 11 | D36: 36 | E36: 0 | G36: 12 | H36: 34 | I36: 0 | K36: 14 | L36: 30 | M36: 0 | O36: 25 | P36: 16 | Q36: 0 | S36: 3 | T36: 52 | U36: 0 | W36: 17 | X36: 24 | Y36: 0 | AA36: 14 | AB36: 30 | AC36: 0 | AE36: 3 | AF36: 52 | AG36: 0 | AI36: 10 | AJ36: 38 | AK36: 0 | AM36: 0 | AN36: 0 | AO36: 0 | AQ36: 8 | AR36: 42 | AS36: 0 | AU36: 0 | AV36: 0 | AW36: 0
A37: Rodrigo Mercadante | B37: 339 | C37: 0 | D37: 0 | E37: 0 | G37: 0 | H37: 0 | I37: 0 | K37: 0 | L37: 0 | M37: 0 | O37: 11 | P37: 36 | Q37: 0 | S37: 2 | T37: 55 | U37: 0 | W37: 9 | X37: 40 | Y37: 0 | AA37: 4 | AB37: 50 | AC37: 0 | AE37: 4 | AF37: 50 | AG37: 0 | AI37: 7 | AJ37: 44 | AK37: 2 | AM37: 0 | AN37: 0 | AO37: 0 | AQ37: 16 | AR37: 26 | AS37: 0 | AU37: 11 | AV37: 36 | AW37: 0
A38: Leandro Malias | B38: 0 | C38: 0 | D38: 0 | E38: 0 | G38: 0 | H38: 0 | I38: 0 | K38: 0 | L38: 0 | M38: 0 | O38: 0 | P38: 0 | Q38: 0 | S38: 0 | T38: 0 | U38: 0 | W38: 0 | X38: 0 | Y38: 0 | AA38: 0 | AB38: 0 | AC38: 0 | AE38: 0 | AF38: 0 | AG38: 0 | AI38: 0 | AJ38: 0 | AK38: 0 | AM38: 0 | AN38: 0 | AO38: 0 | AQ38: 0 | AR38: 0 | AS38: 0 | AU38: 0 | AV38: 0 | AW38: 0
A39: João Fiuza | B39: 100 | C39: 0 | D39: 0 | E39: 0 | G39: 0 | H39: 0 | I39: 0 | K39: 21 | L39: 20 | M39: 0 | O39: 19 | P39: 22 | Q39: 0 | S39: 0 | T39: 0 | U39: 0 | W39: 0 | X39: 0 | Y39: 0 | AA39: 0 | AB39: 0 | AC39: 0 | AE39: 15 | AF39: 28 | AG39: 0 | AI39: 0 | AJ39: 0 | AK39: 0 | AM39: 0 | AN39: 0 | AO39: 0 | AQ39: 0 | AR39: 0 | AS39: 0 | AU39: 14 | AV39: 30 | AW39: 0
A40: XXXXXX
A41: LQN | B41: 826 | D41: 101 | E41: 0 | H41: 103 | I41: 0 | L41: 40 | M41: 0 | P41: 52 | Q41: 0 | T41: 81 | U41: 0 | X41: 69 | Y41: 0 | AB41: 52 | AC41: 0 | AF41: 78 | AG41: 0 | AJ41: 82 | AK41: 0 | AN41: 72 | AO41: 0 | AR41: 68 | AS41: 0 | AV41: 28 | AW41: 0
A42: Marcelo Sant'anna | B42: 439 | C42: 8 | D42: 42 | E42: 0 | G42: 8 | H42: 42 | I42: 0 | K42: 33 | L42: 8 | M42: 0 | O42: 22 | P42: 19 | Q42: 0 | S42: 10 | T42: 38 | U42: 0 | W42: 6 | X42: 46 | Y42: 0 | AA42: 3 | AB42: 52 | AC42: 0 | AE42: 12 | AF42: 34 | AG42: 0 | AI42: 3 | AJ42: 52 | AK42: 0 | AM42: 10 | AN42: 38 | AO42: 0 | AQ42: 9 | AR42: 40 | AS42: 0 | AU42: 15 | AV42: 28 | AW42: 0
A43: Eduardo Dias | B43: 99 | C43: 6 | D43: 46 | E43: 0 | G43: 18 | H43: 23 | I43: 0 | K43: 0 | L43: 0 | M43: 0 | O43: 26 | P43: 15 | Q43: 0 | S43: 26 | T43: 15 | U43: 0 | W43: 0 | X43: 0 | Y43: 0 | AA43: 0 | AB43: 0 | AC43: 0 | AE43: 0 | AF43: 0 | AG43: 0 | AI43: 0 | AJ43: 0 | AK43: 0 | AM43: 0 | AN43: 0 | AO43: 0 | AQ43: 0 | AR43: 0 | AS43: 0 | AU43: 0 | AV43: 0 | AW43: 0
A44: Marcos Rodrigo | B44: 0 | C44: 0 | D44: 0 | E44: 0 | G44: 0 | H44: 0 | I44: 0 | K44: 0 | L44: 0 | M44: 0 | O44: 0 | P44: 0 | Q44: 0 | S44: 0 | T44: 0 | U44: 0 | W44: 0 | X44: 0 | Y44: 0 | AA44: 0 | AB44: 0 | AC44: 0 | AE44: 0 | AF44: 0 | AG44: 0 | AI44: 0 | AJ44: 0 | AK44: 0 | AM44: 0 | AN44: 0 | AO44: 0 | AQ44: 0 | AR44: 0 | AS44: 0 | AU44: 0 | AV44: 0 | AW44: 0
A45: Daniel Paranhos | B45: 288 | C45: 28 | D45: 13 | E45: 0 | G45: 10 | H45: 38 | I45: 0 | K45: 13 | L45: 32 | M45: 0 | O45: 23 | P45: 18 | Q45: 0 | S45: 15 | T45: 28 | U45: 0 | W45: 18 | X45: 23 | Y45: 0 | AA45: 0 | AB45: 0 | AC45: 0 | AE45: 7 | AF45: 44 | AG45: 0 | AI45: 14 | AJ45: 30 | AK45: 0 | AM45: 12 | AN45: 34 | AO45: 0 | AQ45: 15 | AR45: 28 | AS45: 0 | AU45: 0 | AV45: 0 | AW45: 0
A46: XXXXXX
A47: RBC | B47: 812 | D47: 101 | E47: 0 | H47: 80 | I47: 0 | L47: 60 | M47: 0 | P47: 114 | Q47: 0 | T47: 85 | U47: 0 | X47: 47 | Y47: 0 | AB47: 60 | AC47: 0 | AF47: 38 | AG47: 0 | AJ47: 56 | AK47: 0 | AN47: 78 | AO47: 0 | AR47: 67 | AS47: 0 | AV47: 26 | AW47: 0
A48: Eduardo Henrique | B48: 288 | C48: 22 | D48: 19 | E48: 0 | G48: 15 | H48: 28 | I48: 0 | K48: 0 | L48: 0 | M48: 0 | O48: 9 | P48: 40 | Q48: 0 | S48: 25 | T48: 16 | U48: 0 | W48: 0 | X48: 0 | Y48: 0 | AA48: 23 | AB48: 18 | AC48: 0 | AE48: 23 | AF48: 18 | AG48: 0 | AI48: 17 | AJ48: 24 | AK48: 0 | AM48: 2 | AN48: 55 | AO48: 0 | AQ48: 7 | AR48: 44 | AS48: 0 | AU48: 16 | AV48: 26 | AW48: 0
A49: Cláudio Dumont | B49: 284 | C49: 5 | D49: 48 | E49: 0 | G49: 24 | H49: 17 | I49: 0 | K49: 1 | L49: 60 | M49: 0 | O49: 1 | P49: 60 | Q49: 0 | S49: 5 | T49: 48 | U49: 0 | W49: 22 | X49: 19 | Y49: 0 | AA49: 0 | AB49: 0 | AC49: 0 | AE49: 0 | AF49: 0 | AG49: 0 | AI49: 13 | AJ49: 32 | AK49: 0 | AM49: 0 | AN49: 0 | AO49: 0 | AQ49: 0 | AR49: 0 | AS49: 0 | AU49: 0 | AV49: 0 | AW49: 0
A50: Pedro Mello | B50: 145 | C50: 18 | D50: 23 | E50: 0 | G50: 21 | H50: 20 | I50: 0 | K50: 0 | L50: 0 | M50: 0 | O50: 27 | P50: 14 | Q50: 0 | S50: 0 | T50: 0 | U50: 0 | W50: 0 | X50: 0 | Y50: 0 | AA50: 19 | AB50: 22 | AC50: 0 | AE50: 21 | AF50: 20 | AG50: 0 | AI50: 0 | AJ50: 0 | AK50: 0 | AM50: 18 | AN50: 23 | AO50: 0 | AQ50: 18 | AR50: 23 | AS50: 0 | AU50: 0 | AV50: 0 | AW50: 0
A51: Neylon Silva | B51: 95 | C51: 30 | D51: 11 | E51: 0 | G51: 26 | H51: 15 | I51: 0 | K51: 0 | L51: 0 | M51: 0 | O51: 0 | P51: 0 | Q51: 0 | S51: 20 | T51: 21 | U51: 0 | W51: 15 | X51: 28 | Y51: 0 | AA51: 21 | AB51: 20 | AC51: 0 | AE51: 0 | AF51: 0 | AG51: 0 | AI51: 0 | AJ51: 0 | AK51: 0 | AM51: 0 | AN51: 0 | AO51: 0 | AQ51: 0 | AR51: 0 | AS51: 0 | AU51: 0 | AV51: 0 | AW51: 0
A52: XXXXXX
A53: GUI FIGUEIREDO | B53: 1166 | D53: 76 | E53: 0 | H53: 102 | I53: 0 | L53: 79 | M53: 0 | P53: 77 | Q53: 0 | T53: 100 | U53: 2 | X53: 100 | Y53: 0 | AB53: 110 | AC53: 0 | AF53: 71 | AG53: 0 | AJ53: 107 | AK53: 0 | AN53: 128 | AO53: 0 | AR53: 126 | AS53: 0 | AV53: 88 | AW53: 0
A54: Guilherme Alves | B54: 452 | C54: 13 | D54: 32 | E54: 0 | G54: 16 | H54: 26 | I54: 0 | K54: 15 | L54: 28 | M54: 0 | O54: 12 | P54: 34 | Q54: 0 | S54: 6 | T54: 46 | U54: 2 | W54: 16 | X54: 26 | Y54: 0 | AA54: 6 | AB54: 46 | AC54: 0 | AE54: 14 | AF54: 30 | AG54: 0 | AI54: 4 | AJ54: 50 | AK54: 0 | AM54: 6 | AN54: 46 | AO54: 0 | AQ54: 11 | AR54: 36 | AS54: 0 | AU54: 4 | AV54: 50 | AW54: 0
A55: Alexandre Melillo | B55: 403 | C55: 14 | D55: 30 | E55: 0 | G55: 14 | H55: 30 | I55: 0 | K55: 9 | L55: 40 | M55: 0 | O55: 18 | P55: 23 | Q55: 0 | S55: 19 | T55: 22 | U55: 0 | W55: 8 | X55: 42 | Y55: 0 | AA55: 10 | AB55: 38 | AC55: 0 | AE55: 17 | AF55: 24 | AG55: 0 | AI55: 12 | AJ55: 34 | AK55: 0 | AM55: 14 | AN55: 30 | AO55: 0 | AQ55: 3 | AR55: 52 | AS55: 0 | AU55: 10 | AV55: 38 | AW55: 0
A56: Adriano Morato | B56: 0 | C56: 0 | D56: 0 | E56: 0 | G56: 0 | H56: 0 | I56: 0 | K56: 0 | L56: 0 | M56: 0 | O56: 0 | P56: 0 | Q56: 0 | S56: 0 | T56: 0 | U56: 0 | W56: 0 | X56: 0 | Y56: 0 | AA56: 0 | AB56: 0 | AC56: 0 | AE56: 0 | AF56: 0 | AG56: 0 | AI56: 0 | AJ56: 0 | AK56: 0 | AM56: 0 | AN56: 0 | AO56: 0 | AQ56: 0 | AR56: 0 | AS56: 0 | AU56: 0 | AV56: 0 | AW56: 0
A57: Rafael Alves | B57: 311 | C57: 27 | D57: 14 | E57: 0 | G57: 6 | H57: 46 | I57: 0 | K57: 30 | L57: 11 | M57: 0 | O57: 21 | P57: 20 | Q57: 0 | S57: 13 | T57: 32 | U57: 0 | W57: 13 | X57: 32 | Y57: 0 | AA57: 16 | AB57: 26 | AC57: 0 | AE57: 24 | AF57: 17 | AG57: 0 | AI57: 18 | AJ57: 23 | AK57: 0 | AM57: 3 | AN57: 52 | AO57: 0 | AQ57: 10 | AR57: 38 | AS57: 0 | AU57: 0 | AV57: 0 | AW57: 0
A58: XXXXXX
A59: SANTIAGO | B59: 1317 | D59: 127 | E59: 2 | H59: 128 | I59: 0 | L59: 129 | M59: 0 | P59: 95 | Q59: 2 | T59: 103 | U59: 0 | X59: 76 | Y59: 0 | AB59: 146 | AC59: 0 | AF59: 100 | AG59: 0 | AJ59: 67 | AK59: 0 | AN59: 132 | AO59: 0 | AR59: 98 | AS59: 2 | AV59: 110 | AW59: 0
A60: Daniel Nahum | B60: 430 | C60: 26 | D60: 15 | E60: 0 | G60: 3 | H60: 52 | I60: 0 | K60: 7 | L60: 44 | M60: 0 | O60: 16 | P60: 26 | Q60: 2 | S60: 9 | T60: 40 | U60: 0 | W60: 0 | X60: 0 | Y60: 0 | AA60: 13 | AB60: 32 | AC60: 0 | AE60: 9 | AF60: 40 | AG60: 0 | AI60: 2 | AJ60: 55 | AK60: 0 | AM60: 9 | AN60: 40 | AO60: 0 | AQ60: 4 | AR60: 50 | AS60: 2 | AU60: 13 | AV60: 32 | AW60: 0
A61: Diego Silva | B61: 408 | C61: 17 | D61: 24 | E61: 2 | G61: 9 | H61: 40 | I61: 0 | K61: 16 | L61: 26 | M61: 0 | O61: 4 | P61: 50 | Q61: 0 | S61: 14 | T61: 30 | U61: 0 | W61: 20 | X61: 21 | Y61: 0 | AA61: 24 | AB61: 17 | AC61: 0 | AE61: 1 | AF61: 60 | AG61: 0 | AI61: 29 | AJ61: 12 | AK61: 0 | AM61: 7 | AN61: 44 | AO61: 0 | AQ61: 5 | AR61: 48 | AS61: 0 | AU61: 12 | AV61: 34 | AW61: 0
A62: Victor Silva | B62: 247 | C62: 4 | D62: 50 | E62: 0 | G62: 0 | H62: 0 | I62: 0 | K62: 24 | L62: 17 | M62: 0 | O62: 32 | P62: 9 | Q62: 0 | S62: 28 | T62: 13 | U62: 0 | W62: 2 | X62: 55 | Y62: 0 | AA62: 2 | AB62: 55 | AC62: 0 | AE62: 0 | AF62: 0 | AG62: 0 | AI62: 0 | AJ62: 0 | AK62: 0 | AM62: 5 | AN62: 48 | AO62: 0 | AQ62: 0 | AR62: 0 | AS62: 0 | AU62: 0 | AV62: 0 | AW62: 0
A63: Rafael Cantoni | B63: 232 | C63: 10 | D63: 38 | E63: 0 | G63: 11 | H63: 36 | I63: 0 | K63: 8 | L63: 42 | M63: 0 | O63: 31 | P63: 10 | Q63: 0 | S63: 21 | T63: 20 | U63: 0 | W63: 0 | X63: 0 | Y63: 0 | AA63: 8 | AB63: 42 | AC63: 0 | AE63: 0 | AF63: 0 | AG63: 0 | AI63: 0 | AJ63: 0 | AK63: 0 | AM63: 0 | AN63: 0 | AO63: 0 | AQ63: 0 | AR63: 0 | AS63: 0 | AU63: 7 | AV63: 44 | AW63: 0
A64: XXXXXX
A65: VIAKART1 | B65: 1032 | D65: 44 | E65: 0 | H65: 57 | I65: 0 | L65: 67 | M65: 0 | P65: 114 | Q65: 0 | T65: 152 | U65: 0 | X65: 146 | Y65: 2 | AB65: 110 | AC65: 0 | AF65: 96 | AG65: 0 | AJ65: 84 | AK65: 0 | AN65: 82 | AO65: 0 | AR65: 32 | AS65: 0 | AV65: 46 | AW65: 0
A66: Marcelo Surerus | B66: 331 | C66: 23 | D66: 18 | E66: 0 | G66: 0 | H66: 0 | I66: 0 | K66: 22 | L66: 19 | M66: 0 | O66: 3 | P66: 52 | Q66: 0 | S66: 4 | T66: 50 | U66: 0 | W66: 7 | X66: 44 | Y66: 0 | AA66: 12 | AB66: 34 | AC66: 0 | AE66: 8 | AF66: 42 | AG66: 0 | AI66: 11 | AJ66: 36 | AK66: 0 | AM66: 11 | AN66: 36 | AO66: 0 | AQ66: 0 | AR66: 0 | AS66: 0 | AU66: 0 | AV66: 0 | AW66: 0
A67: Gabriel Veloso | B67: 423 | C67: 31 | D67: 10 | E67: 0 | G67: 7 | H67: 44 | I67: 0 | K67: 20 | L67: 21 | M67: 0 | O67: 10 | P67: 38 | Q67: 0 | S67: 1 | T67: 60 | U67: 0 | W67: 4 | X67: 50 | Y67: 0 | AA67: 5 | AB67: 48 | AC67: 0 | AE67: 13 | AF67: 32 | AG67: 0 | AI67: 5 | AJ67: 48 | AK67: 0 | AM67: 16 | AN67: 26 | AO67: 0 | AQ67: 0 | AR67: 0 | AS67: 0 | AU67: 6 | AV67: 46 | AW67: 0
A68: Hugo Bambirra | B68: 62 | C68: 25 | D68: 16 | E68: 0 | G68: 28 | H68: 13 | I68: 0 | K68: 26 | L68: 15 | M68: 0 | O68: 0 | P68: 0 | Q68: 0 | S68: 23 | T68: 18 | U68: 0 | W68: 0 | X68: 0 | Y68: 0 | AA68: 0 | AB68: 0 | AC68: 0 | AE68: 0 | AF68: 0 | AG68: 0 | AI68: 0 | AJ68: 0 | AK68: 0 | AM68: 0 | AN68: 0 | AO68: 0 | AQ68: 0 | AR68: 0 | AS68: 0 | AU68: 0 | AV68: 0 | AW68: 0
A69: Felipe Franca | B69: 216 | C69: 0 | D69: 0 | E69: 0 | G69: 0 | H69: 0 | I69: 0 | K69: 29 | L69: 12 | M69: 0 | O69: 17 | P69: 24 | Q69: 0 | S69: 17 | T69: 24 | U69: 0 | W69: 3 | X69: 52 | Y69: 2 | AA69: 15 | AB69: 28 | AC69: 0 | AE69: 19 | AF69: 22 | AG69: 0 | AI69: 0 | AJ69: 0 | AK69: 0 | AM69: 21 | AN69: 20 | AO69: 0 | AQ69: 13 | AR69: 32 | AS69: 0 | AU69: 0 | AV69: 0 | AW69: 0
A70: XXXXXX

Sheet Class Elimin 2 Piores Equip
A1: 2021 | D1: OK | H1: OK | L1: OK | P1: OK | T1: OK | X1: OK | AB1: OK | AF1: OK | AJ1: OK | AN1: OK | AR1: OK | AV1: OK
C2: 1ª etapa | G2: 2ª etapa | K2: 3ª etapa | O2: 4ª etapa | S2: 5ª etapa | W2: Etapa 6 11/07/2021 - 10:00 | AA2: Etapa 7 18/07/2021 - 10:00 | AE2: Etapa 8 15/08/2021 - 10:00 | AI2: Etapa 9 12/09/2021 - 10:00 - Domingo | AM2: Etapa 10 17/10/2021 - 10:00 - Domingo | AQ2: 11ª etapa | AU2: 12ª etapa
C3: 00:00:00 | G3: 00:00:00 | K3: 00:00:00 | O3: 00:00:00 | S3: 00:00:00 | W3: 00:00:00 | AA3: 00:00:00 | AE3: 00:00:00 | AI3: 00:00:00 | AM3: 00:00:00 | AQ3: 00:00:00 | AU3: 00:00:00
A4: EQUIPES | B4: Pontuação Geral | C4: Posição | D4: Pontos | E4: Bônus | F4: Penalidade | G4: Posição | H4: Pontos | I4: Bônus | J4: Penalidade | K4: Posição | L4: Pontos | M4: Bônus | N4: Penalidade | O4: Posição | P4: Pontos | Q4: Bônus | R4: Penalidade | S4: Posição | T4: Pontos | U4: Bônus | V4: Penalidade | W4: Posição | X4: Pontos | Y4: Bônus | Z4: Penalidade | AA4: Posição | AB4: Pontos | AC4: Bônus | AD4: Penalidade | AE4: Posição | AF4: Pontos | AG4: Bônus | AH4: Penalidade | AI4: Posição | AJ4: Pontos | AK4: Bônus | AL4: Penalidade | AM4: Posição | AN4: Pontos | AO4: Bônus | AP4: Penalidade | AQ4: Posição | AR4: Pontos | AS4: Bônus | AT4: Penalidade | AU4: Posição | AV4: Pontos | AW4: Bônus | AX4: Penalidade
A5: SANTIAGO | B5: 1103 | D5: 112 | E5: 2 | H5: 128 | I5: 0 | L5: 112 | M5: 0 | P5: 86 | Q5: 2 | T5: 90 | U5: 0 | X5: 76* | Y5: 0 | AB5: 129 | AC5: 0 | AF5: 100 | AG5: 0 | AJ5: 67* | AK5: 0 | AN5: 132 | AO5: 0 | AR5: 98 | AS5: 2 | AV5: 110 | AW5: 0
A6: Daniel Nahum | B6: 360 | C6: 26 | D6: 15* | E6: 0 | G6: 3 | H6: 52 | I6: 0 | K6: 7 | L6: 44 | M6: 0 | O6: 16 | P6: 26 | Q6: 2 | S6: 9 | T6: 40 | U6: 0 | W6: 0 | X6: 0* | Y6: 0 | AA6: 13 | AB6: 32 | AC6: 0 | AE6: 9 | AF6: 40 | AG6: 0 | AI6: 2 | AJ6: 55* | AK6: 0 | AM6: 9 | AN6: 40 | AO6: 0 | AQ6: 4 | AR6: 50 | AS6: 2 | AU6: 13 | AV6: 32 | AW6: 0
A7: Diego Silva | B7: 358 | C7: 17 | D7: 24 | E7: 2 | G7: 9 | H7: 40 | I7: 0 | K7: 16 | L7: 26 | M7: 0 | O7: 4 | P7: 50 | Q7: 0 | S7: 14 | T7: 30 | U7: 0 | W7: 20 | X7: 21* | Y7: 0 | AA7: 24 | AB7: 17* | AC7: 0 | AE7: 1 | AF7: 60 | AG7: 0 | AI7: 29 | AJ7: 12* | AK7: 0 | AM7: 7 | AN7: 44 | AO7: 0 | AQ7: 5 | AR7: 48 | AS7: 0 | AU7: 12 | AV7: 34 | AW7: 0
A8: Victor Silva | B8: 153 | C8: 4 | D8: 50 | E8: 0 | G8: 0 | H8: 0 | I8: 0 | K8: 24 | L8: 17* | M8: 0 | O8: 32 | P8: 9* | Q8: 0 | S8: 28 | T8: 13* | U8: 0 | W8: 2 | X8: 55* | Y8: 0 | AA8: 2 | AB8: 55 | AC8: 0 | AE8: 0 | AF8: 0 | AG8: 0 | AI8: 0 | AJ8: 0* | AK8: 0 | AM8: 5 | AN8: 48 | AO8: 0 | AQ8: 0 | AR8: 0 | AS8: 0 | AU8: 0 | AV8: 0 | AW8: 0
A9: Rafael Cantoni | B9: 232 | C9: 10 | D9: 38 | E9: 0 | G9: 11 | H9: 36 | I9: 0 | K9: 8 | L9: 42 | M9: 0 | O9: 31 | P9: 10 | Q9: 0 | S9: 21 | T9: 20 | U9: 0 | W9: 0 | X9: 0* | Y9: 0 | AA9: 8 | AB9: 42 | AC9: 0 | AE9: 0 | AF9: 0 | AG9: 0 | AI9: 0 | AJ9: 0* | AK9: 0 | AM9: 0 | AN9: 0 | AO9: 0 | AQ9: 0 | AR9: 0 | AS9: 0 | AU9: 7 | AV9: 44 | AW9: 0
A10: XXXXXX | B10: 0 | X10: * | AJ10: *
A11: GUI FIGUEIREDO | B11: 1019 | D11: 76* | E11: 0 | H11: 102 | I11: 0 | L11: 79 | M11: 0 | P11: 77 | Q11: 0 | T11: 100 | U11: 2 | X11: 100 | Y11: 0 | AB11: 110 | AC11: 0 | AF11: 71* | AG11: 0 | AJ11: 107 | AK11: 0 | AN11: 128 | AO11: 0 | AR11: 126 | AS11: 0 | AV11: 88 | AW11: 0
A12: Guilherme Alves | B12: 390 | C12: 13 | D12: 32* | E12: 0 | G12: 16 | H12: 26 | I12: 0 | K12: 15 | L12: 28 | M12: 0 | O12: 12 | P12: 34 | Q12: 0 | S12: 6 | T12: 46 | U12: 2 | W12: 16 | X12: 26 | Y12: 0 | AA12: 6 | AB12: 46 | AC12: 0 | AE12: 14 | AF12: 30* | AG12: 0 | AI12: 4 | AJ12: 50 | AK12: 0 | AM12: 6 | AN12: 46 | AO12: 0 | AQ12: 11 | AR12: 36 | AS12: 0 | AU12: 4 | AV12: 50 | AW12: 0
A13: Alexandre Melillo | B13: 349 | C13: 14 | D13: 30* | E13: 0 | G13: 14 | H13: 30 | I13: 0 | K13: 9 | L13: 40 | M13: 0 | O13: 18 | P13: 23 | Q13: 0 | S13: 19 | T13: 22 | U13: 0 | W13: 8 | X13: 42 | Y13: 0 | AA13: 10 | AB13: 38 | AC13: 0 | AE13: 17 | AF13: 24* | AG13: 0 | AI13: 12 | AJ13: 34 | AK13: 0 | AM13: 14 | AN13: 30 | AO13: 0 | AQ13: 3 | AR13: 52 | AS13: 0 | AU13: 10 | AV13: 38 | AW13: 0
A14: Adriano Morato | B14: 0 | C14: 0 | D14: 0* | E14: 0 | G14: 0 | H14: 0 | I14: 0 | K14: 0 | L14: 0 | M14: 0 | O14: 0 | P14: 0 | Q14: 0 | S14: 0 | T14: 0 | U14: 0 | W14: 0 | X14: 0 | Y14: 0 | AA14: 0 | AB14: 0 | AC14: 0 | AE14: 0 | AF14: 0* | AG14: 0 | AI14: 0 | AJ14: 0 | AK14: 0 | AM14: 0 | AN14: 0 | AO14: 0 | AQ14: 0 | AR14: 0 | AS14: 0 | AU14: 0 | AV14: 0 | AW14: 0
A15: Rafael Alves | B15: 280 | C15: 27 | D15: 14* | E15: 0 | G15: 6 | H15: 46 | I15: 0 | K15: 30 | L15: 11 | M15: 0 | O15: 21 | P15: 20 | Q15: 0 | S15: 13 | T15: 32 | U15: 0 | W15: 13 | X15: 32 | Y15: 0 | AA15: 16 | AB15: 26 | AC15: 0 | AE15: 24 | AF15: 17* | AG15: 0 | AI15: 18 | AJ15: 23 | AK15: 0 | AM15: 3 | AN15: 52 | AO15: 0 | AQ15: 10 | AR15: 38 | AS15: 0 | AU15: 0 | AV15: 0 | AW15: 0
A16: XXXXXX | B16: 0 | D16: * | AF16: *
A17: ALPHA ENGENHARIA | B17: 953 | D17: 73 | E17: 0 | H17: 52* | I17: 0 | L17: 94 | M17: 0 | P17: 82 | Q17: 0 | T17: 87 | U17: 0 | X17: 106 | Y17: 0 | AB17: 60* | AC17: 2 | AF17: 71 | AG17: 0 | AJ17: 100 | AK17: 0 | AN17: 104 | AO17: 0 | AR17: 131 | AS17: 0 | AV17: 103 | AW17: 0
A18: Marcelo Campos | B18: 449 | C18: 9 | D18: 40 | E18: 0 | G18: 30 | H18: 11* | I18: 0 | K18: 2 | L18: 55 | M18: 0 | O18: 7 | P18: 44 | Q18: 0 | S18: 8 | T18: 42 | U18: 0 | W18: 5 | X18: 48 | Y18: 0 | AA18: 1 | AB18: 60* | AC18: 2 | AE18: 11 | AF18: 36 | AG18: 0 | AI18: 9 | AJ18: 40 | AK18: 0 | AM18: 13 | AN18: 32 | AO18: 0 | AQ18: 2 | AR18: 55 | AS18: 0 | AU18: 2 | AV18: 55 | AW18: 0
A19: Raphael Reis | B19: 121 | C19: 29 | D19: 12 | E19: 0 | G19: 19 | H19: 22* | I19: 0 | K19: 25 | L19: 16 | M19: 0 | O19: 0 | P19: 0 | Q19: 0 | S19: 0 | T19: 0 | U19: 0 | W19: 21 | X19: 20 | Y19: 0 | AA19: 0 | AB19: 0* | AC19: 0 | AE19: 20 | AF19: 21 | AG19: 0 | AI19: 0 | AJ19: 0 | AK19: 0 | AM19: 19 | AN19: 22 | AO19: 0 | AQ19: 14 | AR19: 30 | AS19: 0 | AU19: 0 | AV19: 0 | AW19: 0
A20: Marcelo Clemente | B20: 334 | C20: 20 | D20: 21 | E20: 0 | G20: 0 | H20: 0* | I20: 0 | K20: 0 | L20: 0 | M20: 0 | O20: 20 | P20: 21 | Q20: 0 | S20: 11 | T20: 36 | U20: 0 | W20: 10 | X20: 38 | Y20: 0 | AA20: 0 | AB20: 0* | AC20: 0 | AE20: 27 | AF20: 14 | AG20: 0 | AI20: 1 | AJ20: 60 | AK20: 0 | AM20: 4 | AN20: 50 | AO20: 0 | AQ20: 6 | AR20: 46 | AS20: 0 | AU20: 5 | AV20: 48 | AW20: 0
A21: Luis Almeida | B21: 49 | C21: 0 | D21: 0 | E21: 0 | G21: 22 | H21: 19* | I21: 0 | K21: 18 | L21: 23 | M21: 0 | O21: 24 | P21: 17 | Q21: 0 | S21: 32 | T21: 9 | U21: 0 | W21: 0 | X21: 0 | Y21: 0 | AA21: 0 | AB21: 0* | AC21: 0 | AE21: 0 | AF21: 0 | AG21: 0 | AI21: 0 | AJ21: 0 | AK21: 0 | AM21: 0 | AN21: 0 | AO21: 0 | AQ21: 0 | AR21: 0 | AS21: 0 | AU21: 0 | AV21: 0 | AW21: 0
A22: XXXXXX | B22: 0 | H22: * | AB22: *
A23: VIAKART1 | B23: 926 | D23: 44* | E23: 0 | H23: 57 | I23: 0 | L23: 55 | M23: 0 | P23: 114 | Q23: 0 | T23: 134 | U23: 0 | X23: 146 | Y23: 2 | AB23: 110 | AC23: 0 | AF23: 96 | AG23: 0 | AJ23: 84 | AK23: 0 | AN23: 82 | AO23: 0 | AR23: 32* | AS23: 0 | AV23: 46 | AW23: 0
A24: Marcelo Surerus | B24: 313 | C24: 23 | D24: 18* | E24: 0 | G24: 0 | H24: 0 | I24: 0 | K24: 22 | L24: 19 | M24: 0 | O24: 3 | P24: 52 | Q24: 0 | S24: 4 | T24: 50 | U24: 0 | W24: 7 | X24: 44 | Y24: 0 | AA24: 12 | AB24: 34 | AC24: 0 | AE24: 8 | AF24: 42 | AG24: 0 | AI24: 11 | AJ24: 36 | AK24: 0 | AM24: 11 | AN24: 36 | AO24: 0 | AQ24: 0 | AR24: 0* | AS24: 0 | AU24: 0 | AV24: 0 | AW24: 0
A25: Gabriel Veloso | B25: 413 | C25: 31 | D25: 10* | E25: 0 | G25: 7 | H25: 44 | I25: 0 | K25: 20 | L25: 21 | M25: 0 | O25: 10 | P25: 38 | Q25: 0 | S25: 1 | T25: 60 | U25: 0 | W25: 4 | X25: 50 | Y25: 0 | AA25: 5 | AB25: 48 | AC25: 0 | AE25: 13 | AF25: 32 | AG25: 0 | AI25: 5 | AJ25: 48 | AK25: 0 | AM25: 16 | AN25: 26 | AO25: 0 | AQ25: 0 | AR25: 0* | AS25: 0 | AU25: 6 | AV25: 46 | AW25: 0
A26: Hugo Bambirra | B26: 28 | C26: 25 | D26: 16* | E26: 0 | G26: 28 | H26: 13 | I26: 0 | K26: 26 | L26: 15 | M26: 0 | O26: 0 | P26: 0 | Q26: 0 | S26: 23 | T26: 18* | U26: 0 | W26: 0 | X26: 0 | Y26: 0 | AA26: 0 | AB26: 0 | AC26: 0 | AE26: 0 | AF26: 0 | AG26: 0 | AI26: 0 | AJ26: 0 | AK26: 0 | AM26: 0 | AN26: 0 | AO26: 0 | AQ26: 0 | AR26: 0* | AS26: 0 | AU26: 0 | AV26: 0 | AW26: 0
A27: Felipe Franca | B27: 172 | C27: 0 | D27: 0* | E27: 0 | G27: 0 | H27: 0 | I27: 0 | K27: 29 | L27: 12* | M27: 0 | O27: 17 | P27: 24 | Q27: 0 | S27: 17 | T27: 24 | U27: 0 | W27: 3 | X27: 52 | Y27: 2 | AA27: 15 | AB27: 28 | AC27: 0 | AE27: 19 | AF27: 22 | AG27: 0 | AI27: 0 | AJ27: 0 | AK27: 0 | AM27: 21 | AN27: 20 | AO27: 0 | AQ27: 13 | AR27: 32* | AS27: 0 | AU27: 0 | AV27: 0 | AW27: 0
A28: XXXXXX | B28: 0 | D28: * | AR28: *
A29: CLEMENTE CAR | B29: 871 | D29: 97 | E29: 0 | H29: 102 | I29: 0 | L29: 104 | M29: 2 | P29: 87 | Q29: 0 | T29: 67 | U29: 0 | X29: 60 | Y29: 0 | AB29: 76 | AC29: 0 | AF29: 48* | AG29: 0 | AJ29: 110 | AK29: 0 | AN29: 60 | AO29: 2 | AR29: 60* | AS29: 0 | AV29: 102 | AW29: 2
A30: Léo Oliveira | B30: 423 | C30: 2 | D30: 55 | E30: 0 | G30: 1 | H30: 60 | I30: 0 | K30: 3 | L30: 52 | M30: 2 | O30: 5 | P30: 48 | Q30: 0 | S30: 0 | T30: 0 | U30: 0 | W30: 0 | X30: 0 | Y30: 0 | AA30: 11 | AB30: 36 | AC30: 0 | AE30: 0 | AF30: 0* | AG30: 0 | AI30: 6 | AJ30: 46 | AK30: 0 | AM30: 1 | AN30: 60 | AO30: 2 | AQ30: 1 | AR30: 60* | AS30: 0 | AU30: 1 | AV30: 60 | AW30: 2
A31: Heimar Mata | B31: 24 | C31: 0 | D31: 0 | E31: 0 | G31: 17 | H31: 24 | I31: 0 | K31: 0 | L31: 0 | M31: 0 | O31: 0 | P31: 0 | Q31: 0 | S31: 0 | T31: 0 | U31: 0 | W31: 0 | X31: 0 | Y31: 0 | AA31: 0 | AB31: 0 | AC31: 0 | AE31: 0 | AF31: 0* | AG31: 0 | AI31: 0 | AJ31: 0 | AK31: 0 | AM31: 0 | AN31: 0 | AO31: 0 | AQ31: 0 | AR31: 0* | AS31: 0 | AU31: 0 | AV31: 0 | AW31: 0
A32: Saulo Chagas | B32: 117 | C32: 33 | D32: 8 | E32: 0 | G32: 23 | H32: 18 | I32: 0 | K32: 23 | L32: 18 | M32: 0 | O32: 34 | P32: 7 | Q32: 0 | S32: 18 | T32: 23 | U32: 0 | W32: 0 | X32: 0 | Y32: 0 | AA32: 20 | AB32: 21 | AC32: 0 | AE32: 0 | AF32: 0* | AG32: 0 | AI32: 19 | AJ32: 22 | AK32: 0 | AM32: 0 | AN32: 0 | AO32: 0 | AQ32: 0 | AR32: 0* | AS32: 0 | AU32: 0 | AV32: 0 | AW32: 0
A33: Rafael Miranda | B33: 307 | C33: 12 | D33: 34 | E33: 0 | G33: 0 | H33: 0 | I33: 0 | K33: 12 | L33: 34 | M33: 0 | O33: 13 | P33: 32 | Q33: 0 | S33: 7 | T33: 44 | U33: 0 | W33: 1 | X33: 60 | Y33: 0 | AA33: 22 | AB33: 19 | AC33: 0 | AE33: 5 | AF33: 48* | AG33: 0 | AI33: 8 | AJ33: 42 | AK33: 0 | AM33: 0 | AN33: 0 | AO33: 0 | AQ33: 0 | AR33: 0* | AS33: 0 | AU33: 8 | AV33: 42 | AW33: 0
A34: XXXXXX | B34: 0 | AF34: * | AR34: *
A35: VIAKART | B35: 764 | D35: 114 | E35: 0 | H35: 103 | I35: 0 | L35: 110 | M35: 0 | P35: 131 | Q35: 0 | T35: 60 | U35: 0 | X35: 59 | Y35: 0 | AB35: 24* | AC35: 0 | AF35: 69 | AG35: 0 | AJ35: 38 | AK35: 0 | AN35: 28 | AO35: 0 | AR35: 0* | AS35: 0 | AV35: 52 | AW35: 0
A36: Roberto Torres | B36: 93 | C36: 0 | D36: 0 | E36: 0 | G36: 0 | H36: 0 | I36: 0 | K36: 10 | L36: 38 | M36: 0 | O36: 2 | P36: 55 | Q36: 0 | S36: 0 | T36: 0 | U36: 0 | W36: 0 | X36: 0 | Y36: 0 | AA36: 0 | AB36: 0* | AC36: 0 | AE36: 0 | AF36: 0 | AG36: 0 | AI36: 0 | AJ36: 0 | AK36: 0 | AM36: 0 | AN36: 0 | AO36: 0 | AQ36: 0 | AR36: 0* | AS36: 0 | AU36: 0 | AV36: 0 | AW36: 0
A37: Jarbas Reis | B37: 287 | C37: 15 | D37: 28 | E37: 0 | G37: 20 | H37: 21 | I37: 0 | K37: 19 | L37: 22 | M37: 0 | O37: 6 | P37: 46 | Q37: 0 | S37: 16 | T37: 26 | U37: 0 | W37: 11 | X37: 36 | Y37: 0 | AA37: 17 | AB37: 24* | AC37: 0 | AE37: 0 | AF37: 0 | AG37: 0 | AI37: 15 | AJ37: 28 | AK37: 0 | AM37: 15 | AN37: 28 | AO37: 0 | AQ37: 0 | AR37: 0* | AS37: 0 | AU37: 3 | AV37: 52 | AW37: 0
A38: Marcelo Pereira | B38: 168 | C38: 1 | D38: 60 | E38: 0 | G38: 4 | H38: 50 | I38: 0 | K38: 27 | L38: 14* | M38: 0 | O38: 14 | P38: 30 | Q38: 0 | S38: 0 | T38: 0 | U38: 0 | W38: 36 | X38: 5 | Y38: 0 | AA38: 0 | AB38: 0* | AC38: 0 | AE38: 18 | AF38: 23 | AG38: 0 | AI38: 0 | AJ38: 0 | AK38: 0 | AM38: 0 | AN38: 0 | AO38: 0 | AQ38: 0 | AR38: 0* | AS38: 0 | AU38: 0 | AV38: 0 | AW38: 0
A39: Leonardo Bosco | B39: 216 | C39: 16 | D39: 26 | E39: 0 | G39: 13 | H39: 32 | I39: 0 | K39: 4 | L39: 50 | M39: 0 | O39: 29 | P39: 12* | Q39: 0 | S39: 12 | T39: 34 | U39: 0 | W39: 23 | X39: 18 | Y39: 0 | AA39: 0 | AB39: 0* | AC39: 0 | AE39: 6 | AF39: 46 | AG39: 0 | AI39: 31 | AJ39: 10 | AK39: 0 | AM39: 0 | AN39: 0 | AO39: 0 | AQ39: 0 | AR39: 0* | AS39: 0 | AU39: 0 | AV39: 0 | AW39: 0
A40: XXXXXX | B40: 0 | AB40: * | AR40: *
A41: DELCAR | B41: 759 | D41: 36 | E41: 0 | H41: 34* | I41: 0 | L41: 50 | M41: 0 | P41: 74 | Q41: 0 | T41: 107 | U41: 0 | X41: 64 | Y41: 0 | AB41: 80 | AC41: 0 | AF41: 130 | AG41: 0 | AJ41: 82 | AK41: 2 | AN41: 0* | AO41: 0 | AR41: 68 | AS41: 0 | AV41: 66 | AW41: 0
A42: Leonardo Bastos | B42: 320 | C42: 11 | D42: 36 | E42: 0 | G42: 12 | H42: 34* | I42: 0 | K42: 14 | L42: 30 | M42: 0 | O42: 25 | P42: 16 | Q42: 0 | S42: 3 | T42: 52 | U42: 0 | W42: 17 | X42: 24 | Y42: 0 | AA42: 14 | AB42: 30 | AC42: 0 | AE42: 3 | AF42: 52 | AG42: 0 | AI42: 10 | AJ42: 38 | AK42: 0 | AM42: 0 | AN42: 0* | AO42: 0 | AQ42: 8 | AR42: 42 | AS42: 0 | AU42: 0 | AV42: 0 | AW42: 0
A43: Rodrigo Mercadante | B43: 339 | C43: 0 | D43: 0 | E43: 0 | G43: 0 | H43: 0* | I43: 0 | K43: 0 | L43: 0 | M43: 0 | O43: 11 | P43: 36 | Q43: 0 | S43: 2 | T43: 55 | U43: 0 | W43: 9 | X43: 40 | Y43: 0 | AA43: 4 | AB43: 50 | AC43: 0 | AE43: 4 | AF43: 50 | AG43: 0 | AI43: 7 | AJ43: 44 | AK43: 2 | AM43: 0 | AN43: 0* | AO43: 0 | AQ43: 16 | AR43: 26 | AS43: 0 | AU43: 11 | AV43: 36 | AW43: 0
A44: Leandro Malias | B44: 0 | C44: 0 | D44: 0 | E44: 0 | G44: 0 | H44: 0* | I44: 0 | K44: 0 | L44: 0 | M44: 0 | O44: 0 | P44: 0 | Q44: 0 | S44: 0 | T44: 0 | U44: 0 | W44: 0 | X44: 0 | Y44: 0 | AA44: 0 | AB44: 0 | AC44: 0 | AE44: 0 | AF44: 0 | AG44: 0 | AI44: 0 | AJ44: 0 | AK44: 0 | AM44: 0 | AN44: 0* | AO44: 0 | AQ44: 0 | AR44: 0 | AS44: 0 | AU44: 0 | AV44: 0 | AW44: 0
A45: João Fiuza | B45: 100 | C45: 0 | D45: 0 | E45: 0 | G45: 0 | H45: 0* | I45: 0 | K45: 21 | L45: 20 | M45: 0 | O45: 19 | P45: 22 | Q45: 0 | S45: 0 | T45: 0 | U45: 0 | W45: 0 | X45: 0 | Y45: 0 | AA45: 0 | AB45: 0 | AC45: 0 | AE45: 15 | AF45: 28 | AG45: 0 | AI45: 0 | AJ45: 0 | AK45: 0 | AM45: 0 | AN45: 0* | AO45: 0 | AQ45: 0 | AR45: 0 | AS45: 0 | AU45: 14 | AV45: 30 | AW45: 0
A46: XXXXXX | B46: 0 | H46: * | AN46: *
A47: LQN | B47: 758 | D47: 101 | E47: 0 | H47: 103 | I47: 0 | L47: 40* | M47: 0 | P47: 52 | Q47: 0 | T47: 81 | U47: 0 | X47: 69 | Y47: 0 | AB47: 52 | AC47: 0 | AF47: 78 | AG47: 0 | AJ47: 82 | AK47: 0 | AN47: 72 | AO47: 0 | AR47: 68 | AS47: 0 | AV47: 28* | AW47: 0
A48: Marcelo Sant'anna | B48: 403 | C48: 8 | D48: 42 | E48: 0 | G48: 8 | H48: 42 | I48: 0 | K48: 33 | L48: 8* | M48: 0 | O48: 22 | P48: 19 | Q48: 0 | S48: 10 | T48: 38 | U48: 0 | W48: 6 | X48: 46 | Y48: 0 | AA48: 3 | AB48: 52 | AC48: 0 | AE48: 12 | AF48: 34 | AG48: 0 | AI48: 3 | AJ48: 52 | AK48: 0 | AM48: 10 | AN48: 38 | AO48: 0 | AQ48: 9 | AR48: 40 | AS48: 0 | AU48: 15 | AV48: 28* | AW48: 0
A49: Eduardo Dias | B49: 99 | C49: 6 | D49: 46 | E49: 0 | G49: 18 | H49: 23 | I49: 0 | K49: 0 | L49: 0* | M49: 0 | O49: 26 | P49: 15 | Q49: 0 | S49: 26 | T49: 15 | U49: 0 | W49: 0 | X49: 0 | Y49: 0 | AA49: 0 | AB49: 0 | AC49: 0 | AE49: 0 | AF49: 0 | AG49: 0 | AI49: 0 | AJ49: 0 | AK49: 0 | AM49: 0 | AN49: 0 | AO49: 0 | AQ49: 0 | AR49: 0 | AS49: 0 | AU49: 0 | AV49: 0* | AW49: 0
A50: Marcos Rodrigo | B50: 0 | C50: 0 | D50: 0 | E50: 0 | G50: 0 | H50: 0 | I50: 0 | K50: 0 | L50: 0* | M50: 0 | O50: 0 | P50: 0 | Q50: 0 | S50: 0 | T50: 0 | U50: 0 | W50: 0 | X50: 0 | Y50: 0 | AA50: 0 | AB50: 0 | AC50: 0 | AE50: 0 | AF50: 0 | AG50: 0 | AI50: 0 | AJ50: 0 | AK50: 0 | AM50: 0 | AN50: 0 | AO50: 0 | AQ50: 0 | AR50: 0 | AS50: 0 | AU50: 0 | AV50: 0* | AW50: 0
A51: Daniel Paranhos | B51: 256 | C51: 28 | D51: 13 | E51: 0 | G51: 10 | H51: 38 | I51: 0 | K51: 13 | L51: 32* | M51: 0 | O51: 23 | P51: 18 | Q51: 0 | S51: 15 | T51: 28 | U51: 0 | W51: 18 | X51: 23 | Y51: 0 | AA51: 0 | AB51: 0 | AC51: 0 | AE51: 7 | AF51: 44 | AG51: 0 | AI51: 14 | AJ51: 30 | AK51: 0 | AM51: 12 | AN51: 34 | AO51: 0 | AQ51: 15 | AR51: 28 | AS51: 0 | AU51: 0 | AV51: 0* | AW51: 0
A52: XXXXXX | B52: 0 | L52: * | AV52: *
A53: TIRA GRILOS | B53: 755 | D53: 113 | E53: 0 | H53: 78 | I53: 0 | L53: 94 | M53: 0 | P53: 41* | Q53: 0 | T53: 50 | U53: 0 | X53: 52 | Y53: 0 | AB53: 67 | AC53: 0 | AF53: 119 | AG53: 0 | AJ53: 43 | AK53: 0 | AN53: 81 | AO53: 0 | AR53: 58 | AS53: 0 | AV53: 0* | AW53: 0
A54: Wesley Bambirra | B54: 220 | C54: 7 | D54: 44 | E54: 0 | G54: 5 | H54: 48 | I54: 0 | K54: 6 | L54: 46 | M54: 0 | O54: 0 | P54: 0* | Q54: 0 | S54: 27 | T54: 14 | U54: 0 | W54: 0 | X54: 0 | Y54: 0 | AA54: 0 | AB54: 0 | AC54: 0 | AE54: 10 | AF54: 38 | AG54: 0 | AI54: 0 | AJ54: 0 | AK54: 0 | AM54: 23 | AN54: 18 | AO54: 0 | AQ54: 29 | AR54: 12 | AS54: 0 | AU54: 0 | AV54: 0* | AW54: 0
A55: Jean Paul | B55: 218 | C55: 24 | D55: 17 | E55: 0 | G55: 25 | H55: 16 | I55: 0 | K55: 5 | L55: 48 | M55: 0 | O55: 28 | P55: 13* | Q55: 0 | S55: 22 | T55: 19 | U55: 0 | W55: 19 | X55: 22 | Y55: 0 | AA55: 18 | AB55: 23 | AC55: 0 | AE55: 16 | AF55: 26 | AG55: 0 | AI55: 16 | AJ55: 26 | AK55: 0 | AM55: 20 | AN55: 21 | AO55: 0 | AQ55: 0 | AR55: 0 | AS55: 0 | AU55: 0 | AV55: 0* | AW55: 0
A56: Wesley Camargos | B56: 55 | C56: 32 | D56: 9* | E56: 0 | G56: 27 | H56: 14 | I56: 0 | K56: 0 | L56: 0 | M56: 0 | O56: 0 | P56: 0* | Q56: 0 | S56: 24 | T56: 17 | U56: 0 | W56: 0 | X56: 0 | Y56: 0 | AA56: 0 | AB56: 0 | AC56: 0 | AE56: 22 | AF56: 19* | AG56: 0 | AI56: 0 | AJ56: 0 | AK56: 0 | AM56: 0 | AN56: 0 | AO56: 0 | AQ56: 17 | AR56: 24 | AS56: 0 | AU56: 0 | AV56: 0* | AW56: 0
A57: Alan Silva | B57: 262 | C57: 3 | D57: 52 | E57: 0 | G57: 0 | H57: 0 | I57: 0 | K57: 0 | L57: 0 | M57: 0 | O57: 15 | P57: 28* | Q57: 0 | S57: 29 | T57: 12* | U57: 0 | W57: 14 | X57: 30 | Y57: 0 | AA57: 7 | AB57: 44 | AC57: 0 | AE57: 2 | AF57: 55 | AG57: 0 | AI57: 24 | AJ57: 17 | AK57: 0 | AM57: 8 | AN57: 42 | AO57: 0 | AQ57: 19 | AR57: 22 | AS57: 0 | AU57: 0 | AV57: 0* | AW57: 0
A58: XXXXXX | B58: 0 | P58: * | AV58: *
A59: RBC | B59: 722 | D59: 90 | E59: 0 | H59: 65 | I59: 0 | L59: 60 | M59: 0 | P59: 114 | Q59: 0 | T59: 85 | U59: 0 | X59: 47 | Y59: 0 | AB59: 60 | AC59: 0 | AF59: 38* | AG59: 0 | AJ59: 56 | AK59: 0 | AN59: 78 | AO59: 0 | AR59: 67 | AS59: 0 | AV59: 26* | AW59: 0
A60: Eduardo Henrique | B60: 244 | C60: 22 | D60: 19 | E60: 0 | G60: 15 | H60: 28 | I60: 0 | K60: 0 | L60: 0 | M60: 0 | O60: 9 | P60: 40 | Q60: 0 | S60: 25 | T60: 16 | U60: 0 | W60: 0 | X60: 0 | Y60: 0 | AA60: 23 | AB60: 18 | AC60: 0 | AE60: 23 | AF60: 18* | AG60: 0 | AI60: 17 | AJ60: 24 | AK60: 0 | AM60: 2 | AN60: 55 | AO60: 0 | AQ60: 7 | AR60: 44 | AS60: 0 | AU60: 16 | AV60: 26* | AW60: 0
A61: Cláudio Dumont | B61: 284 | C61: 5 | D61: 48 | E61: 0 | G61: 24 | H61: 17 | I61: 0 | K61: 1 | L61: 60 | M61: 0 | O61: 1 | P61: 60 | Q61: 0 | S61: 5 | T61: 48 | U61: 0 | W61: 22 | X61: 19 | Y61: 0 | AA61: 0 | AB61: 0 | AC61: 0 | AE61: 0 | AF61: 0* | AG61: 0 | AI61: 13 | AJ61: 32 | AK61: 0 | AM61: 0 | AN61: 0 | AO61: 0 | AQ61: 0 | AR61: 0 | AS61: 0 | AU61: 0 | AV61: 0* | AW61: 0
A62: Pedro Mello | B62: 125 | C62: 18 | D62: 23 | E62: 0 | G62: 21 | H62: 20 | I62: 0 | K62: 0 | L62: 0 | M62: 0 | O62: 27 | P62: 14 | Q62: 0 | S62: 0 | T62: 0 | U62: 0 | W62: 0 | X62: 0 | Y62: 0 | AA62: 19 | AB62: 22 | AC62: 0 | AE62: 21 | AF62: 20* | AG62: 0 | AI62: 0 | AJ62: 0 | AK62: 0 | AM62: 18 | AN62: 23 | AO62: 0 | AQ62: 18 | AR62: 23 | AS62: 0 | AU62: 0 | AV62: 0* | AW62: 0
A63: Neylon Silva | B63: 69 | C63: 30 | D63: 11* | E63: 0 | G63: 26 | H63: 15* | I63: 0 | K63: 0 | L63: 0 | M63: 0 | O63: 0 | P63: 0 | Q63: 0 | S63: 20 | T63: 21 | U63: 0 | W63: 15 | X63: 28 | Y63: 0 | AA63: 21 | AB63: 20 | AC63: 0 | AE63: 0 | AF63: 0* | AG63: 0 | AI63: 0 | AJ63: 0 | AK63: 0 | AM63: 0 | AN63: 0 | AO63: 0 | AQ63: 0 | AR63: 0 | AS63: 0 | AU63: 0 | AV63: 0* | AW63: 0
A64: XXXXXX | B64: 0 | AF64: * | AV64: *
A65: AST ESTRUTURAS | B65: 304 | D65: 20 | E65: 0 | H65: 12 | I65: 0 | L65: 36 | M65: 0 | P65: 53 | Q65: 0 | T65: 11 | U65: 0 | X65: 34 | Y65: 0 | AB65: 40 | AC65: 0 | AF65: 0* | AG65: 0 | AJ65: 0* | AK65: 0 | AN65: 24 | AO65: 0 | AR65: 34 | AS65: 0 | AV65: 40 | AW65: 0
A66: Pedro Fialho | B66: 20 | C66: 21 | D66: 20 | E66: 0 | G66: 0 | H66: 0 | I66: 0 | K66: 0 | L66: 0 | M66: 0 | O66: 0 | P66: 0 | Q66: 0 | S66: 0 | T66: 0 | U66: 0 | W66: 0 | X66: 0 | Y66: 0 | AA66: 0 | AB66: 0 | AC66: 0 | AE66: 0 | AF66: 0* | AG66: 0 | AI66: 0 | AJ66: 0* | AK66: 0 | AM66: 0 | AN66: 0 | AO66: 0 | AQ66: 0 | AR66: 0 | AS66: 0 | AU66: 0 | AV66: 0 | AW66: 0
A67: Wesley Canuto | B67: 226 | C67: 0 | D67: 0 | E67: 0 | G67: 0 | H67: 0 | I67: 0 | K67: 11 | L67: 36 | M67: 0 | O67: 8 | P67: 42 | Q67: 0 | S67: 0 | T67: 0 | U67: 0 | W67: 12 | X67: 34 | Y67: 0 | AA67: 9 | AB67: 40 | AC67: 0 | AE67: 0 | AF67: 0* | AG67: 0 | AI67: 0 | AJ67: 0* | AK67: 0 | AM67: 0 | AN67: 0 | AO67: 0 | AQ67: 12 | AR67: 34 | AS67: 0 | AU67: 9 | AV67: 40 | AW67: 0
A68: Renato Cardoso | B68: 58 | C68: 0 | D68: 0 | E68: 0 | G68: 29 | H68: 12 | I68: 0 | K68: 0 | L68: 0 | M68: 0 | O68: 30 | P68: 11 | Q68: 0 | S68: 30 | T68: 11 | U68: 0 | W68: 0 | X68: 0 | Y68: 0 | AA68: 0 | AB68: 0 | AC68: 0 | AE68: 0 | AF68: 0* | AG68: 0 | AI68: 0 | AJ68: 0* | AK68: 0 | AM68: 17 | AN68: 24 | AO68: 0 | AQ68: 0 | AR68: 0 | AS68: 0 | AU68: 0 | AV68: 0 | AW68: 0
A69: Robert Freitas | B69: 0 | C69: 0 | D69: 0 | E69: 0 | G69: 0 | H69: 0 | I69: 0 | K69: 0 | L69: 0 | M69: 0 | O69: 0 | P69: 0 | Q69: 0 | S69: 0 | T69: 0 | U69: 0 | W69: 0 | X69: 0 | Y69: 0 | AA69: 0 | AB69: 0 | AC69: 0 | AE69: 0 | AF69: 0* | AG69: 0 | AI69: 0 | AJ69: 0* | AK69: 0 | AM69: 0 | AN69: 0 | AO69: 0 | AQ69: 0 | AR69: 0 | AS69: 0 | AU69: 0 | AV69: 0 | AW69: 0
A70: XXXXXX | B70: 0 | AF70: * | AJ70: *

Sheet Posição x Pontos
H1: Posição | I1: Pontos
H2: 1 | I2: 45
H3: 2 | I3: 40
H4: 3 | I4: 37
H5: 4 | I5: 35
H6: 5 | I6: 33
H7: 6 | I7: 31
H8: 7 | I8: 29
H9: 8 | I9: 28
H10: 9 | I10: 27
H11: 10 | I11: 26
H12: 11 | I12: 25
H13: 12 | I13: 24
H14: 13 | I14: 23
H15: 14 | I15: 22
H16: 15 | I16: 21
H17: 16 | I17: 20
H18: 17 | I18: 19
H19: 18 | I19: 18
H20: 19 | I20: 17
H21: 20 | I21: 16
H22: 21 | I22: 15
H23: 22 | I23: 14
H24: 23 | I24: 13
H25: 24 | I25: 12
H26: 25 | I26: 11
H27: 26 | I27: 10
H28: 27 | I28: 9
H29: 28 | I29: 8
H30: 29 | I30: 7
H31: 30 | I31: 6
H32: 31 | I32: 5
H33: 32 | I33: 4
H34: 33 | I34: 3
H35: 34 | I35: 2
H36: 35 | I36: 1
H37: 36 | I37: 1
